Organisation Code,Organisation Label,Effective Date,Organisational Unit,Service Division Label,Category Internal Name,Purpose,Detailed Expenditure Code,Payment Date,Transaction Number,Irrecoverable VAT Amount,Amount,Capital Or Revenue,Benificiary Name,Procurement Card,,
Http://opendatacommunities.org/id/metropolitan-district-council/leeds,Leeds City Council,31/10/2017,Communities and Environment,Benefits  Wlefare And Poverty  ,Supplies and Services,Telephones,213,19/09/2017,1710-00001,0.00,80.00,R,(Aq) Limited,Yes,,
Http://opendatacommunities.org/id/metropolitan-district-council/leeds,Leeds City Council,31/10/2017,Resources and Housing,Leeds Building Services,Supplies and Services,Operational Materials,205,02/10/2017,1710-00002,0.00,22.16,R,A Andrews & Sons (Marbles & Tiles),No,,
Http://opendatacommunities.org/id/metropolitan-district-council/leeds,Leeds City Council,31/10/2017,Resources and Housing,Leeds Building Services,Supplies and Services,Operational Materials,205,25/10/2017,1710-00003,0.00,816.70,R,A Andrews & Sons (Marbles & Tiles),No,,
Http://opendatacommunities.org/id/metropolitan-district-council/leeds,Leeds City Council,31/10/2017,Resources and Housing,Leeds Building Services,Supplies and Services,Operational Materials,205,25/10/2017,1710-00004,0.00,239.78,R,A Andrews & Sons (Marbles & Tiles),No,,
Http://opendatacommunities.org/id/metropolitan-district-council/leeds,Leeds City Council,31/10/2017,Resources and Housing,Leeds Building Services,Supplies and Services,Operational Materials,205,27/10/2017,1710-00005,0.00,6.00,R,A Andrews & Sons (Marbles & Tiles),No,,
Http://opendatacommunities.org/id/metropolitan-district-council/leeds,Leeds City Council,31/10/2017,Resources and Housing,HRA Housing Leeds,Capital,Other Costs,7,05/10/2017,1710-00006,0.00,250.00,C,REDACTED PERSONAL DATA,No,,
Http://opendatacommunities.org/id/metropolitan-district-council/leeds,Leeds City Council,31/10/2017,City Development,Libraries  Arts & Heritage,Supplies and Services,Operational Furniture And Equipment,203,13/10/2017,1710-00007,0.00,104.49,R,A C Entertainment Technologies Ltd,No,,
Http://opendatacommunities.org/id/metropolitan-district-council/leeds,Leeds City Council,31/10/2017,Communities and Environment,Parks and Countryside,Supplies and Services,Bought In Professional Services,277,19/10/2017,1710-00008,0.00,1941.95,R,REDACTED COMMERCIAL CONFIDENTIALITY,No,,
Http://opendatacommunities.org/id/metropolitan-district-council/leeds,Leeds City Council,31/10/2017,Resources and Housing,HRA Housing Leeds,Capital,Other Costs,7,05/10/2017,1710-00009,0.00,250.00,C,REDACTED PERSONAL DATA,No,,
Http://opendatacommunities.org/id/metropolitan-district-council/leeds,Leeds City Council,31/10/2017,Children and Families,Safeguarding Targeted & Specialist,Third Party Payments,Services Rendered By Voluntary Sector,505,27/10/2017,1710-00010,0.00,296.99,R,A E Speight,No,,
Http://opendatacommunities.org/id/metropolitan-district-council/leeds,Leeds City Council,31/10/2017,City Development,Highways,Capital,Construction,3,16/10/2017,1710-00011,0.00,138847.93,C,A E Yates Ltd,No,,
Http://opendatacommunities.org/id/metropolitan-district-council/leeds,Leeds City Council,31/10/2017,Children and Families,Safeguarding Targeted & Specialist,Third Party Payments,Services Rendered By Other Organisations,511,27/10/2017,1710-00012,0.00,111.37,R,A Green,No,,
Http://opendatacommunities.org/id/metropolitan-district-council/leeds,Leeds City Council,31/10/2017,Children and Families,Safeguarding Targeted & Specialist,Third Party Payments,Services Rendered By Other Organisations,511,27/10/2017,1710-00013,0.00,95.46,R,A Hayes,No,,
Http://opendatacommunities.org/id/metropolitan-district-council/leeds,Leeds City Council,31/10/2017,City Development,Libraries  Arts & Heritage,Supplies and Services,Other Hired And Contracted Services,265,19/10/2017,1710-00014,0.00,600.00,R,REDACTED COMMERCIAL CONFIDENTIALITY,No,,
Http://opendatacommunities.org/id/metropolitan-district-council/leeds,Leeds City Council,31/10/2017,Resources and Housing,Leeds Building Services,Supplies and Services,Operational Materials,205,02/10/2017,1710-00015,0.00,895.00,R,A J H  Pump Supply & Repair Ltd,No,,
Http://opendatacommunities.org/id/metropolitan-district-council/leeds,Leeds City Council,31/10/2017,Resources and Housing,Leeds Building Services,Supplies and Services,Operational Materials,205,02/10/2017,1710-00016,0.00,2319.00,R,A J H  Pump Supply & Repair Ltd,No,,
Http://opendatacommunities.org/id/metropolitan-district-council/leeds,Leeds City Council,31/10/2017,Resources and Housing,Leeds Building Services,Supplies and Services,Operational Materials,205,02/10/2017,1710-00017,0.00,1777.00,R,A J H  Pump Supply & Repair Ltd,No,,
Http://opendatacommunities.org/id/metropolitan-district-council/leeds,Leeds City Council,31/10/2017,Resources and Housing,Leeds Building Services,Supplies and Services,Operational Materials,205,02/10/2017,1710-00018,0.00,780.00,R,A J H  Pump Supply & Repair Ltd,No,,
Http://opendatacommunities.org/id/metropolitan-district-council/leeds,Leeds City Council,31/10/2017,Resources and Housing,Leeds Building Services,Supplies and Services,Operational Materials,205,02/10/2017,1710-00019,0.00,1074.00,R,A J H  Pump Supply & Repair Ltd,No,,
Http://opendatacommunities.org/id/metropolitan-district-council/leeds,Leeds City Council,31/10/2017,Resources and Housing,Leeds Building Services,Supplies and Services,Operational Materials,205,02/10/2017,1710-00020,0.00,185.56,R,A J H  Pump Supply & Repair Ltd,No,,
Http://opendatacommunities.org/id/metropolitan-district-council/leeds,Leeds City Council,31/10/2017,Resources and Housing,Leeds Building Services,Supplies and Services,Operational Materials,205,02/10/2017,1710-00021,0.00,57.45,R,A J H  Pump Supply & Repair Ltd,No,,
Http://opendatacommunities.org/id/metropolitan-district-council/leeds,Leeds City Council,31/10/2017,Resources and Housing,Leeds Building Services,Supplies and Services,Operational Materials,205,02/10/2017,1710-00022,0.00,377.85,R,A J H  Pump Supply & Repair Ltd,No,,
Http://opendatacommunities.org/id/metropolitan-district-council/leeds,Leeds City Council,31/10/2017,Resources and Housing,Leeds Building Services,Supplies and Services,Operational Materials,205,02/10/2017,1710-00023,0.00,78.40,R,A J H  Pump Supply & Repair Ltd,No,,
Http://opendatacommunities.org/id/metropolitan-district-council/leeds,Leeds City Council,31/10/2017,Resources and Housing,Leeds Building Services,Supplies and Services,Operational Materials,205,04/10/2017,1710-00024,0.00,6268.00,R,A J H  Pump Supply & Repair Ltd,No,,
Http://opendatacommunities.org/id/metropolitan-district-council/leeds,Leeds City Council,31/10/2017,Resources and Housing,Leeds Building Services,Supplies and Services,Operational Materials,205,04/10/2017,1710-00025,0.00,863.00,R,A J H  Pump Supply & Repair Ltd,No,,
Http://opendatacommunities.org/id/metropolitan-district-council/leeds,Leeds City Council,31/10/2017,Resources and Housing,Leeds Building Services,Supplies and Services,Operational Materials,205,04/10/2017,1710-00026,0.00,3660.00,R,A J H  Pump Supply & Repair Ltd,No,,
Http://opendatacommunities.org/id/metropolitan-district-council/leeds,Leeds City Council,31/10/2017,Resources and Housing,Leeds Building Services,Supplies and Services,Operational Materials,205,05/10/2017,1710-00027,0.00,750.00,R,A J H  Pump Supply & Repair Ltd,No,,
Http://opendatacommunities.org/id/metropolitan-district-council/leeds,Leeds City Council,31/10/2017,Resources and Housing,Leeds Building Services,Supplies and Services,Operational Materials,205,06/10/2017,1710-00028,0.00,133.15,R,A J H  Pump Supply & Repair Ltd,No,,
Http://opendatacommunities.org/id/metropolitan-district-council/leeds,Leeds City Council,31/10/2017,Resources and Housing,Leeds Building Services,Supplies and Services,Operational Materials,205,06/10/2017,1710-00029,0.00,499.32,R,A J H  Pump Supply & Repair Ltd,No,,
Http://opendatacommunities.org/id/metropolitan-district-council/leeds,Leeds City Council,31/10/2017,Resources and Housing,Leeds Building Services,Supplies and Services,Operational Materials,205,06/10/2017,1710-00030,0.00,107.50,R,A J H  Pump Supply & Repair Ltd,No,,
Http://opendatacommunities.org/id/metropolitan-district-council/leeds,Leeds City Council,31/10/2017,Resources and Housing,Leeds Building Services,Supplies and Services,Operational Materials,205,06/10/2017,1710-00031,0.00,108.47,R,A J H  Pump Supply & Repair Ltd,No,,
Http://opendatacommunities.org/id/metropolitan-district-council/leeds,Leeds City Council,31/10/2017,Resources and Housing,Leeds Building Services,Supplies and Services,Operational Materials,205,06/10/2017,1710-00032,0.00,129.90,R,A J H  Pump Supply & Repair Ltd,No,,
Http://opendatacommunities.org/id/metropolitan-district-council/leeds,Leeds City Council,31/10/2017,Resources and Housing,Leeds Building Services,Supplies and Services,Operational Materials,205,06/10/2017,1710-00033,0.00,107.85,R,A J H  Pump Supply & Repair Ltd,No,,
Http://opendatacommunities.org/id/metropolitan-district-council/leeds,Leeds City Council,31/10/2017,Resources and Housing,Leeds Building Services,Supplies and Services,Operational Materials,205,06/10/2017,1710-00034,0.00,623.35,R,A J H  Pump Supply & Repair Ltd,No,,
Http://opendatacommunities.org/id/metropolitan-district-council/leeds,Leeds City Council,31/10/2017,Resources and Housing,Leeds Building Services,Supplies and Services,Operational Materials,205,06/10/2017,1710-00035,0.00,144.75,R,A J H  Pump Supply & Repair Ltd,No,,
Http://opendatacommunities.org/id/metropolitan-district-council/leeds,Leeds City Council,31/10/2017,Resources and Housing,Leeds Building Services,Supplies and Services,Operational Materials,205,06/10/2017,1710-00036,0.00,215.77,R,A J H  Pump Supply & Repair Ltd,No,,
Http://opendatacommunities.org/id/metropolitan-district-council/leeds,Leeds City Council,31/10/2017,Resources and Housing,Leeds Building Services,Supplies and Services,Operational Materials,205,06/10/2017,1710-00037,0.00,339.00,R,A J H  Pump Supply & Repair Ltd,No,,
Http://opendatacommunities.org/id/metropolitan-district-council/leeds,Leeds City Council,31/10/2017,Resources and Housing,Leeds Building Services,Supplies and Services,Operational Materials,205,06/10/2017,1710-00038,0.00,468.57,R,A J H  Pump Supply & Repair Ltd,No,,
Http://opendatacommunities.org/id/metropolitan-district-council/leeds,Leeds City Council,31/10/2017,Resources and Housing,Leeds Building Services,Supplies and Services,Operational Materials,205,06/10/2017,1710-00039,0.00,347.04,R,A J H  Pump Supply & Repair Ltd,No,,
Http://opendatacommunities.org/id/metropolitan-district-council/leeds,Leeds City Council,31/10/2017,Resources and Housing,Leeds Building Services,Supplies and Services,Operational Materials,205,06/10/2017,1710-00040,0.00,187.50,R,A J H  Pump Supply & Repair Ltd,No,,
Http://opendatacommunities.org/id/metropolitan-district-council/leeds,Leeds City Council,31/10/2017,Resources and Housing,Leeds Building Services,Supplies and Services,Operational Materials,205,06/10/2017,1710-00041,0.00,700.92,R,A J H  Pump Supply & Repair Ltd,No,,
Http://opendatacommunities.org/id/metropolitan-district-council/leeds,Leeds City Council,31/10/2017,Resources and Housing,Leeds Building Services,Supplies and Services,Operational Materials,205,06/10/2017,1710-00042,0.00,150.50,R,A J H  Pump Supply & Repair Ltd,No,,
Http://opendatacommunities.org/id/metropolitan-district-council/leeds,Leeds City Council,31/10/2017,Resources and Housing,Leeds Building Services,Supplies and Services,Operational Materials,205,06/10/2017,1710-00043,0.00,195.00,R,A J H  Pump Supply & Repair Ltd,No,,
Http://opendatacommunities.org/id/metropolitan-district-council/leeds,Leeds City Council,31/10/2017,Resources and Housing,Leeds Building Services,Supplies and Services,Operational Materials,205,06/10/2017,1710-00044,0.00,123.52,R,A J H  Pump Supply & Repair Ltd,No,,
Http://opendatacommunities.org/id/metropolitan-district-council/leeds,Leeds City Council,31/10/2017,Resources and Housing,Leeds Building Services,Supplies and Services,Operational Materials,205,06/10/2017,1710-00045,0.00,2323.82,R,A J H  Pump Supply & Repair Ltd,No,,
Http://opendatacommunities.org/id/metropolitan-district-council/leeds,Leeds City Council,31/10/2017,Resources and Housing,Leeds Building Services,Supplies and Services,Operational Materials,205,06/10/2017,1710-00046,0.00,145.00,R,A J H  Pump Supply & Repair Ltd,No,,
Http://opendatacommunities.org/id/metropolitan-district-council/leeds,Leeds City Council,31/10/2017,Resources and Housing,Leeds Building Services,Supplies and Services,Operational Materials,205,06/10/2017,1710-00047,0.00,1496.02,R,A J H  Pump Supply & Repair Ltd,No,,
Http://opendatacommunities.org/id/metropolitan-district-council/leeds,Leeds City Council,31/10/2017,Resources and Housing,Leeds Building Services,Supplies and Services,Operational Materials,205,06/10/2017,1710-00048,0.00,123.50,R,A J H  Pump Supply & Repair Ltd,No,,
Http://opendatacommunities.org/id/metropolitan-district-council/leeds,Leeds City Council,31/10/2017,Resources and Housing,Leeds Building Services,Supplies and Services,Operational Materials,205,06/10/2017,1710-00049,0.00,28.90,R,A J H  Pump Supply & Repair Ltd,No,,
Http://opendatacommunities.org/id/metropolitan-district-council/leeds,Leeds City Council,31/10/2017,Resources and Housing,Leeds Building Services,Supplies and Services,Operational Materials,205,06/10/2017,1710-00050,0.00,120.00,R,A J H  Pump Supply & Repair Ltd,No,,
Http://opendatacommunities.org/id/metropolitan-district-council/leeds,Leeds City Council,31/10/2017,Resources and Housing,Leeds Building Services,Supplies and Services,Operational Materials,205,06/10/2017,1710-00051,0.00,109.00,R,A J H  Pump Supply & Repair Ltd,No,,
Http://opendatacommunities.org/id/metropolitan-district-council/leeds,Leeds City Council,31/10/2017,Resources and Housing,Leeds Building Services,Supplies and Services,Operational Materials,205,06/10/2017,1710-00052,0.00,52.00,R,A J H  Pump Supply & Repair Ltd,No,,
Http://opendatacommunities.org/id/metropolitan-district-council/leeds,Leeds City Council,31/10/2017,Resources and Housing,Leeds Building Services,Supplies and Services,Operational Materials,205,06/10/2017,1710-00053,0.00,16.20,R,A J H  Pump Supply & Repair Ltd,No,,
Http://opendatacommunities.org/id/metropolitan-district-council/leeds,Leeds City Council,31/10/2017,Resources and Housing,Leeds Building Services,Supplies and Services,Operational Materials,205,06/10/2017,1710-00054,0.00,225.57,R,A J H  Pump Supply & Repair Ltd,No,,
Http://opendatacommunities.org/id/metropolitan-district-council/leeds,Leeds City Council,31/10/2017,Resources and Housing,Leeds Building Services,Supplies and Services,Operational Materials,205,06/10/2017,1710-00055,0.00,442.64,R,A J H  Pump Supply & Repair Ltd,No,,
Http://opendatacommunities.org/id/metropolitan-district-council/leeds,Leeds City Council,31/10/2017,Resources and Housing,Leeds Building Services,Supplies and Services,Operational Materials,205,06/10/2017,1710-00056,0.00,269.70,R,A J H  Pump Supply & Repair Ltd,No,,
Http://opendatacommunities.org/id/metropolitan-district-council/leeds,Leeds City Council,31/10/2017,Resources and Housing,Leeds Building Services,Supplies and Services,Operational Materials,205,06/10/2017,1710-00057,0.00,542.35,R,A J H  Pump Supply & Repair Ltd,No,,
Http://opendatacommunities.org/id/metropolitan-district-council/leeds,Leeds City Council,31/10/2017,Resources and Housing,Leeds Building Services,Supplies and Services,Operational Materials,205,06/10/2017,1710-00058,0.00,192.00,R,A J H  Pump Supply & Repair Ltd,No,,
Http://opendatacommunities.org/id/metropolitan-district-council/leeds,Leeds City Council,31/10/2017,Resources and Housing,Leeds Building Services,Supplies and Services,Operational Materials,205,06/10/2017,1710-00059,0.00,457.97,R,A J H  Pump Supply & Repair Ltd,No,,
Http://opendatacommunities.org/id/metropolitan-district-council/leeds,Leeds City Council,31/10/2017,Resources and Housing,Leeds Building Services,Supplies and Services,Operational Materials,205,06/10/2017,1710-00060,0.00,219.90,R,A J H  Pump Supply & Repair Ltd,No,,
Http://opendatacommunities.org/id/metropolitan-district-council/leeds,Leeds City Council,31/10/2017,Resources and Housing,Leeds Building Services,Supplies and Services,Operational Materials,205,06/10/2017,1710-00061,0.00,67.12,R,A J H  Pump Supply & Repair Ltd,No,,
Http://opendatacommunities.org/id/metropolitan-district-council/leeds,Leeds City Council,31/10/2017,Resources and Housing,Leeds Building Services,Supplies and Services,Operational Materials,205,06/10/2017,1710-00062,0.00,7.95,R,A J H  Pump Supply & Repair Ltd,No,,
Http://opendatacommunities.org/id/metropolitan-district-council/leeds,Leeds City Council,31/10/2017,Resources and Housing,Leeds Building Services,Supplies and Services,Operational Materials,205,06/10/2017,1710-00063,0.00,660.76,R,A J H  Pump Supply & Repair Ltd,No,,
Http://opendatacommunities.org/id/metropolitan-district-council/leeds,Leeds City Council,31/10/2017,Resources and Housing,Leeds Building Services,Supplies and Services,Operational Materials,205,06/10/2017,1710-00064,0.00,108.95,R,A J H  Pump Supply & Repair Ltd,No,,
Http://opendatacommunities.org/id/metropolitan-district-council/leeds,Leeds City Council,31/10/2017,Resources and Housing,Leeds Building Services,Supplies and Services,Operational Materials,205,06/10/2017,1710-00065,0.00,149.28,R,A J H  Pump Supply & Repair Ltd,No,,
Http://opendatacommunities.org/id/metropolitan-district-council/leeds,Leeds City Council,31/10/2017,Resources and Housing,Leeds Building Services,Supplies and Services,Operational Materials,205,13/10/2017,1710-00066,0.00,1210.00,R,A J H  Pump Supply & Repair Ltd,No,,
Http://opendatacommunities.org/id/metropolitan-district-council/leeds,Leeds City Council,31/10/2017,Resources and Housing,Leeds Building Services,Supplies and Services,Operational Materials,205,13/10/2017,1710-00067,0.00,19.00,R,A J H  Pump Supply & Repair Ltd,No,,
Http://opendatacommunities.org/id/metropolitan-district-council/leeds,Leeds City Council,31/10/2017,Resources and Housing,Leeds Building Services,Supplies and Services,Operational Materials,205,13/10/2017,1710-00068,0.00,10.31,R,A J H  Pump Supply & Repair Ltd,No,,
Http://opendatacommunities.org/id/metropolitan-district-council/leeds,Leeds City Council,31/10/2017,Resources and Housing,Leeds Building Services,Supplies and Services,Operational Materials,205,19/10/2017,1710-00069,0.00,89.85,R,A J H  Pump Supply & Repair Ltd,No,,
Http://opendatacommunities.org/id/metropolitan-district-council/leeds,Leeds City Council,31/10/2017,Resources and Housing,Leeds Building Services,Supplies and Services,Operational Materials,205,19/10/2017,1710-00070,0.00,472.00,R,A J H  Pump Supply & Repair Ltd,No,,
Http://opendatacommunities.org/id/metropolitan-district-council/leeds,Leeds City Council,31/10/2017,Resources and Housing,Leeds Building Services,Supplies and Services,Operational Materials,205,25/10/2017,1710-00071,0.00,25.00,R,A J H  Pump Supply & Repair Ltd,No,,
Http://opendatacommunities.org/id/metropolitan-district-council/leeds,Leeds City Council,31/10/2017,Resources and Housing,Leeds Building Services,Supplies and Services,Operational Materials,205,26/10/2017,1710-00072,0.00,99.00,R,A J H  Pump Supply & Repair Ltd,No,,
Http://opendatacommunities.org/id/metropolitan-district-council/leeds,Leeds City Council,31/10/2017,Resources and Housing,Leeds Building Services,Supplies and Services,Operational Materials,205,26/10/2017,1710-00073,0.00,164.80,R,A J H  Pump Supply & Repair Ltd,No,,
Http://opendatacommunities.org/id/metropolitan-district-council/leeds,Leeds City Council,31/10/2017,Resources and Housing,Leeds Building Services,Supplies and Services,Operational Materials,205,26/10/2017,1710-00074,0.00,231.96,R,A J H  Pump Supply & Repair Ltd,No,,
Http://opendatacommunities.org/id/metropolitan-district-council/leeds,Leeds City Council,31/10/2017,Resources and Housing,Leeds Building Services,Supplies and Services,Operational Materials,205,26/10/2017,1710-00075,0.00,114.80,R,A J H  Pump Supply & Repair Ltd,No,,
Http://opendatacommunities.org/id/metropolitan-district-council/leeds,Leeds City Council,31/10/2017,Resources and Housing,Leeds Building Services,Supplies and Services,Operational Materials,205,26/10/2017,1710-00076,0.00,157.49,R,A J H  Pump Supply & Repair Ltd,No,,
Http://opendatacommunities.org/id/metropolitan-district-council/leeds,Leeds City Council,31/10/2017,Resources and Housing,Leeds Building Services,Supplies and Services,Operational Materials,205,26/10/2017,1710-00077,0.00,155.38,R,A J H  Pump Supply & Repair Ltd,No,,
Http://opendatacommunities.org/id/metropolitan-district-council/leeds,Leeds City Council,31/10/2017,Resources and Housing,Leeds Building Services,Supplies and Services,Operational Materials,205,26/10/2017,1710-00078,0.00,16.50,R,A J H  Pump Supply & Repair Ltd,No,,
Http://opendatacommunities.org/id/metropolitan-district-council/leeds,Leeds City Council,31/10/2017,Resources and Housing,Leeds Building Services,Supplies and Services,Operational Materials,205,26/10/2017,1710-00079,0.00,450.39,R,A J H  Pump Supply & Repair Ltd,No,,
Http://opendatacommunities.org/id/metropolitan-district-council/leeds,Leeds City Council,31/10/2017,Resources and Housing,Leeds Building Services,Supplies and Services,Operational Materials,205,26/10/2017,1710-00080,0.00,69.56,R,A J H  Pump Supply & Repair Ltd,No,,
Http://opendatacommunities.org/id/metropolitan-district-council/leeds,Leeds City Council,31/10/2017,Resources and Housing,Leeds Building Services,Supplies and Services,Operational Materials,205,26/10/2017,1710-00081,0.00,424.00,R,A J H  Pump Supply & Repair Ltd,No,,
Http://opendatacommunities.org/id/metropolitan-district-council/leeds,Leeds City Council,31/10/2017,Resources and Housing,Leeds Building Services,Supplies and Services,Operational Materials,205,26/10/2017,1710-00082,0.00,132.00,R,A J H  Pump Supply & Repair Ltd,No,,
Http://opendatacommunities.org/id/metropolitan-district-council/leeds,Leeds City Council,31/10/2017,Resources and Housing,Leeds Building Services,Supplies and Services,Operational Materials,205,26/10/2017,1710-00083,0.00,29.75,R,A J H  Pump Supply & Repair Ltd,No,,
Http://opendatacommunities.org/id/metropolitan-district-council/leeds,Leeds City Council,31/10/2017,Resources and Housing,Leeds Building Services,Supplies and Services,Operational Materials,205,26/10/2017,1710-00084,0.00,233.49,R,A J H  Pump Supply & Repair Ltd,No,,
Http://opendatacommunities.org/id/metropolitan-district-council/leeds,Leeds City Council,31/10/2017,Resources and Housing,Leeds Building Services,Supplies and Services,Operational Materials,205,26/10/2017,1710-00085,0.00,175.99,R,A J H  Pump Supply & Repair Ltd,No,,
Http://opendatacommunities.org/id/metropolitan-district-council/leeds,Leeds City Council,31/10/2017,Resources and Housing,Leeds Building Services,Supplies and Services,Operational Materials,205,26/10/2017,1710-00086,0.00,23.45,R,A J H  Pump Supply & Repair Ltd,No,,
Http://opendatacommunities.org/id/metropolitan-district-council/leeds,Leeds City Council,31/10/2017,Resources and Housing,Leeds Building Services,Supplies and Services,Operational Materials,205,26/10/2017,1710-00087,0.00,17.04,R,A J H  Pump Supply & Repair Ltd,No,,
Http://opendatacommunities.org/id/metropolitan-district-council/leeds,Leeds City Council,31/10/2017,Resources and Housing,Leeds Building Services,Supplies and Services,Operational Materials,205,26/10/2017,1710-00088,0.00,41.35,R,A J H  Pump Supply & Repair Ltd,No,,
Http://opendatacommunities.org/id/metropolitan-district-council/leeds,Leeds City Council,31/10/2017,Resources and Housing,Leeds Building Services,Supplies and Services,Operational Materials,205,26/10/2017,1710-00089,0.00,119.62,R,A J H  Pump Supply & Repair Ltd,No,,
Http://opendatacommunities.org/id/metropolitan-district-council/leeds,Leeds City Council,31/10/2017,Resources and Housing,Leeds Building Services,Supplies and Services,Operational Furniture And Equipment,203,26/10/2017,1710-00090,0.00,120.00,R,A J H  Pump Supply & Repair Ltd,No,,
Http://opendatacommunities.org/id/metropolitan-district-council/leeds,Leeds City Council,31/10/2017,Resources and Housing,Leeds Building Services,Supplies and Services,Operational Materials,205,26/10/2017,1710-00091,0.00,33.74,R,A J H  Pump Supply & Repair Ltd,No,,
Http://opendatacommunities.org/id/metropolitan-district-council/leeds,Leeds City Council,31/10/2017,Resources and Housing,Leeds Building Services,Supplies and Services,Operational Materials,205,26/10/2017,1710-00092,0.00,1583.00,R,A J H  Pump Supply & Repair Ltd,No,,
Http://opendatacommunities.org/id/metropolitan-district-council/leeds,Leeds City Council,31/10/2017,Resources and Housing,Leeds Building Services,Supplies and Services,Operational Materials,205,26/10/2017,1710-00093,0.00,151.53,R,A J H  Pump Supply & Repair Ltd,No,,
Http://opendatacommunities.org/id/metropolitan-district-council/leeds,Leeds City Council,31/10/2017,Resources and Housing,Leeds Building Services,Supplies and Services,Operational Materials,205,26/10/2017,1710-00094,0.00,180.95,R,A J H  Pump Supply & Repair Ltd,No,,
Http://opendatacommunities.org/id/metropolitan-district-council/leeds,Leeds City Council,31/10/2017,Resources and Housing,Leeds Building Services,Supplies and Services,Operational Materials,205,26/10/2017,1710-00095,0.00,168.50,R,A J H  Pump Supply & Repair Ltd,No,,
Http://opendatacommunities.org/id/metropolitan-district-council/leeds,Leeds City Council,31/10/2017,Resources and Housing,Leeds Building Services,Supplies and Services,Operational Materials,205,26/10/2017,1710-00096,0.00,15.22,R,A J H  Pump Supply & Repair Ltd,No,,
Http://opendatacommunities.org/id/metropolitan-district-council/leeds,Leeds City Council,31/10/2017,Resources and Housing,Leeds Building Services,Supplies and Services,Operational Materials,205,26/10/2017,1710-00097,0.00,393.82,R,A J H  Pump Supply & Repair Ltd,No,,
Http://opendatacommunities.org/id/metropolitan-district-council/leeds,Leeds City Council,31/10/2017,Resources and Housing,Leeds Building Services,Supplies and Services,Operational Materials,205,30/10/2017,1710-00098,0.00,155.10,R,A J H  Pump Supply & Repair Ltd,No,,
Http://opendatacommunities.org/id/metropolitan-district-council/leeds,Leeds City Council,31/10/2017,Resources and Housing,Leeds Building Services,Supplies and Services,Operational Materials,205,30/10/2017,1710-00099,0.00,98.00,R,A J H  Pump Supply & Repair Ltd,No,,
Http://opendatacommunities.org/id/metropolitan-district-council/leeds,Leeds City Council,31/10/2017,Resources and Housing,Leeds Building Services,Supplies and Services,Operational Materials,205,31/10/2017,1710-00100,0.00,290.00,R,A J H  Pump Supply & Repair Ltd,No,,
Http://opendatacommunities.org/id/metropolitan-district-council/leeds,Leeds City Council,31/10/2017,Resources and Housing,Leeds Building Services,Supplies and Services,Operational Materials,205,31/10/2017,1710-00101,0.00,371.89,R,A J H  Pump Supply & Repair Ltd,No,,
Http://opendatacommunities.org/id/metropolitan-district-council/leeds,Leeds City Council,31/10/2017,Resources and Housing,Leeds Building Services,Supplies and Services,Operational Materials,205,31/10/2017,1710-00102,0.00,55.00,R,A J H  Pump Supply & Repair Ltd,No,,
Http://opendatacommunities.org/id/metropolitan-district-council/leeds,Leeds City Council,31/10/2017,Resources and Housing,Leeds Building Services,Supplies and Services,Operational Materials,205,31/10/2017,1710-00103,0.00,39.50,R,A J H  Pump Supply & Repair Ltd,No,,
Http://opendatacommunities.org/id/metropolitan-district-council/leeds,Leeds City Council,31/10/2017,Resources and Housing,Leeds Building Services,Supplies and Services,Operational Materials,205,31/10/2017,1710-00104,0.00,24.45,R,A J H  Pump Supply & Repair Ltd,No,,
Http://opendatacommunities.org/id/metropolitan-district-council/leeds,Leeds City Council,31/10/2017,Resources and Housing,Leeds Building Services,Supplies and Services,Operational Materials,205,31/10/2017,1710-00105,0.00,212.73,R,A J H  Pump Supply & Repair Ltd,No,,
Http://opendatacommunities.org/id/metropolitan-district-council/leeds,Leeds City Council,31/10/2017,Resources and Housing,Leeds Building Services,Supplies and Services,Operational Materials,205,31/10/2017,1710-00106,0.00,405.00,R,A J H  Pump Supply & Repair Ltd,No,,
Http://opendatacommunities.org/id/metropolitan-district-council/leeds,Leeds City Council,31/10/2017,Resources and Housing,Leeds Building Services,Supplies and Services,Operational Materials,205,31/10/2017,1710-00107,0.00,146.00,R,A J H  Pump Supply & Repair Ltd,No,,
Http://opendatacommunities.org/id/metropolitan-district-council/leeds,Leeds City Council,31/10/2017,Resources and Housing,Leeds Building Services,Supplies and Services,Operational Materials,205,31/10/2017,1710-00108,0.00,85.93,R,A J H  Pump Supply & Repair Ltd,No,,
Http://opendatacommunities.org/id/metropolitan-district-council/leeds,Leeds City Council,31/10/2017,Resources and Housing,Leeds Building Services,Supplies and Services,Operational Materials,205,31/10/2017,1710-00109,0.00,108.75,R,A J H  Pump Supply & Repair Ltd,No,,
Http://opendatacommunities.org/id/metropolitan-district-council/leeds,Leeds City Council,31/10/2017,Resources and Housing,Leeds Building Services,Supplies and Services,Operational Materials,205,31/10/2017,1710-00110,0.00,95.00,R,A J H  Pump Supply & Repair Ltd,No,,
Http://opendatacommunities.org/id/metropolitan-district-council/leeds,Leeds City Council,31/10/2017,Resources and Housing,Leeds Building Services,Supplies and Services,Operational Materials,205,31/10/2017,1710-00111,0.00,35.25,R,A J H  Pump Supply & Repair Ltd,No,,
Http://opendatacommunities.org/id/metropolitan-district-council/leeds,Leeds City Council,31/10/2017,Resources and Housing,Leeds Building Services,Supplies and Services,Operational Materials,205,31/10/2017,1710-00112,0.00,212.64,R,A J H  Pump Supply & Repair Ltd,No,,
Http://opendatacommunities.org/id/metropolitan-district-council/leeds,Leeds City Council,31/10/2017,Resources and Housing,Leeds Building Services,Supplies and Services,Operational Materials,205,31/10/2017,1710-00113,0.00,530.00,R,A J H  Pump Supply & Repair Ltd,No,,
Http://opendatacommunities.org/id/metropolitan-district-council/leeds,Leeds City Council,31/10/2017,Resources and Housing,Leeds Building Services,Supplies and Services,Operational Materials,205,31/10/2017,1710-00114,0.00,211.71,R,A J H  Pump Supply & Repair Ltd,No,,
Http://opendatacommunities.org/id/metropolitan-district-council/leeds,Leeds City Council,31/10/2017,Resources and Housing,Leeds Building Services,Supplies and Services,Operational Materials,205,31/10/2017,1710-00115,0.00,103.10,R,A J H  Pump Supply & Repair Ltd,No,,
Http://opendatacommunities.org/id/metropolitan-district-council/leeds,Leeds City Council,31/10/2017,Resources and Housing,Leeds Building Services,Supplies and Services,Operational Materials,205,31/10/2017,1710-00116,0.00,137.37,R,A J H  Pump Supply & Repair Ltd,No,,
Http://opendatacommunities.org/id/metropolitan-district-council/leeds,Leeds City Council,31/10/2017,Resources and Housing,Leeds Building Services,Supplies and Services,Operational Materials,205,31/10/2017,1710-00117,0.00,86.00,R,A J H  Pump Supply & Repair Ltd,No,,
Http://opendatacommunities.org/id/metropolitan-district-council/leeds,Leeds City Council,31/10/2017,Communities and Environment,Parks and Countryside,Supplies and Services,Resaleable Materials,204,17/10/2017,1710-00118,0.00,218.88,R,A J Promotions,No,,
Http://opendatacommunities.org/id/metropolitan-district-council/leeds,Leeds City Council,31/10/2017,Communities and Environment,Customer Access,Supplies and Services,Resaleable Materials,204,17/10/2017,1710-00119,0.00,43.80,R,A J Promotions,No,,
Http://opendatacommunities.org/id/metropolitan-district-council/leeds,Leeds City Council,31/10/2017,Communities and Environment,Parks and Countryside,Supplies and Services,Resaleable Materials,204,27/10/2017,1710-00120,0.00,875.52,R,A J Promotions,No,,
Http://opendatacommunities.org/id/metropolitan-district-council/leeds,Leeds City Council,31/10/2017,Communities and Environment,Customer Access,Supplies and Services,Other Hired And Contracted Services,265,04/10/2017,1710-00121,0.00,302.25,R,A Namaki,No,,
Http://opendatacommunities.org/id/metropolitan-district-council/leeds,Leeds City Council,31/10/2017,Communities and Environment,Parks and Countryside,Supplies and Services,Operational Materials,205,06/10/2017,1710-00122,0.00,705.00,R,A Newton,No,,
Http://opendatacommunities.org/id/metropolitan-district-council/leeds,Leeds City Council,31/10/2017,City Development,Libraries  Arts & Heritage,Supplies and Services,Other Hired And Contracted Services,265,06/10/2017,1710-00123,0.00,2350.00,R,A Quiet Word Ltd,No,,
Http://opendatacommunities.org/id/metropolitan-district-council/leeds,Leeds City Council,31/10/2017,City Development,Recreation,Supplies and Services,Operational Furniture And Equipment,203,19/10/2017,1710-00124,0.00,90.00,R,REDACTED PERSONAL DATA,No,,
Http://opendatacommunities.org/id/metropolitan-district-council/leeds,Leeds City Council,31/10/2017,Resources and Housing,Shared Services,Supplies and Services,Other Hired And Contracted Services,265,09/10/2017,1710-00125,0.00,35.00,R,A Star Couriers Ltd,No,,
Http://opendatacommunities.org/id/metropolitan-district-council/leeds,Leeds City Council,31/10/2017,Children and Families,Safeguarding Targeted & Specialist,Third Party Payments,Services Rendered By Other Organisations,511,27/10/2017,1710-00126,0.00,95.46,R,A Walding,No,,
Http://opendatacommunities.org/id/metropolitan-district-council/leeds,Leeds City Council,31/10/2017,Communities and Environment,Waste Management,Capital,Furniture And Equipment,5,27/10/2017,1710-00127,0.00,4608.70,C,A&C Weber Uk Ltd,No,,
Http://opendatacommunities.org/id/metropolitan-district-council/leeds,Leeds City Council,31/10/2017,Communities and Environment,Waste Management,Capital,Furniture And Equipment,5,27/10/2017,1710-00128,0.00,4640.00,C,A&C Weber Uk Ltd,No,,
Http://opendatacommunities.org/id/metropolitan-district-council/leeds,Leeds City Council,31/10/2017,Communities and Environment,Waste Management,Capital,Furniture And Equipment,5,27/10/2017,1710-00129,0.00,4210.80,C,A&C Weber Uk Ltd,No,,
Http://opendatacommunities.org/id/metropolitan-district-council/leeds,Leeds City Council,31/10/2017,Communities and Environment,Waste Management,Capital,Furniture And Equipment,5,27/10/2017,1710-00130,0.00,2004.80,C,A&C Weber Uk Ltd,No,,
Http://opendatacommunities.org/id/metropolitan-district-council/leeds,Leeds City Council,31/10/2017,Communities and Environment,Waste Management,Capital,Furniture And Equipment,5,27/10/2017,1710-00131,0.00,9951.70,C,A&C Weber Uk Ltd,No,,
Http://opendatacommunities.org/id/metropolitan-district-council/leeds,Leeds City Council,31/10/2017,Communities and Environment,Waste Management,Capital,Furniture And Equipment,5,27/10/2017,1710-00132,0.00,1017.60,C,A&C Weber Uk Ltd,No,,
Http://opendatacommunities.org/id/metropolitan-district-council/leeds,Leeds City Council,31/10/2017,Communities and Environment,Waste Management,Supplies and Services,Office Consumables,210,30/10/2017,1710-00133,0.00,2035.20,R,A&C Weber Uk Ltd,No,,
Http://opendatacommunities.org/id/metropolitan-district-council/leeds,Leeds City Council,31/10/2017,Communities and Environment,Waste Management,Capital,Furniture And Equipment,5,30/10/2017,1710-00134,0.00,508.80,C,A&C Weber Uk Ltd,No,,
Http://opendatacommunities.org/id/metropolitan-district-council/leeds,Leeds City Council,31/10/2017,Communities and Environment,Waste Management,Supplies and Services,Office Consumables,210,30/10/2017,1710-00135,0.00,12633.00,R,A&C Weber Uk Ltd,No,,
Http://opendatacommunities.org/id/metropolitan-district-council/leeds,Leeds City Council,31/10/2017,Communities and Environment,Waste Management,Capital,Furniture And Equipment,5,30/10/2017,1710-00136,0.00,1017.60,C,A&C Weber Uk Ltd,No,,
Http://opendatacommunities.org/id/metropolitan-district-council/leeds,Leeds City Council,31/10/2017,Communities and Environment,Waste Management,Supplies and Services,Office Consumables,210,30/10/2017,1710-00137,0.00,127.20,R,A&C Weber Uk Ltd,No,,
Http://opendatacommunities.org/id/metropolitan-district-council/leeds,Leeds City Council,31/10/2017,Resources and Housing,Leeds Building Services,Supplies and Services,Other Hired And Contracted Services,265,04/10/2017,1710-00138,0.00,1057.50,R,A1 Bridge Flue Systems,No,,
Http://opendatacommunities.org/id/metropolitan-district-council/leeds,Leeds City Council,31/10/2017,Resources and Housing,Leeds Building Services,Supplies and Services,Other Hired And Contracted Services,265,04/10/2017,1710-00139,0.00,3039.00,R,A1 Bridge Flue Systems,No,,
Http://opendatacommunities.org/id/metropolitan-district-council/leeds,Leeds City Council,31/10/2017,Resources and Housing,Leeds Building Services,Supplies and Services,Other Hired And Contracted Services,265,04/10/2017,1710-00140,0.00,3540.00,R,A1 Bridge Flue Systems,No,,
Http://opendatacommunities.org/id/metropolitan-district-council/leeds,Leeds City Council,31/10/2017,Resources and Housing,Leeds Building Services,Supplies and Services,Other Hired And Contracted Services,265,13/10/2017,1710-00141,0.00,1836.50,R,A1 Bridge Flue Systems,No,,
Http://opendatacommunities.org/id/metropolitan-district-council/leeds,Leeds City Council,31/10/2017,Resources and Housing,Leeds Building Services,Supplies and Services,Other Hired And Contracted Services,265,13/10/2017,1710-00142,0.00,1423.50,R,A1 Bridge Flue Systems,No,,
Http://opendatacommunities.org/id/metropolitan-district-council/leeds,Leeds City Council,31/10/2017,Resources and Housing,Leeds Building Services,Supplies and Services,Other Hired And Contracted Services,265,16/10/2017,1710-00143,0.00,1057.50,R,A1 Bridge Flue Systems,No,,
Http://opendatacommunities.org/id/metropolitan-district-council/leeds,Leeds City Council,31/10/2017,Resources and Housing,Leeds Building Services,Supplies and Services,Other Hired And Contracted Services,265,24/10/2017,1710-00144,0.00,1488.50,R,A1 Bridge Flue Systems,No,,
Http://opendatacommunities.org/id/metropolitan-district-council/leeds,Leeds City Council,31/10/2017,Adults and Health,Public Health,Third Party Payments,Public Health Commissioned Services,526,11/10/2017,1710-00145,0.00,16.24,R,Aaa Healthcare Ltd,No,,
Http://opendatacommunities.org/id/metropolitan-district-council/leeds,Leeds City Council,31/10/2017,Adults and Health,Social Services Support Services,Transport,Public Transport Expenses,310,04/10/2017,1710-00146,0.00,595.00,R,Ab Cars (Garforth) Ltd,No,,
Http://opendatacommunities.org/id/metropolitan-district-council/leeds,Leeds City Council,31/10/2017,Adults and Health,Social Services Support Services,Transport,Public Transport Expenses,310,04/10/2017,1710-00147,0.00,17.00,R,Ab Cars (Garforth) Ltd,No,,
Http://opendatacommunities.org/id/metropolitan-district-council/leeds,Leeds City Council,31/10/2017,Communities and Environment,Parks and Countryside,Capital,Other Costs,7,17/10/2017,1710-00148,0.00,3000.00,C,Abacus Cost Management Ltd,No,,
Http://opendatacommunities.org/id/metropolitan-district-council/leeds,Leeds City Council,31/10/2017,Communities and Environment,Parks and Countryside,Capital,Other Costs,7,17/10/2017,1710-00149,0.00,3000.00,C,Abacus Cost Management Ltd,No,,
Http://opendatacommunities.org/id/metropolitan-district-council/leeds,Leeds City Council,31/10/2017,Communities and Environment,Car Parking Services  ,Supplies and Services,Postages,212,25/09/2017,1710-00150,0.00,28.67,R,Abacus Express,Yes,,
Http://opendatacommunities.org/id/metropolitan-district-council/leeds,Leeds City Council,31/10/2017,City Development,Planning & Sustainable Development,Supplies and Services,Other Hired And Contracted Services,265,05/10/2017,1710-00151,0.00,62.35,R,Abacus Express Limited,No,,
Http://opendatacommunities.org/id/metropolitan-district-council/leeds,Leeds City Council,31/10/2017,City Development,Planning & Sustainable Development,Supplies and Services,Other Hired And Contracted Services,265,05/10/2017,1710-00152,0.00,15.58,R,Abacus Express Limited,No,,
Http://opendatacommunities.org/id/metropolitan-district-council/leeds,Leeds City Council,31/10/2017,City Development,Highways,Supplies and Services,Postages,212,06/10/2017,1710-00153,0.00,15.59,R,Abacus Express Limited,No,,
Http://opendatacommunities.org/id/metropolitan-district-council/leeds,Leeds City Council,31/10/2017,Children and Families,Safeguarding Targeted & Specialist,Support Services,Legal Disbursements,411,09/10/2017,1710-00154,0.00,31.02,R,Abacus Express Limited,No,,
Http://opendatacommunities.org/id/metropolitan-district-council/leeds,Leeds City Council,31/10/2017,Children and Families,Safeguarding Targeted & Specialist,Support Services,Legal Disbursements,411,09/10/2017,1710-00155,0.00,31.02,R,Abacus Express Limited,No,,
Http://opendatacommunities.org/id/metropolitan-district-council/leeds,Leeds City Council,31/10/2017,Children and Families,Safeguarding Targeted & Specialist,Support Services,Legal Disbursements,411,09/10/2017,1710-00156,0.00,31.02,R,Abacus Express Limited,No,,
Http://opendatacommunities.org/id/metropolitan-district-council/leeds,Leeds City Council,31/10/2017,Children and Families,Safeguarding Targeted & Specialist,Support Services,Legal Disbursements,411,09/10/2017,1710-00157,0.00,31.02,R,Abacus Express Limited,No,,
Http://opendatacommunities.org/id/metropolitan-district-council/leeds,Leeds City Council,31/10/2017,Children and Families,Safeguarding Targeted & Specialist,Support Services,Legal Disbursements,411,09/10/2017,1710-00158,0.00,15.59,R,Abacus Express Limited,No,,
Http://opendatacommunities.org/id/metropolitan-district-council/leeds,Leeds City Council,31/10/2017,Communities and Environment,Communities,Support Services,Legal Disbursements,411,09/10/2017,1710-00159,0.00,15.59,R,Abacus Express Limited,No,,
Http://opendatacommunities.org/id/metropolitan-district-council/leeds,Leeds City Council,31/10/2017,Children and Families,Safeguarding Targeted & Specialist,Support Services,Legal Disbursements,411,09/10/2017,1710-00160,0.00,23.11,R,Abacus Express Limited,No,,
Http://opendatacommunities.org/id/metropolitan-district-council/leeds,Leeds City Council,31/10/2017,City Development,Planning & Sustainable Development,Supplies and Services,Other Hired And Contracted Services,265,18/10/2017,1710-00161,0.00,37.08,R,Abacus Express Limited,No,,
Http://opendatacommunities.org/id/metropolitan-district-council/leeds,Leeds City Council,31/10/2017,City Development,Planning & Sustainable Development,Supplies and Services,Subsistence,256,30/10/2017,1710-00162,0.00,17.73,R,Abacus Express Limited,No,,
Http://opendatacommunities.org/id/metropolitan-district-council/leeds,Leeds City Council,31/10/2017,Adults and Health,Services For Older People - 65 And Over,Third Party Payments,Nursing Care Dementia,574,18/10/2017,1710-00163,0.00,1556.00,R,Abbendon Nursing Home,No,,
Http://opendatacommunities.org/id/metropolitan-district-council/leeds,Leeds City Council,31/10/2017,Adults and Health,Public Health,Third Party Payments,Public Health Commissioned Services,526,16/10/2017,1710-00164,0.00,180.00,R,Abbey Grange Medical Practice,No,,
Http://opendatacommunities.org/id/metropolitan-district-council/leeds,Leeds City Council,31/10/2017,Resources and Housing,Human Resources,Employees,Occupational Health,85,25/10/2017,1710-00165,0.00,25.00,R,Abbey Grange Medical Practice,No,,
Http://opendatacommunities.org/id/metropolitan-district-council/leeds,Leeds City Council,31/10/2017,Children and Families,Safeguarding Targeted & Specialist,Third Party Payments,Section 17,551,06/10/2017,1710-00166,0.00,45.00,R,REDACTED PERSONAL DATA,No,,
Http://opendatacommunities.org/id/metropolitan-district-council/leeds,Leeds City Council,31/10/2017,Children and Families,Safeguarding Targeted & Specialist,Third Party Payments,Services Rendered By Other Organisations,511,27/10/2017,1710-00167,0.00,307.60,R,Abc Daycare And Ozone Out Of School,No,,
Http://opendatacommunities.org/id/metropolitan-district-council/leeds,Leeds City Council,31/10/2017,Children and Families,Safeguarding Targeted & Specialist,Third Party Payments,Services Rendered By Other Organisations,511,27/10/2017,1710-00168,0.00,1588.37,R,Abc Nursery At Lufc,No,,
Http://opendatacommunities.org/id/metropolitan-district-council/leeds,Leeds City Council,31/10/2017,Communities and Environment,Customer Access,Supplies and Services,Other Hired And Contracted Services,265,04/10/2017,1710-00169,0.00,85.00,R,Abdul Wadood Kazizadha,No,,
Http://opendatacommunities.org/id/metropolitan-district-council/leeds,Leeds City Council,31/10/2017,Communities and Environment,Customer Access,Supplies and Services,Other Hired And Contracted Services,265,04/10/2017,1710-00170,0.00,279.50,R,Abdulahad Denha,No,,
Http://opendatacommunities.org/id/metropolitan-district-council/leeds,Leeds City Council,31/10/2017,Children and Families,Safeguarding Targeted & Specialist,Transfer Payments,16 Plus Top Up Allowance,625,06/10/2017,1710-00171,0.00,20.00,R,REDACTED PERSONAL DATA,No,,
Http://opendatacommunities.org/id/metropolitan-district-council/leeds,Leeds City Council,31/10/2017,Children and Families,Safeguarding Targeted & Specialist,Transfer Payments,Leaving Care Allowances,634,13/10/2017,1710-00172,0.00,20.00,R,REDACTED PERSONAL DATA,No,,
Http://opendatacommunities.org/id/metropolitan-district-council/leeds,Leeds City Council,31/10/2017,Children and Families,Safeguarding Targeted & Specialist,Transfer Payments,Leaving Care Allowances,634,20/10/2017,1710-00173,0.00,20.00,R,REDACTED PERSONAL DATA,No,,
Http://opendatacommunities.org/id/metropolitan-district-council/leeds,Leeds City Council,31/10/2017,Children and Families,Safeguarding Targeted & Specialist,Transfer Payments,Leaving Care Allowances,634,27/10/2017,1710-00174,0.00,20.00,R,REDACTED PERSONAL DATA,No,,
Http://opendatacommunities.org/id/metropolitan-district-council/leeds,Leeds City Council,31/10/2017,City Development,Economic Development,Supplies and Services,Publication And Promotion,267,23/10/2017,1710-00175,0.00,3750.00,R,Aberfield Communications Limited,No,,
Http://opendatacommunities.org/id/metropolitan-district-council/leeds,Leeds City Council,31/10/2017,Adults and Health,Services For Older People - 65 And Over,Third Party Payments,Nursing Home,570,18/10/2017,1710-00176,0.00,36104.93,R,Aberford Hall,No,,
Http://opendatacommunities.org/id/metropolitan-district-council/leeds,Leeds City Council,31/10/2017,Adults and Health,Services For Older People - 65 And Over,Third Party Payments,Nursing Care Dementia,574,18/10/2017,1710-00177,0.00,2277.62,R,Aberford Hall,No,,
Http://opendatacommunities.org/id/metropolitan-district-council/leeds,Leeds City Council,31/10/2017,Adults and Health,Services For Older People - 65 And Over,Third Party Payments,Residential,580,18/10/2017,1710-00178,0.00,4374.56,R,Aberford Hall,No,,
Http://opendatacommunities.org/id/metropolitan-district-council/leeds,Leeds City Council,31/10/2017,Adults and Health,Services For Older People - 65 And Over,Third Party Payments,Nursing Home,570,19/10/2017,1710-00179,0.00,130.70,R,Aberford Hall,No,,
Http://opendatacommunities.org/id/metropolitan-district-council/leeds,Leeds City Council,31/10/2017,Resources and Housing,Leeds Building Services,Supplies and Services,Operational Materials,205,06/10/2017,1710-00180,0.00,250.45,R,Abi Garage Doors Ltd,No,,
Http://opendatacommunities.org/id/metropolitan-district-council/leeds,Leeds City Council,31/10/2017,Resources and Housing,Leeds Building Services,Supplies and Services,Operational Materials,205,25/10/2017,1710-00181,0.00,250.45,R,Abi Garage Doors Ltd,No,,
Http://opendatacommunities.org/id/metropolitan-district-council/leeds,Leeds City Council,31/10/2017,Resources and Housing,Leeds Building Services,Supplies and Services,Operational Materials,205,25/10/2017,1710-00182,0.00,250.45,R,Abi Garage Doors Ltd,No,,
Http://opendatacommunities.org/id/metropolitan-district-council/leeds,Leeds City Council,31/10/2017,Resources and Housing,Leeds Building Services,Supplies and Services,Operational Materials,205,26/10/2017,1710-00183,0.00,250.45,R,Abi Garage Doors Ltd,No,,
Http://opendatacommunities.org/id/metropolitan-district-council/leeds,Leeds City Council,31/10/2017,Resources and Housing,Leeds Building Services,Supplies and Services,Operational Materials,205,26/10/2017,1710-00184,0.00,20.00,R,Abi Garage Doors Ltd,No,,
Http://opendatacommunities.org/id/metropolitan-district-council/leeds,Leeds City Council,31/10/2017,Strategic Landlord,Housing Management,Supplies and Services,Bought In Professional Services,277,24/10/2017,1710-00185,0.00,596.00,R,Ability Smart Limited,No,,
Http://opendatacommunities.org/id/metropolitan-district-council/leeds,Leeds City Council,31/10/2017,Communities and Environment,Parks and Countryside,Supplies and Services,Operational Materials,205,20/10/2017,1710-00186,0.00,735.00,R,Abram Pulman & Sons Limited,No,,
Http://opendatacommunities.org/id/metropolitan-district-council/leeds,Leeds City Council,31/10/2017,City Development,Libraries  Arts & Heritage,Supplies and Services,Other Hired And Contracted Services,265,27/10/2017,1710-00187,0.00,6519.25,R,Absolute Museum & Gallery Products Ltd,No,,
Http://opendatacommunities.org/id/metropolitan-district-council/leeds,Leeds City Council,31/10/2017,Children and Families,Safeguarding Targeted & Specialist  ,Supplies and Services,Licences,266,15/09/2017,1710-00188,0.00,20.75,R,Abu Bakar Ltd,Yes,,
Http://opendatacommunities.org/id/metropolitan-district-council/leeds,Leeds City Council,31/10/2017,Children and Families,Safeguarding Targeted & Specialist  ,Supplies and Services,Licences,266,15/09/2017,1710-00189,0.00,10.00,R,Abu Bakar Ltd,Yes,,
Http://opendatacommunities.org/id/metropolitan-district-council/leeds,Leeds City Council,31/10/2017,Children and Families,Safeguarding Targeted & Specialist,Employees,Agency Staff,8,03/10/2017,1710-00190,0.00,620.00,R,Academic Appointments Ltd,No,,
Http://opendatacommunities.org/id/metropolitan-district-council/leeds,Leeds City Council,31/10/2017,Children and Families,Safeguarding Targeted & Specialist,Employees,Agency Staff,8,17/10/2017,1710-00191,0.00,2400.00,R,Academic Appointments Ltd,No,,
Http://opendatacommunities.org/id/metropolitan-district-council/leeds,Leeds City Council,31/10/2017,Resources and Housing,Strategic Housing Partnerships,Capital,Construction,3,19/10/2017,1710-00192,0.00,1728.00,C,Accent Homes Ltd,No,,
Http://opendatacommunities.org/id/metropolitan-district-council/leeds,Leeds City Council,31/10/2017,Communities and Environment,Elections  Licensing and Registration,Supplies and Services,Other Hired And Contracted Services,265,06/10/2017,1710-00193,0.00,150.00,R,Access Committee For Leeds,No,,
Http://opendatacommunities.org/id/metropolitan-district-council/leeds,Leeds City Council,31/10/2017,Strategic Landlord,Housing Management,Supplies and Services,Operational Materials,205,05/10/2017,1710-00194,0.00,34.20,R,Access Locksmiths (Leeds) Limited,No,,
Http://opendatacommunities.org/id/metropolitan-district-council/leeds,Leeds City Council,31/10/2017,Strategic Landlord,Property and Contracts,Premises,General Maintenance,104,05/10/2017,1710-00195,0.00,353.40,R,Access Locksmiths (Leeds) Limited,No,,
Http://opendatacommunities.org/id/metropolitan-district-council/leeds,Leeds City Council,31/10/2017,Strategic Landlord,Property and Contracts,Premises,General Maintenance,104,05/10/2017,1710-00196,0.00,228.00,R,Access Locksmiths (Leeds) Limited,No,,
Http://opendatacommunities.org/id/metropolitan-district-council/leeds,Leeds City Council,31/10/2017,Resources and Housing,Leeds Building Services,Supplies and Services,Other Hired And Contracted Services,265,06/10/2017,1710-00197,0.00,2785.20,R,Access Locksmiths (Leeds) Limited,No,,
Http://opendatacommunities.org/id/metropolitan-district-council/leeds,Leeds City Council,31/10/2017,Resources and Housing,Leeds Building Services,Supplies and Services,Operational Materials,205,06/10/2017,1710-00198,0.00,21.78,R,Access Locksmiths (Leeds) Limited,No,,
Http://opendatacommunities.org/id/metropolitan-district-council/leeds,Leeds City Council,31/10/2017,Resources and Housing,Leeds Building Services,Supplies and Services,Operational Materials,205,06/10/2017,1710-00199,0.00,102.20,R,Access Locksmiths (Leeds) Limited,No,,
Http://opendatacommunities.org/id/metropolitan-district-council/leeds,Leeds City Council,31/10/2017,Resources and Housing,Leeds Building Services,Supplies and Services,Operational Materials,205,06/10/2017,1710-00200,0.00,37.76,R,Access Locksmiths (Leeds) Limited,No,,
Http://opendatacommunities.org/id/metropolitan-district-council/leeds,Leeds City Council,31/10/2017,Resources and Housing,Leeds Building Services,Supplies and Services,Operational Materials,205,06/10/2017,1710-00201,0.00,85.98,R,Access Locksmiths (Leeds) Limited,No,,
Http://opendatacommunities.org/id/metropolitan-district-council/leeds,Leeds City Council,31/10/2017,Resources and Housing,Leeds Building Services,Supplies and Services,Operational Materials,205,06/10/2017,1710-00202,0.00,42.90,R,Access Locksmiths (Leeds) Limited,No,,
Http://opendatacommunities.org/id/metropolitan-district-council/leeds,Leeds City Council,31/10/2017,Resources and Housing,Leeds Building Services,Supplies and Services,Operational Materials,205,06/10/2017,1710-00203,0.00,16.20,R,Access Locksmiths (Leeds) Limited,No,,
Http://opendatacommunities.org/id/metropolitan-district-council/leeds,Leeds City Council,31/10/2017,Communities and Environment,Cleaner Neighbourhood Teams,Supplies and Services,Operational Furniture And Equipment,203,10/10/2017,1710-00204,0.00,14.94,R,Access Locksmiths (Leeds) Limited,No,,
Http://opendatacommunities.org/id/metropolitan-district-council/leeds,Leeds City Council,31/10/2017,Resources and Housing,Commercial Services,Supplies and Services,Operational Furniture And Equipment,203,11/10/2017,1710-00205,0.00,535.50,R,Access Locksmiths (Leeds) Limited,No,,
Http://opendatacommunities.org/id/metropolitan-district-council/leeds,Leeds City Council,31/10/2017,Resources and Housing,Commercial Services,Supplies and Services,Operational Materials,205,11/10/2017,1710-00206,0.00,268.64,R,Access Locksmiths (Leeds) Limited,No,,
Http://opendatacommunities.org/id/metropolitan-district-council/leeds,Leeds City Council,31/10/2017,Resources and Housing,Commercial Services,Supplies and Services,Operational Furniture And Equipment,203,11/10/2017,1710-00207,0.00,195.50,R,Access Locksmiths (Leeds) Limited,No,,
Http://opendatacommunities.org/id/metropolitan-district-council/leeds,Leeds City Council,31/10/2017,Resources and Housing,Commercial Services,Supplies and Services,Operational Furniture And Equipment,203,11/10/2017,1710-00208,0.00,40.36,R,Access Locksmiths (Leeds) Limited,No,,
Http://opendatacommunities.org/id/metropolitan-district-council/leeds,Leeds City Council,31/10/2017,Resources and Housing,Commercial Services,Supplies and Services,Operational Furniture And Equipment,203,11/10/2017,1710-00209,0.00,360.00,R,Access Locksmiths (Leeds) Limited,No,,
Http://opendatacommunities.org/id/metropolitan-district-council/leeds,Leeds City Council,31/10/2017,Strategic Landlord,Property and Contracts,Premises,General Maintenance,104,11/10/2017,1710-00210,0.00,673.20,R,Access Locksmiths (Leeds) Limited,No,,
Http://opendatacommunities.org/id/metropolitan-district-council/leeds,Leeds City Council,31/10/2017,Strategic Landlord,Property and Contracts,Premises,General Maintenance,104,11/10/2017,1710-00211,0.00,41.10,R,Access Locksmiths (Leeds) Limited,No,,
Http://opendatacommunities.org/id/metropolitan-district-council/leeds,Leeds City Council,31/10/2017,Strategic Landlord,Property and Contracts,Premises,General Maintenance,104,11/10/2017,1710-00212,0.00,130.13,R,Access Locksmiths (Leeds) Limited,No,,
Http://opendatacommunities.org/id/metropolitan-district-council/leeds,Leeds City Council,31/10/2017,Resources and Housing,Leeds Building Services,Supplies and Services,Operational Furniture And Equipment,203,12/10/2017,1710-00213,0.00,12.50,R,Access Locksmiths (Leeds) Limited,No,,
Http://opendatacommunities.org/id/metropolitan-district-council/leeds,Leeds City Council,31/10/2017,Resources and Housing,Leeds Building Services,Supplies and Services,Operational Materials,205,13/10/2017,1710-00214,0.00,264.74,R,Access Locksmiths (Leeds) Limited,No,,
Http://opendatacommunities.org/id/metropolitan-district-council/leeds,Leeds City Council,31/10/2017,Resources and Housing,Leeds Building Services,Supplies and Services,Operational Materials,205,13/10/2017,1710-00215,0.00,37.44,R,Access Locksmiths (Leeds) Limited,No,,
Http://opendatacommunities.org/id/metropolitan-district-council/leeds,Leeds City Council,31/10/2017,Resources and Housing,Leeds Building Services,Supplies and Services,Operational Materials,205,13/10/2017,1710-00216,0.00,51.38,R,Access Locksmiths (Leeds) Limited,No,,
Http://opendatacommunities.org/id/metropolitan-district-council/leeds,Leeds City Council,31/10/2017,Resources and Housing,Leeds Building Services,Supplies and Services,Operational Materials,205,13/10/2017,1710-00217,0.00,25.48,R,Access Locksmiths (Leeds) Limited,No,,
Http://opendatacommunities.org/id/metropolitan-district-council/leeds,Leeds City Council,31/10/2017,Resources and Housing,Leeds Building Services,Supplies and Services,Operational Materials,205,13/10/2017,1710-00218,0.00,6.75,R,Access Locksmiths (Leeds) Limited,No,,
Http://opendatacommunities.org/id/metropolitan-district-council/leeds,Leeds City Council,31/10/2017,Resources and Housing,Leeds Building Services,Supplies and Services,Operational Materials,205,13/10/2017,1710-00219,0.00,61.48,R,Access Locksmiths (Leeds) Limited,No,,
Http://opendatacommunities.org/id/metropolitan-district-council/leeds,Leeds City Council,31/10/2017,Resources and Housing,Leeds Building Services,Supplies and Services,Operational Materials,205,13/10/2017,1710-00220,0.00,125.62,R,Access Locksmiths (Leeds) Limited,No,,
Http://opendatacommunities.org/id/metropolitan-district-council/leeds,Leeds City Council,31/10/2017,Resources and Housing,Leeds Building Services,Supplies and Services,Operational Materials,205,13/10/2017,1710-00221,0.00,149.40,R,Access Locksmiths (Leeds) Limited,No,,
Http://opendatacommunities.org/id/metropolitan-district-council/leeds,Leeds City Council,31/10/2017,Resources and Housing,Leeds Building Services,Supplies and Services,Operational Materials,205,13/10/2017,1710-00222,0.00,17.51,R,Access Locksmiths (Leeds) Limited,No,,
Http://opendatacommunities.org/id/metropolitan-district-council/leeds,Leeds City Council,31/10/2017,Resources and Housing,Leeds Building Services,Supplies and Services,Operational Materials,205,13/10/2017,1710-00223,0.00,13.50,R,Access Locksmiths (Leeds) Limited,No,,
Http://opendatacommunities.org/id/metropolitan-district-council/leeds,Leeds City Council,31/10/2017,Communities and Environment,Cleaner Neighbourhood Teams,Supplies and Services,Operational Furniture And Equipment,203,18/10/2017,1710-00224,0.00,48.44,R,Access Locksmiths (Leeds) Limited,No,,
Http://opendatacommunities.org/id/metropolitan-district-council/leeds,Leeds City Council,31/10/2017,Strategic Landlord,Property and Contracts,Premises,General Maintenance,104,24/10/2017,1710-00225,0.00,215.02,R,Access Locksmiths (Leeds) Limited,No,,
Http://opendatacommunities.org/id/metropolitan-district-council/leeds,Leeds City Council,31/10/2017,Strategic Landlord,Property and Contracts,Premises,General Maintenance,104,24/10/2017,1710-00226,0.00,249.22,R,Access Locksmiths (Leeds) Limited,No,,
Http://opendatacommunities.org/id/metropolitan-district-council/leeds,Leeds City Council,31/10/2017,Strategic Landlord,Property and Contracts,Premises,General Maintenance,104,24/10/2017,1710-00227,0.00,201.60,R,Access Locksmiths (Leeds) Limited,No,,
Http://opendatacommunities.org/id/metropolitan-district-council/leeds,Leeds City Council,31/10/2017,Resources and Housing,Leeds Building Services,Supplies and Services,Operational Materials,205,24/10/2017,1710-00228,0.00,251.24,R,Access Locksmiths (Leeds) Limited,No,,
Http://opendatacommunities.org/id/metropolitan-district-council/leeds,Leeds City Council,31/10/2017,Resources and Housing,Leeds Building Services,Supplies and Services,Operational Materials,205,24/10/2017,1710-00229,0.00,94.17,R,Access Locksmiths (Leeds) Limited,No,,
Http://opendatacommunities.org/id/metropolitan-district-council/leeds,Leeds City Council,31/10/2017,Resources and Housing,Leeds Building Services,Supplies and Services,Operational Materials,205,24/10/2017,1710-00230,0.00,33.66,R,Access Locksmiths (Leeds) Limited,No,,
Http://opendatacommunities.org/id/metropolitan-district-council/leeds,Leeds City Council,31/10/2017,Resources and Housing,Leeds Building Services,Supplies and Services,Operational Materials,205,24/10/2017,1710-00231,0.00,180.60,R,Access Locksmiths (Leeds) Limited,No,,
Http://opendatacommunities.org/id/metropolitan-district-council/leeds,Leeds City Council,31/10/2017,Resources and Housing,Leeds Building Services,Supplies and Services,Operational Materials,205,24/10/2017,1710-00232,0.00,77.55,R,Access Locksmiths (Leeds) Limited,No,,
Http://opendatacommunities.org/id/metropolitan-district-council/leeds,Leeds City Council,31/10/2017,Strategic Landlord,Property and Contracts,Premises,General Maintenance,104,26/10/2017,1710-00233,0.00,204.10,R,Access Locksmiths (Leeds) Limited,No,,
Http://opendatacommunities.org/id/metropolitan-district-council/leeds,Leeds City Council,31/10/2017,Strategic Landlord,Property and Contracts,Premises,General Maintenance,104,26/10/2017,1710-00234,0.00,114.00,R,Access Locksmiths (Leeds) Limited,No,,
Http://opendatacommunities.org/id/metropolitan-district-council/leeds,Leeds City Council,31/10/2017,Strategic Landlord,Housing Management,Premises,General Maintenance,104,26/10/2017,1710-00235,0.00,5.00,R,Access Locksmiths (Leeds) Limited,No,,
Http://opendatacommunities.org/id/metropolitan-district-council/leeds,Leeds City Council,31/10/2017,Strategic Landlord,Housing Management,Supplies and Services,Resaleable Materials,204,26/10/2017,1710-00236,0.00,50.00,R,Access Locksmiths (Leeds) Limited,No,,
Http://opendatacommunities.org/id/metropolitan-district-council/leeds,Leeds City Council,31/10/2017,Strategic Landlord,Housing Management,Income,Other Income,973,26/10/2017,1710-00237,0.00,55.00,R,Access Locksmiths (Leeds) Limited,No,,
Http://opendatacommunities.org/id/metropolitan-district-council/leeds,Leeds City Council,31/10/2017,Strategic Landlord,Housing Management,Premises,General Maintenance,104,27/10/2017,1710-00238,0.00,10.00,R,Access Locksmiths (Leeds) Limited,No,,
Http://opendatacommunities.org/id/metropolitan-district-council/leeds,Leeds City Council,31/10/2017,Strategic Landlord,Housing Management,Premises,General Maintenance,104,27/10/2017,1710-00239,0.00,376.20,R,Access Locksmiths (Leeds) Limited,No,,
Http://opendatacommunities.org/id/metropolitan-district-council/leeds,Leeds City Council,31/10/2017,Strategic Landlord,Property and Contracts,Premises,General Maintenance,104,27/10/2017,1710-00240,0.00,57.00,R,Access Locksmiths (Leeds) Limited,No,,
Http://opendatacommunities.org/id/metropolitan-district-council/leeds,Leeds City Council,31/10/2017,City Development,Libraries  Arts & Heritage,Supplies and Services,Bought In Professional Services,277,27/10/2017,1710-00241,0.00,6400.00,R,Access Moving Image Ltd,No,,
Http://opendatacommunities.org/id/metropolitan-district-council/leeds,Leeds City Council,31/10/2017,Resources and Housing,Leeds Building Services,Supplies and Services,Other Hired And Contracted Services,265,12/10/2017,1710-00242,0.00,183.00,R,Access Opening Systems Limited,No,,
Http://opendatacommunities.org/id/metropolitan-district-council/leeds,Leeds City Council,31/10/2017,Insurance,Insurance,Supplies and Services,Insurance Claims,248,02/10/2017,1710-00243,0.00,720.00,R,Accident Advice Solicitors,No,,
Http://opendatacommunities.org/id/metropolitan-district-council/leeds,Leeds City Council,31/10/2017,Insurance,Insurance,Supplies and Services,Insurance Claims,248,06/10/2017,1710-00244,0.00,854.00,R,Accident Advice Solicitors,No,,
Http://opendatacommunities.org/id/metropolitan-district-council/leeds,Leeds City Council,31/10/2017,Insurance,Insurance,Supplies and Services,Insurance Claims,248,19/10/2017,1710-00245,0.00,45.40,R,Accident Advice Solicitors,No,,
Http://opendatacommunities.org/id/metropolitan-district-council/leeds,Leeds City Council,31/10/2017,Insurance,Insurance,Supplies and Services,Insurance Claims,248,12/10/2017,1710-00246,0.00,11209.82,R,Accountant General Of The Senior Courts,No,,
Http://opendatacommunities.org/id/metropolitan-district-council/leeds,Leeds City Council,31/10/2017,City Development,Recreation,Transport,External Hire -Occasional,304,03/10/2017,1710-00247,0.00,124.50,R,Ace Container Services Limited,No,,
Http://opendatacommunities.org/id/metropolitan-district-council/leeds,Leeds City Council,31/10/2017,City Development,Libraries  Arts & Heritage,Supplies and Services,Other Hired And Contracted Services,265,23/10/2017,1710-00248,0.00,45.00,R,Ace Container Services Limited,No,,
Http://opendatacommunities.org/id/metropolitan-district-council/leeds,Leeds City Council,31/10/2017,City Development,Recreation,Supplies and Services,Other Hired And Contracted Services,265,27/10/2017,1710-00249,0.00,90.00,R,Ace Container Services Limited,No,,
Http://opendatacommunities.org/id/metropolitan-district-council/leeds,Leeds City Council,31/10/2017,Children and Families,Learning Skills & Universal,Supplies and Services,Advertising,211,04/10/2017,1710-00250,0.00,200.00,R,Ace Leaflet Distribution & Print Ltd,No,,
Http://opendatacommunities.org/id/metropolitan-district-council/leeds,Leeds City Council,31/10/2017,Communities and Environment,Waste Management,Supplies and Services,Advertising,211,09/10/2017,1710-00251,0.00,8850.00,R,Ace Leaflet Distribution & Print Ltd,No,,
Http://opendatacommunities.org/id/metropolitan-district-council/leeds,Leeds City Council,31/10/2017,Children and Families,Safeguarding Targeted & Specialist,Supplies and Services,Advertising,211,30/10/2017,1710-00252,0.00,2708.00,R,Ace Leaflet Distribution & Print Ltd,No,,
Http://opendatacommunities.org/id/metropolitan-district-council/leeds,Leeds City Council,31/10/2017,Communities and Environment,Waste Management,Supplies and Services,Advertising,211,31/10/2017,1710-00253,0.00,471.82,R,Ace Leaflet Distribution & Print Ltd,No,,
Http://opendatacommunities.org/id/metropolitan-district-council/leeds,Leeds City Council,31/10/2017,Children and Families,Partnerships,Third Party Payments,SEN Placements,566,17/10/2017,1710-00254,0.00,17139.00,R,Ackworth School,No,,
Http://opendatacommunities.org/id/metropolitan-district-council/leeds,Leeds City Council,31/10/2017,Resources and Housing,Commercial Services,Supplies and Services,Operational Furniture And Equipment,203,05/10/2017,1710-00255,0.00,1440.00,R,Acme Facilities Group Ltd,No,,
Http://opendatacommunities.org/id/metropolitan-district-council/leeds,Leeds City Council,31/10/2017,Children and Families,Safeguarding Targeted & Specialist,Supplies and Services,Operational Furniture And Equipment,203,05/10/2017,1710-00256,0.00,2995.00,R,Acme Facilities Group Ltd,No,,
Http://opendatacommunities.org/id/metropolitan-district-council/leeds,Leeds City Council,31/10/2017,Resources and Housing,Commercial Services,Supplies and Services,Operational Furniture And Equipment,203,20/10/2017,1710-00257,0.00,1885.00,R,Acme Facilities Group Ltd,No,,
Http://opendatacommunities.org/id/metropolitan-district-council/leeds,Leeds City Council,31/10/2017,Children and Families,Partnerships,Third Party Payments,SEN Placements,566,18/10/2017,1710-00258,0.00,18138.67,R,Acorn Care And Education Ltd,No,,
Http://opendatacommunities.org/id/metropolitan-district-council/leeds,Leeds City Council,31/10/2017,Adults and Health,Services For Older People - 65 And Over,Third Party Payments,Nursing Care Dementia,574,18/10/2017,1710-00259,0.00,1546.28,R,Acorn Nursing Home,No,,
Http://opendatacommunities.org/id/metropolitan-district-council/leeds,Leeds City Council,31/10/2017,City Development,Libraries  Arts & Heritage,Supplies and Services,Other Hired And Contracted Services,265,10/10/2017,1710-00260,0.00,-130.00,R,Acorn Scaffolding (Yorkshire) Ltd,No,,
Http://opendatacommunities.org/id/metropolitan-district-council/leeds,Leeds City Council,31/10/2017,City Development,Libraries  Arts & Heritage,Supplies and Services,Other Hired And Contracted Services,265,10/10/2017,1710-00261,0.00,900.00,R,Acorn Scaffolding (Yorkshire) Ltd,No,,
Http://opendatacommunities.org/id/metropolitan-district-council/leeds,Leeds City Council,31/10/2017,City Development,Libraries  Arts & Heritage,Supplies and Services,Other Hired And Contracted Services,265,13/10/2017,1710-00262,0.00,5028.00,R,Acorn Scaffolding (Yorkshire) Ltd,No,,
Http://opendatacommunities.org/id/metropolitan-district-council/leeds,Leeds City Council,31/10/2017,City Development,Libraries  Arts & Heritage,Transport,Hire Of Movable Plant & Machinery,315,25/10/2017,1710-00263,0.00,375.00,R,Acorn Scaffolding (Yorkshire) Ltd,No,,
Http://opendatacommunities.org/id/metropolitan-district-council/leeds,Leeds City Council,31/10/2017,City Development,Libraries  Arts & Heritage,Supplies and Services,Other Hired And Contracted Services,265,26/10/2017,1710-00264,0.00,4440.00,R,Acorn Scaffolding (Yorkshire) Ltd,No,,
Http://opendatacommunities.org/id/metropolitan-district-council/leeds,Leeds City Council,31/10/2017,Adults and Health,Other Adult Services,Third Party Payments,Residential - Drugs & Alcohol,583,10/10/2017,1710-00265,0.00,1989.98,R,Acorn Treatment & Housing,No,,
Http://opendatacommunities.org/id/metropolitan-district-council/leeds,Leeds City Council,31/10/2017,Adults and Health,Other Adult Services,Third Party Payments,Residential - Drugs & Alcohol,583,19/10/2017,1710-00266,0.00,1989.98,R,Acorn Treatment & Housing,No,,
Http://opendatacommunities.org/id/metropolitan-district-council/leeds,Leeds City Council,31/10/2017,City Development,Highways,Supplies and Services,Operational Furniture And Equipment,203,17/10/2017,1710-00267,0.00,338.00,R,Acoustic Calibration Services Limited,No,,
Http://opendatacommunities.org/id/metropolitan-district-council/leeds,Leeds City Council,31/10/2017,Adults and Health,Services For Adults Under 65 Mental/Dis,Third Party Payments,Residential,580,18/10/2017,1710-00268,0.00,139.28,R,Acre Green,No,,
Http://opendatacommunities.org/id/metropolitan-district-council/leeds,Leeds City Council,31/10/2017,Adults and Health,Services For Older People - 65 And Over,Third Party Payments,Nursing Home,570,18/10/2017,1710-00269,0.00,51660.70,R,Acre Green,No,,
Http://opendatacommunities.org/id/metropolitan-district-council/leeds,Leeds City Council,31/10/2017,Adults and Health,Services For Older People - 65 And Over,Third Party Payments,Nursing Care Dementia,574,18/10/2017,1710-00270,0.00,1891.38,R,Acre Green,No,,
Http://opendatacommunities.org/id/metropolitan-district-council/leeds,Leeds City Council,31/10/2017,Adults and Health,Services For Older People - 65 And Over,Third Party Payments,Residential,580,18/10/2017,1710-00271,0.00,8677.79,R,Acre Green,No,,
Http://opendatacommunities.org/id/metropolitan-district-council/leeds,Leeds City Council,31/10/2017,Adults and Health,Services For Older People Under 65 P/Dis,Third Party Payments,Nursing Home,570,18/10/2017,1710-00272,0.00,8056.90,R,Acre Green,No,,
Http://opendatacommunities.org/id/metropolitan-district-council/leeds,Leeds City Council,31/10/2017,Adults and Health,Services For Older People Under 65 P/Dis,Third Party Payments,Residential,580,18/10/2017,1710-00273,0.00,4634.34,R,Acre Green,No,,
Http://opendatacommunities.org/id/metropolitan-district-council/leeds,Leeds City Council,31/10/2017,Adults and Health,Services For Older People - 65 And Over,Third Party Payments,Nursing Care Dementia,574,26/10/2017,1710-00274,0.00,1062.78,R,Acre Green,No,,
Http://opendatacommunities.org/id/metropolitan-district-council/leeds,Leeds City Council,31/10/2017,Adults and Health,Services For Older People - 65 And Over,Third Party Payments,Residential,580,26/10/2017,1710-00275,0.00,337.30,R,Acre Green,No,,
Http://opendatacommunities.org/id/metropolitan-district-council/leeds,Leeds City Council,31/10/2017,Adults and Health,Services For Older People - 65 And Over,Third Party Payments,Residential,580,31/10/2017,1710-00276,0.00,262.00,R,Acre Green,No,,
Http://opendatacommunities.org/id/metropolitan-district-council/leeds,Leeds City Council,31/10/2017,Adults and Health,Services For Older People - 65 And Over,Third Party Payments,Residential,580,31/10/2017,1710-00277,0.00,481.86,R,Acre Green,No,,
Http://opendatacommunities.org/id/metropolitan-district-council/leeds,Leeds City Council,31/10/2017,Children and Families,Safeguarding Targeted & Specialist,Third Party Payments,Services Rendered By Other Organisations,511,27/10/2017,1710-00278,0.00,1435.90,R,Acre Wood Day Nursery,No,,
Http://opendatacommunities.org/id/metropolitan-district-council/leeds,Leeds City Council,31/10/2017,Resources and Housing,Leeds Building Services,Supplies and Services,Other Hired And Contracted Services,265,10/10/2017,1710-00279,0.00,699.00,R,Acs (Uk) Ltd,No,,
Http://opendatacommunities.org/id/metropolitan-district-council/leeds,Leeds City Council,31/10/2017,Resources and Housing,Leeds Building Services,Supplies and Services,Operational Materials,205,11/10/2017,1710-00280,0.00,1609.80,R,Actavo Uk Limited,No,,
Http://opendatacommunities.org/id/metropolitan-district-council/leeds,Leeds City Council,31/10/2017,Resources and Housing,Leeds Building Services,Supplies and Services,Operational Materials,205,26/10/2017,1710-00281,0.00,19.00,R,Actavo Uk Limited,No,,
Http://opendatacommunities.org/id/metropolitan-district-council/leeds,Leeds City Council,31/10/2017,Adults and Health,Services For Adults Under 65 Mental/Dis,Third Party Payments,Fees - Level 4,520,12/10/2017,1710-00282,0.00,500.00,R,Action First Recruitment Ltd,No,,
Http://opendatacommunities.org/id/metropolitan-district-council/leeds,Leeds City Council,31/10/2017,Adults and Health,Services For Adults Under 65 Mental/Dis,Third Party Payments,Fees - Level 4,520,12/10/2017,1710-00283,0.00,500.00,R,Action First Recruitment Ltd,No,,
Http://opendatacommunities.org/id/metropolitan-district-council/leeds,Leeds City Council,31/10/2017,Children and Families,Safeguarding Targeted & Specialist,Third Party Payments,Independent Fostering Agencies,509,17/10/2017,1710-00284,0.00,-7865.01,R,Action For Children,No,,
Http://opendatacommunities.org/id/metropolitan-district-council/leeds,Leeds City Council,31/10/2017,Children and Families,Safeguarding Targeted & Specialist,Third Party Payments,Independent Fostering Agencies,509,17/10/2017,1710-00285,0.00,7865.01,R,Action For Children,No,,
Http://opendatacommunities.org/id/metropolitan-district-council/leeds,Leeds City Council,31/10/2017,Children and Families,Safeguarding Targeted & Specialist,Third Party Payments,Independent Fostering Agencies,509,26/10/2017,1710-00286,0.00,4622.40,R,Action For Children,No,,
Http://opendatacommunities.org/id/metropolitan-district-council/leeds,Leeds City Council,31/10/2017,Children and Families,Safeguarding Targeted & Specialist,Third Party Payments,Independent Fostering Agencies,509,16/10/2017,1710-00287,0.00,-5150.34,R,Action For Children Services Ltd,No,,
Http://opendatacommunities.org/id/metropolitan-district-council/leeds,Leeds City Council,31/10/2017,Children and Families,Safeguarding Targeted & Specialist,Third Party Payments,Independent Fostering Agencies,509,16/10/2017,1710-00288,0.00,5150.34,R,Action For Children Services Ltd,No,,
Http://opendatacommunities.org/id/metropolitan-district-council/leeds,Leeds City Council,31/10/2017,Communities and Environment,Communities,Supplies and Services,'Well Being' Large Grants Projects,230,04/10/2017,1710-00289,0.00,1445.00,R,Active Community Education In Sport Ltd,No,,
Http://opendatacommunities.org/id/metropolitan-district-council/leeds,Leeds City Council,31/10/2017,Children and Families,Safeguarding Targeted & Specialist,Third Party Payments,Services Rendered By Other Organisations,511,27/10/2017,1710-00290,0.00,254.56,R,Active Kids Yeadon Llp,No,,
Http://opendatacommunities.org/id/metropolitan-district-council/leeds,Leeds City Council,31/10/2017,Communities and Environment,Waste Management,Supplies and Services,Recycling & Reuse Charges,234,02/10/2017,1710-00291,0.00,3810.29,R,Acumen Waste Services Ltd,No,,
Http://opendatacommunities.org/id/metropolitan-district-council/leeds,Leeds City Council,31/10/2017,Communities and Environment,Cleaner Neighbourhood Teams,Supplies and Services,Other Hired And Contracted Services,265,02/10/2017,1710-00292,0.00,390.00,R,Acumen Waste Services Ltd,No,,
Http://opendatacommunities.org/id/metropolitan-district-council/leeds,Leeds City Council,31/10/2017,Communities and Environment,Cleaner Neighbourhood Teams,Supplies and Services,Bought In Professional Services,277,02/10/2017,1710-00293,0.00,110.00,R,Acumen Waste Services Ltd,No,,
Http://opendatacommunities.org/id/metropolitan-district-council/leeds,Leeds City Council,31/10/2017,Communities and Environment,Cleaner Neighbourhood Teams,Premises,Removal Of Workplace Waste,126,03/10/2017,1710-00294,0.00,220.00,R,Acumen Waste Services Ltd,No,,
Http://opendatacommunities.org/id/metropolitan-district-council/leeds,Leeds City Council,31/10/2017,Communities and Environment,Cleaner Neighbourhood Teams,Premises,Removal Of Workplace Waste,126,03/10/2017,1710-00295,0.00,220.00,R,Acumen Waste Services Ltd,No,,
Http://opendatacommunities.org/id/metropolitan-district-council/leeds,Leeds City Council,31/10/2017,Communities and Environment,Cleaner Neighbourhood Teams,Premises,Removal Of Workplace Waste,126,03/10/2017,1710-00296,0.00,220.00,R,Acumen Waste Services Ltd,No,,
Http://opendatacommunities.org/id/metropolitan-district-council/leeds,Leeds City Council,31/10/2017,Communities and Environment,Waste Management,Supplies and Services,Recycling & Reuse Charges,234,03/10/2017,1710-00297,0.00,3808.28,R,Acumen Waste Services Ltd,No,,
Http://opendatacommunities.org/id/metropolitan-district-council/leeds,Leeds City Council,31/10/2017,Communities and Environment,Waste Management,Supplies and Services,Recycling & Reuse Charges,234,03/10/2017,1710-00298,0.00,6703.35,R,Acumen Waste Services Ltd,No,,
Http://opendatacommunities.org/id/metropolitan-district-council/leeds,Leeds City Council,31/10/2017,Communities and Environment,Cleaner Neighbourhood Teams,Premises,Removal Of Workplace Waste,126,11/10/2017,1710-00299,0.00,110.00,R,Acumen Waste Services Ltd,No,,
Http://opendatacommunities.org/id/metropolitan-district-council/leeds,Leeds City Council,31/10/2017,Communities and Environment,Cleaner Neighbourhood Teams,Supplies and Services,Bought In Professional Services,277,13/10/2017,1710-00300,0.00,110.00,R,Acumen Waste Services Ltd,No,,
Http://opendatacommunities.org/id/metropolitan-district-council/leeds,Leeds City Council,31/10/2017,Communities and Environment,Cleaner Neighbourhood Teams,Premises,Removal Of Workplace Waste,126,25/10/2017,1710-00301,0.00,220.00,R,Acumen Waste Services Ltd,No,,
Http://opendatacommunities.org/id/metropolitan-district-council/leeds,Leeds City Council,31/10/2017,Communities and Environment,Parks and Countryside,Supplies and Services,Resaleable Materials,204,13/10/2017,1710-00302,0.00,145.00,R,Acushnet Europe Limited,No,,
Http://opendatacommunities.org/id/metropolitan-district-council/leeds,Leeds City Council,31/10/2017,Resources and Housing,Shared Services,Supplies and Services,Other Hired And Contracted Services,265,20/10/2017,1710-00303,0.00,67.38,R,Ad3 Envelope Printers Limited,No,,
Http://opendatacommunities.org/id/metropolitan-district-council/leeds,Leeds City Council,31/10/2017,Resources and Housing,Shared Services,Supplies and Services,Other Hired And Contracted Services,265,20/10/2017,1710-00304,0.00,645.00,R,Ad3 Envelope Printers Limited,No,,
Http://opendatacommunities.org/id/metropolitan-district-council/leeds,Leeds City Council,31/10/2017,Resources and Housing,Shared Services,Supplies and Services,Other Hired And Contracted Services,265,27/10/2017,1710-00305,0.00,462.50,R,Ad3 Envelope Printers Limited,No,,
Http://opendatacommunities.org/id/metropolitan-district-council/leeds,Leeds City Council,31/10/2017,Resources and Housing,Shared Services,Supplies and Services,Other Hired And Contracted Services,265,27/10/2017,1710-00306,0.00,96.44,R,Ad3 Envelope Printers Limited,No,,
Http://opendatacommunities.org/id/metropolitan-district-council/leeds,Leeds City Council,31/10/2017,Children and Families,Learning Skills & Universal,Supplies and Services,Other Hired And Contracted Services,265,26/10/2017,1710-00307,0.00,451.00,R,Adam Saunders,No,,
Http://opendatacommunities.org/id/metropolitan-district-council/leeds,Leeds City Council,31/10/2017,Adults and Health,Services For Older People - 65 And Over,Third Party Payments,Nursing Home,570,18/10/2017,1710-00308,0.00,3786.24,R,Adbolton Hall,No,,
Http://opendatacommunities.org/id/metropolitan-district-council/leeds,Leeds City Council,31/10/2017,Strategic Landlord,Housing Management,Supplies and Services,Grants To Voluntary Organisations,293,27/10/2017,1710-00309,0.00,100.00,R,Adel Crag Community Association,No,,
Http://opendatacommunities.org/id/metropolitan-district-council/leeds,Leeds City Council,31/10/2017,Children and Families,Safeguarding Targeted & Specialist,Third Party Payments,Services Rendered By Voluntary Sector,505,10/10/2017,1710-00310,0.00,3528.00,R,Adel Pre School,No,,
Http://opendatacommunities.org/id/metropolitan-district-council/leeds,Leeds City Council,31/10/2017,Children and Families,Safeguarding Targeted & Specialist,Third Party Payments,Services Rendered By Voluntary Sector,505,27/10/2017,1710-00311,0.00,795.51,R,Adel Pre School,No,,
Http://opendatacommunities.org/id/metropolitan-district-council/leeds,Leeds City Council,31/10/2017,Adults and Health,Services For Older People - 65 And Over,Third Party Payments,Nursing Home,570,18/10/2017,1710-00312,0.00,1157.68,R,Aden House,No,,
Http://opendatacommunities.org/id/metropolitan-district-council/leeds,Leeds City Council,31/10/2017,Resources and Housing,Leeds Building Services,Supplies and Services,Operational Materials,205,02/10/2017,1710-00313,0.00,211.84,R,Adi Global,No,,
Http://opendatacommunities.org/id/metropolitan-district-council/leeds,Leeds City Council,31/10/2017,Resources and Housing,Leeds Building Services,Supplies and Services,Operational Materials,205,02/10/2017,1710-00314,0.00,196.91,R,Adi Global,No,,
Http://opendatacommunities.org/id/metropolitan-district-council/leeds,Leeds City Council,31/10/2017,Resources and Housing,Leeds Building Services,Supplies and Services,Operational Materials,205,02/10/2017,1710-00315,0.00,46.22,R,Adi Global,No,,
Http://opendatacommunities.org/id/metropolitan-district-council/leeds,Leeds City Council,31/10/2017,Resources and Housing,Leeds Building Services,Supplies and Services,Operational Materials,205,02/10/2017,1710-00316,0.00,2241.38,R,Adi Global,No,,
Http://opendatacommunities.org/id/metropolitan-district-council/leeds,Leeds City Council,31/10/2017,Resources and Housing,Leeds Building Services,Supplies and Services,Operational Materials,205,04/10/2017,1710-00317,0.00,145.99,R,Adi Global,No,,
Http://opendatacommunities.org/id/metropolitan-district-council/leeds,Leeds City Council,31/10/2017,Resources and Housing,Leeds Building Services,Supplies and Services,Operational Materials,205,06/10/2017,1710-00318,0.00,433.60,R,Adi Global,No,,
Http://opendatacommunities.org/id/metropolitan-district-council/leeds,Leeds City Council,31/10/2017,Resources and Housing,Leeds Building Services,Supplies and Services,Operational Materials,205,06/10/2017,1710-00319,0.00,34.57,R,Adi Global,No,,
Http://opendatacommunities.org/id/metropolitan-district-council/leeds,Leeds City Council,31/10/2017,Resources and Housing,Leeds Building Services,Supplies and Services,Operational Materials,205,06/10/2017,1710-00320,0.00,2112.25,R,Adi Global,No,,
Http://opendatacommunities.org/id/metropolitan-district-council/leeds,Leeds City Council,31/10/2017,Resources and Housing,Leeds Building Services,Supplies and Services,Operational Materials,205,06/10/2017,1710-00321,0.00,14.84,R,Adi Global,No,,
Http://opendatacommunities.org/id/metropolitan-district-council/leeds,Leeds City Council,31/10/2017,Resources and Housing,Leeds Building Services,Supplies and Services,Operational Materials,205,11/10/2017,1710-00322,0.00,227.76,R,Adi Global,No,,
Http://opendatacommunities.org/id/metropolitan-district-council/leeds,Leeds City Council,31/10/2017,Resources and Housing,Leeds Building Services,Supplies and Services,Operational Materials,205,11/10/2017,1710-00323,0.00,63.18,R,Adi Global,No,,
Http://opendatacommunities.org/id/metropolitan-district-council/leeds,Leeds City Council,31/10/2017,Resources and Housing,Leeds Building Services,Supplies and Services,Operational Materials,205,16/10/2017,1710-00324,0.00,2429.03,R,Adi Global,No,,
Http://opendatacommunities.org/id/metropolitan-district-council/leeds,Leeds City Council,31/10/2017,Resources and Housing,Leeds Building Services,Supplies and Services,Operational Materials,205,19/10/2017,1710-00325,0.00,340.33,R,Adi Global,No,,
Http://opendatacommunities.org/id/metropolitan-district-council/leeds,Leeds City Council,31/10/2017,Resources and Housing,Leeds Building Services,Supplies and Services,Operational Materials,205,19/10/2017,1710-00326,0.00,9.72,R,Adi Global,No,,
Http://opendatacommunities.org/id/metropolitan-district-council/leeds,Leeds City Council,31/10/2017,Resources and Housing,Leeds Building Services,Supplies and Services,Operational Materials,205,19/10/2017,1710-00327,0.00,13.29,R,Adi Global,No,,
Http://opendatacommunities.org/id/metropolitan-district-council/leeds,Leeds City Council,31/10/2017,Resources and Housing,Leeds Building Services,Supplies and Services,Operational Materials,205,19/10/2017,1710-00328,0.00,3950.29,R,Adi Global,No,,
Http://opendatacommunities.org/id/metropolitan-district-council/leeds,Leeds City Council,31/10/2017,Resources and Housing,Leeds Building Services,Supplies and Services,Operational Materials,205,24/10/2017,1710-00329,0.00,125.58,R,Adi Global,No,,
Http://opendatacommunities.org/id/metropolitan-district-council/leeds,Leeds City Council,31/10/2017,Resources and Housing,Leeds Building Services,Supplies and Services,Operational Materials,205,24/10/2017,1710-00330,0.00,390.78,R,Adi Global,No,,
Http://opendatacommunities.org/id/metropolitan-district-council/leeds,Leeds City Council,31/10/2017,Resources and Housing,Leeds Building Services,Supplies and Services,Operational Materials,205,24/10/2017,1710-00331,0.00,105.37,R,Adi Global,No,,
Http://opendatacommunities.org/id/metropolitan-district-council/leeds,Leeds City Council,31/10/2017,Resources and Housing,Leeds Building Services,Supplies and Services,Operational Materials,205,24/10/2017,1710-00332,0.00,139.00,R,Adi Global,No,,
Http://opendatacommunities.org/id/metropolitan-district-council/leeds,Leeds City Council,31/10/2017,Resources and Housing,Leeds Building Services,Supplies and Services,Operational Materials,205,26/10/2017,1710-00333,0.00,23.40,R,Adi Global,No,,
Http://opendatacommunities.org/id/metropolitan-district-council/leeds,Leeds City Council,31/10/2017,Resources and Housing,Leeds Building Services,Supplies and Services,Operational Materials,205,27/10/2017,1710-00334,0.00,46.69,R,Adi Global,No,,
Http://opendatacommunities.org/id/metropolitan-district-council/leeds,Leeds City Council,31/10/2017,Resources and Housing,Leeds Building Services,Supplies and Services,Operational Materials,205,27/10/2017,1710-00335,0.00,591.76,R,Adi Global,No,,
Http://opendatacommunities.org/id/metropolitan-district-council/leeds,Leeds City Council,31/10/2017,Resources and Housing,Leeds Building Services,Supplies and Services,Operational Materials,205,30/10/2017,1710-00336,0.00,36.37,R,Adi Global,No,,
Http://opendatacommunities.org/id/metropolitan-district-council/leeds,Leeds City Council,31/10/2017,Communities and Environment,Community Safety  ,Supplies and Services,Other Hired And Contracted Services,265,28/09/2017,1710-00337,0.00,55.38,R,Adi-Gardiner Ltd,Yes,,
Http://opendatacommunities.org/id/metropolitan-district-council/leeds,Leeds City Council,31/10/2017,Communities and Environment,Community Safety  ,Supplies and Services,Other Hired And Contracted Services,265,28/09/2017,1710-00338,0.00,292.50,R,Adi-Gardiner Ltd,Yes,,
Http://opendatacommunities.org/id/metropolitan-district-council/leeds,Leeds City Council,31/10/2017,Communities and Environment,Car Parking Services,Income,Penalties  Fines & Car Parking Charges,934,19/10/2017,1710-00339,0.00,75.00,R,REDACTED PERSONAL DATA,No,,
Http://opendatacommunities.org/id/metropolitan-district-council/leeds,Leeds City Council,31/10/2017,Communities and Environment,Car Parking Services,Income,Penalties  Fines & Car Parking Charges,934,19/10/2017,1710-00340,0.00,97.00,R,REDACTED PERSONAL DATA,No,,
Http://opendatacommunities.org/id/metropolitan-district-council/leeds,Leeds City Council,31/10/2017,Children and Families,Safeguarding Targeted & Specialist,Supplies and Services,Security Services(Non Infrastructure),262,25/10/2017,1710-00341,0.00,108.90,R,Adm Security,No,,
Http://opendatacommunities.org/id/metropolitan-district-council/leeds,Leeds City Council,31/10/2017,Children and Families,Safeguarding Targeted & Specialist,Supplies and Services,Security Services(Non Infrastructure),262,26/10/2017,1710-00342,0.00,108.90,R,Adm Security,No,,
Http://opendatacommunities.org/id/metropolitan-district-council/leeds,Leeds City Council,31/10/2017,City Development,Recreation  ,Supplies and Services,Computer Software & Equipment,214,21/09/2017,1710-00343,0.00,196.30,R,Adobe Systems Software,Yes,,
Http://opendatacommunities.org/id/metropolitan-district-council/leeds,Leeds City Council,31/10/2017,Children and Families,Safeguarding Targeted & Specialist,Transport,Car & Motorcycle Allowances,311,11/10/2017,1710-00344,0.00,31.50,R,REDACTED PERSONAL DATA,No,,
Http://opendatacommunities.org/id/metropolitan-district-council/leeds,Leeds City Council as Accountable Body,31/10/2017,Social Services Pooled Budgets,Jcs For People With Learning Disabilitie,Third Party Payments,Residential,580,05/10/2017,1710-00345,0.00,2609.36,R,Adrian House,No,,
Http://opendatacommunities.org/id/metropolitan-district-council/leeds,Leeds City Council as Accountable Body,31/10/2017,Social Services Pooled Budgets,Jcs For People With Learning Disabilitie,Third Party Payments,Residential,580,12/10/2017,1710-00346,0.00,2609.36,R,Adrian House,No,,
Http://opendatacommunities.org/id/metropolitan-district-council/leeds,Leeds City Council,31/10/2017,Strategic Landlord,Property and Contracts,Premises,General Maintenance,104,02/10/2017,1710-00347,0.00,437.19,R,Adt Fire And Security Plc,No,,
Http://opendatacommunities.org/id/metropolitan-district-council/leeds,Leeds City Council,31/10/2017,Strategic Landlord,Housing Management,Premises,Premises Security Services,162,09/10/2017,1710-00348,0.00,149.60,R,Adt Fire And Security Plc,No,,
Http://opendatacommunities.org/id/metropolitan-district-council/leeds,Leeds City Council,31/10/2017,Strategic Landlord,Property and Contracts,Premises,General Maintenance,104,18/10/2017,1710-00349,0.00,343.77,R,Adt Fire And Security Plc,No,,
Http://opendatacommunities.org/id/metropolitan-district-council/leeds,Leeds City Council,31/10/2017,Resources and Housing,Corporate Property Management,Premises,Maintenance Of Buildings,101,18/10/2017,1710-00350,0.00,270.30,R,Adt Fire And Security Plc,No,,
Http://opendatacommunities.org/id/metropolitan-district-council/leeds,Leeds City Council as Accountable Body,31/10/2017,Social Services Pooled Budgets,Jcs For People With Learning Disabilitie,Third Party Payments,Sheltered Accommodation,569,02/10/2017,1710-00351,0.00,887.18,R,Adult Placement Services,No,,
Http://opendatacommunities.org/id/metropolitan-district-council/leeds,Leeds City Council,31/10/2017,Adults and Health,Services For Adults Under 65 Mental/Dis,Third Party Payments,Nursing Home,570,18/10/2017,1710-00352,0.00,1541.96,R,Adult Supported Living Ltd,No,,
Http://opendatacommunities.org/id/metropolitan-district-council/leeds,Leeds City Council,31/10/2017,City Development,Libraries  Arts & Heritage,Supplies and Services,External Audit Fees,261,09/10/2017,1710-00353,0.00,85.00,R,Advance Stocks Ltd,No,,
Http://opendatacommunities.org/id/metropolitan-district-council/leeds,Leeds City Council,31/10/2017,City Development,Libraries  Arts & Heritage,Supplies and Services,External Audit Fees,261,11/10/2017,1710-00354,0.00,85.00,R,Advance Stocks Ltd,No,,
Http://opendatacommunities.org/id/metropolitan-district-council/leeds,Leeds City Council,31/10/2017,Children and Families,Safeguarding Targeted & Specialist,Support Services,Legal Disbursements,411,04/10/2017,1710-00355,0.00,19.80,R,Advanced Child Care Assessments Ltd,No,,
Http://opendatacommunities.org/id/metropolitan-district-council/leeds,Leeds City Council,31/10/2017,Children and Families,Safeguarding Targeted & Specialist  ,Supplies and Services,Operational Materials,205,18/09/2017,1710-00356,0.00,224.05,R,Adventure Climb Rescue,Yes,,
Http://opendatacommunities.org/id/metropolitan-district-council/leeds,Leeds City Council as Accountable Body,31/10/2017,Social Services Pooled Budgets,Jcs For People With Learning Disabilitie,Third Party Payments,Residential,580,18/10/2017,1710-00357,0.00,17796.68,R,Advitam Ltd,No,,
Http://opendatacommunities.org/id/metropolitan-district-council/leeds,Leeds City Council,31/10/2017,Adults and Health,Services For Older People - 65 And Over,Third Party Payments,Payments To Voluntary Organisations,561,19/10/2017,1710-00358,0.00,83435.70,R,Advonet,No,,
Http://opendatacommunities.org/id/metropolitan-district-council/leeds,Leeds City Council as Accountable Body,31/10/2017,Social Services Pooled Budgets,Jcs For People With Learning Disabilitie,Third Party Payments,Other Agency Services,561,20/10/2017,1710-00359,0.00,25.20,R,Advonet,No,,
Http://opendatacommunities.org/id/metropolitan-district-council/leeds,Leeds City Council as Accountable Body,31/10/2017,Social Services Pooled Budgets,Jcs For People With Learning Disabilitie,Third Party Payments,Other Agency Services,561,20/10/2017,1710-00360,0.00,75.00,R,Advonet,No,,
Http://opendatacommunities.org/id/metropolitan-district-council/leeds,Leeds City Council as Accountable Body,31/10/2017,Social Services Pooled Budgets,Jcs For People With Learning Disabilitie,Third Party Payments,Other Agency Services,561,20/10/2017,1710-00361,0.00,24.90,R,Advonet,No,,
Http://opendatacommunities.org/id/metropolitan-district-council/leeds,Leeds City Council as Accountable Body,31/10/2017,Social Services Pooled Budgets,Jcs For People With Learning Disabilitie,Third Party Payments,Other Agency Services,561,20/10/2017,1710-00362,0.00,9.90,R,Advonet,No,,
Http://opendatacommunities.org/id/metropolitan-district-council/leeds,Leeds City Council as Accountable Body,31/10/2017,Social Services Pooled Budgets,Jcs For People With Learning Disabilitie,Third Party Payments,Other Agency Services,561,20/10/2017,1710-00363,0.00,34.80,R,Advonet,No,,
Http://opendatacommunities.org/id/metropolitan-district-council/leeds,Leeds City Council as Accountable Body,31/10/2017,Social Services Pooled Budgets,Jcs For People With Learning Disabilitie,Third Party Payments,Other Agency Services,561,20/10/2017,1710-00364,0.00,7.50,R,Advonet,No,,
Http://opendatacommunities.org/id/metropolitan-district-council/leeds,Leeds City Council as Accountable Body,31/10/2017,Social Services Pooled Budgets,Jcs For People With Learning Disabilitie,Third Party Payments,Other Agency Services,561,20/10/2017,1710-00365,0.00,20.10,R,Advonet,No,,
Http://opendatacommunities.org/id/metropolitan-district-council/leeds,Leeds City Council as Accountable Body,31/10/2017,Social Services Pooled Budgets,Jcs For People With Learning Disabilitie,Third Party Payments,Other Agency Services,561,20/10/2017,1710-00366,0.00,20.10,R,Advonet,No,,
Http://opendatacommunities.org/id/metropolitan-district-council/leeds,Leeds City Council as Accountable Body,31/10/2017,Social Services Pooled Budgets,Jcs For People With Learning Disabilitie,Third Party Payments,Other Agency Services,561,20/10/2017,1710-00367,0.00,65.10,R,Advonet,No,,
Http://opendatacommunities.org/id/metropolitan-district-council/leeds,Leeds City Council as Accountable Body,31/10/2017,Social Services Pooled Budgets,Jcs For People With Learning Disabilitie,Third Party Payments,Other Agency Services,561,20/10/2017,1710-00368,0.00,210.00,R,Advonet,No,,
Http://opendatacommunities.org/id/metropolitan-district-council/leeds,Leeds City Council as Accountable Body,31/10/2017,Social Services Pooled Budgets,Jcs For People With Learning Disabilitie,Third Party Payments,Other Agency Services,561,20/10/2017,1710-00369,0.00,35.10,R,Advonet,No,,
Http://opendatacommunities.org/id/metropolitan-district-council/leeds,Leeds City Council as Accountable Body,31/10/2017,Social Services Pooled Budgets,Jcs For People With Learning Disabilitie,Third Party Payments,Other Agency Services,561,20/10/2017,1710-00370,0.00,39.90,R,Advonet,No,,
Http://opendatacommunities.org/id/metropolitan-district-council/leeds,Leeds City Council as Accountable Body,31/10/2017,Social Services Pooled Budgets,Jcs For People With Learning Disabilitie,Third Party Payments,Other Agency Services,561,20/10/2017,1710-00371,0.00,461.10,R,Advonet,No,,
Http://opendatacommunities.org/id/metropolitan-district-council/leeds,Leeds City Council as Accountable Body,31/10/2017,Social Services Pooled Budgets,Jcs For People With Learning Disabilitie,Third Party Payments,Other Agency Services,561,20/10/2017,1710-00372,0.00,47.40,R,Advonet,No,,
Http://opendatacommunities.org/id/metropolitan-district-council/leeds,Leeds City Council as Accountable Body,31/10/2017,Social Services Pooled Budgets,Jcs For People With Learning Disabilitie,Third Party Payments,Other Agency Services,561,20/10/2017,1710-00373,0.00,9.90,R,Advonet,No,,
Http://opendatacommunities.org/id/metropolitan-district-council/leeds,Leeds City Council as Accountable Body,31/10/2017,Social Services Pooled Budgets,Jcs For People With Learning Disabilitie,Third Party Payments,Other Agency Services,561,20/10/2017,1710-00374,0.00,62.40,R,Advonet,No,,
Http://opendatacommunities.org/id/metropolitan-district-council/leeds,Leeds City Council as Accountable Body,31/10/2017,Social Services Pooled Budgets,Jcs For People With Learning Disabilitie,Third Party Payments,Other Agency Services,561,25/10/2017,1710-00375,0.00,39.90,R,Advonet,No,,
Http://opendatacommunities.org/id/metropolitan-district-council/leeds,Leeds City Council as Accountable Body,31/10/2017,Social Services Pooled Budgets,Jcs For People With Learning Disabilitie,Third Party Payments,Other Agency Services,561,25/10/2017,1710-00376,0.00,252.30,R,Advonet,No,,
Http://opendatacommunities.org/id/metropolitan-district-council/leeds,Leeds City Council as Accountable Body,31/10/2017,Social Services Pooled Budgets,Jcs For People With Learning Disabilitie,Third Party Payments,Other Agency Services,561,25/10/2017,1710-00377,0.00,159.90,R,Advonet,No,,
Http://opendatacommunities.org/id/metropolitan-district-council/leeds,Leeds City Council as Accountable Body,31/10/2017,Social Services Pooled Budgets,Jcs For People With Learning Disabilitie,Third Party Payments,Other Agency Services,561,25/10/2017,1710-00378,0.00,495.00,R,Advonet,No,,
Http://opendatacommunities.org/id/metropolitan-district-council/leeds,Leeds City Council as Accountable Body,31/10/2017,Social Services Pooled Budgets,Jcs For People With Learning Disabilitie,Third Party Payments,Other Agency Services,561,25/10/2017,1710-00379,0.00,37.50,R,Advonet,No,,
Http://opendatacommunities.org/id/metropolitan-district-council/leeds,Leeds City Council as Accountable Body,31/10/2017,Social Services Pooled Budgets,Jcs For People With Learning Disabilitie,Third Party Payments,Other Agency Services,561,25/10/2017,1710-00380,0.00,112.50,R,Advonet,No,,
Http://opendatacommunities.org/id/metropolitan-district-council/leeds,Leeds City Council as Accountable Body,31/10/2017,Social Services Pooled Budgets,Jcs For People With Learning Disabilitie,Third Party Payments,Other Agency Services,561,31/10/2017,1710-00381,0.00,9.90,R,Advonet,No,,
Http://opendatacommunities.org/id/metropolitan-district-council/leeds,Leeds City Council,31/10/2017,City Development,Economic Development,Capital,Other Costs,7,04/10/2017,1710-00382,0.00,24000.00,C,Aecom Limited,No,,
Http://opendatacommunities.org/id/metropolitan-district-council/leeds,Leeds City Council,31/10/2017,City Development,Economic Development,Capital,Other Costs,7,06/10/2017,1710-00383,0.00,1900.00,C,Aecom Limited,No,,
Http://opendatacommunities.org/id/metropolitan-district-council/leeds,Leeds City Council,31/10/2017,City Development,Highways,Capital,Other Costs,7,06/10/2017,1710-00384,0.00,13950.00,C,Aecom Limited,No,,
Http://opendatacommunities.org/id/metropolitan-district-council/leeds,Leeds City Council,31/10/2017,City Development,Economic Development,Premises,Maintenance Of Buildings,101,31/10/2017,1710-00385,0.00,2500.00,R,Aecom Limited,No,,
Http://opendatacommunities.org/id/metropolitan-district-council/leeds,Leeds City Council,31/10/2017,Communities and Environment,Customer Access,Supplies and Services,Other Hired And Contracted Services,265,04/10/2017,1710-00386,0.00,12.00,R,Afbedel Ltd,No,,
Http://opendatacommunities.org/id/metropolitan-district-council/leeds,Leeds City Council,31/10/2017,Insurance,Insurance,Supplies and Services,Insurance Claims,248,02/10/2017,1710-00387,0.00,1100.00,R,Affinity Seven Law,No,,
Http://opendatacommunities.org/id/metropolitan-district-council/leeds,Leeds City Council as Accountable Body,31/10/2017,Social Services Pooled Budgets,Jcs For People With Learning Disabilitie,Third Party Payments,Home Care,568,03/10/2017,1710-00388,0.00,408.00,R,Affinity Trust,No,,
Http://opendatacommunities.org/id/metropolitan-district-council/leeds,Leeds City Council,31/10/2017,Adults and Health,Services For Older People Under 65 P/Dis,Third Party Payments,Home Care,568,03/10/2017,1710-00389,0.00,134.56,R,Affinity Trust,No,,
Http://opendatacommunities.org/id/metropolitan-district-council/leeds,Leeds City Council,31/10/2017,Adults and Health,Services For Older People Under 65 P/Dis,Third Party Payments,Home Care,568,03/10/2017,1710-00390,0.00,403.68,R,Affinity Trust,No,,
Http://opendatacommunities.org/id/metropolitan-district-council/leeds,Leeds City Council as Accountable Body,31/10/2017,Social Services Pooled Budgets,Jcs For People With Learning Disabilitie,Third Party Payments,Home Care,568,03/10/2017,1710-00391,0.00,408.00,R,Affinity Trust,No,,
Http://opendatacommunities.org/id/metropolitan-district-council/leeds,Leeds City Council,31/10/2017,Adults and Health,Services For Older People Under 65 P/Dis,Third Party Payments,Home Care,568,03/10/2017,1710-00392,0.00,526.68,R,Affinity Trust,No,,
Http://opendatacommunities.org/id/metropolitan-district-council/leeds,Leeds City Council as Accountable Body,31/10/2017,Social Services Pooled Budgets,Jcs For People With Learning Disabilitie,Third Party Payments,Day Centre,564,06/10/2017,1710-00393,0.00,312.48,R,Affinity Trust,No,,
Http://opendatacommunities.org/id/metropolitan-district-council/leeds,Leeds City Council as Accountable Body,31/10/2017,Social Services Pooled Budgets,Jcs For People With Learning Disabilitie,Third Party Payments,Home Care,568,10/10/2017,1710-00394,0.00,1170.00,R,Affinity Trust,No,,
Http://opendatacommunities.org/id/metropolitan-district-council/leeds,Leeds City Council as Accountable Body,31/10/2017,Social Services Pooled Budgets,Jcs For People With Learning Disabilitie,Third Party Payments,Home Care,568,10/10/2017,1710-00395,0.00,2752.80,R,Affinity Trust,No,,
Http://opendatacommunities.org/id/metropolitan-district-council/leeds,Leeds City Council as Accountable Body,31/10/2017,Social Services Pooled Budgets,Jcs For People With Learning Disabilitie,Third Party Payments,Home Care,568,10/10/2017,1710-00396,0.00,1269.00,R,Affinity Trust,No,,
Http://opendatacommunities.org/id/metropolitan-district-council/leeds,Leeds City Council as Accountable Body,31/10/2017,Social Services Pooled Budgets,Jcs For People With Learning Disabilitie,Third Party Payments,Day Centre,564,10/10/2017,1710-00397,0.00,201.12,R,Affinity Trust,No,,
Http://opendatacommunities.org/id/metropolitan-district-council/leeds,Leeds City Council as Accountable Body,31/10/2017,Social Services Pooled Budgets,Jcs For People With Learning Disabilitie,Third Party Payments,Home Care,568,10/10/2017,1710-00398,0.00,525.72,R,Affinity Trust,No,,
Http://opendatacommunities.org/id/metropolitan-district-council/leeds,Leeds City Council as Accountable Body,31/10/2017,Social Services Pooled Budgets,Jcs For People With Learning Disabilitie,Third Party Payments,Home Care,568,10/10/2017,1710-00399,0.00,1318.52,R,Affinity Trust,No,,
Http://opendatacommunities.org/id/metropolitan-district-council/leeds,Leeds City Council as Accountable Body,31/10/2017,Social Services Pooled Budgets,Jcs For People With Learning Disabilitie,Third Party Payments,Home Care,568,10/10/2017,1710-00400,0.00,306.48,R,Affinity Trust,No,,
Http://opendatacommunities.org/id/metropolitan-district-council/leeds,Leeds City Council as Accountable Body,31/10/2017,Social Services Pooled Budgets,Jcs For People With Learning Disabilitie,Third Party Payments,Day Centre,564,11/10/2017,1710-00401,0.00,1080.00,R,Affinity Trust,No,,
Http://opendatacommunities.org/id/metropolitan-district-council/leeds,Leeds City Council as Accountable Body,31/10/2017,Social Services Pooled Budgets,Jcs For People With Learning Disabilitie,Third Party Payments,Day Centre,564,11/10/2017,1710-00402,0.00,1035.99,R,Affinity Trust,No,,
Http://opendatacommunities.org/id/metropolitan-district-council/leeds,Leeds City Council as Accountable Body,31/10/2017,Social Services Pooled Budgets,Jcs For People With Learning Disabilitie,Third Party Payments,Home Care,568,11/10/2017,1710-00403,0.00,1050.00,R,Affinity Trust,No,,
Http://opendatacommunities.org/id/metropolitan-district-council/leeds,Leeds City Council as Accountable Body,31/10/2017,Social Services Pooled Budgets,Jcs For People With Learning Disabilitie,Third Party Payments,Home Care,568,11/10/2017,1710-00404,0.00,753.30,R,Affinity Trust,No,,
Http://opendatacommunities.org/id/metropolitan-district-council/leeds,Leeds City Council as Accountable Body,31/10/2017,Social Services Pooled Budgets,Jcs For People With Learning Disabilitie,Third Party Payments,Home Care,568,11/10/2017,1710-00405,0.00,1597.06,R,Affinity Trust,No,,
Http://opendatacommunities.org/id/metropolitan-district-council/leeds,Leeds City Council as Accountable Body,31/10/2017,Social Services Pooled Budgets,Jcs For People With Learning Disabilitie,Third Party Payments,Home Care,568,11/10/2017,1710-00406,0.00,804.48,R,Affinity Trust,No,,
Http://opendatacommunities.org/id/metropolitan-district-council/leeds,Leeds City Council as Accountable Body,31/10/2017,Social Services Pooled Budgets,Jcs For People With Learning Disabilitie,Third Party Payments,Home Care,568,11/10/2017,1710-00407,0.00,870.66,R,Affinity Trust,No,,
Http://opendatacommunities.org/id/metropolitan-district-council/leeds,Leeds City Council as Accountable Body,31/10/2017,Social Services Pooled Budgets,Jcs For People With Learning Disabilitie,Third Party Payments,Home Care,568,11/10/2017,1710-00408,0.00,754.20,R,Affinity Trust,No,,
Http://opendatacommunities.org/id/metropolitan-district-council/leeds,Leeds City Council as Accountable Body,31/10/2017,Social Services Pooled Budgets,Jcs For People With Learning Disabilitie,Third Party Payments,Home Care,568,11/10/2017,1710-00409,0.00,360.00,R,Affinity Trust,No,,
Http://opendatacommunities.org/id/metropolitan-district-council/leeds,Leeds City Council as Accountable Body,31/10/2017,Social Services Pooled Budgets,Jcs For People With Learning Disabilitie,Third Party Payments,Home Care,568,11/10/2017,1710-00410,0.00,402.24,R,Affinity Trust,No,,
Http://opendatacommunities.org/id/metropolitan-district-council/leeds,Leeds City Council as Accountable Body,31/10/2017,Social Services Pooled Budgets,Jcs For People With Learning Disabilitie,Third Party Payments,Day Centre,564,11/10/2017,1710-00411,0.00,648.95,R,Affinity Trust,No,,
Http://opendatacommunities.org/id/metropolitan-district-council/leeds,Leeds City Council as Accountable Body,31/10/2017,Social Services Pooled Budgets,Jcs For People With Learning Disabilitie,Third Party Payments,Day Centre,564,11/10/2017,1710-00412,0.00,2346.40,R,Affinity Trust,No,,
Http://opendatacommunities.org/id/metropolitan-district-council/leeds,Leeds City Council as Accountable Body,31/10/2017,Social Services Pooled Budgets,Jcs For People With Learning Disabilitie,Third Party Payments,Day Centre,564,11/10/2017,1710-00413,0.00,1322.64,R,Affinity Trust,No,,
Http://opendatacommunities.org/id/metropolitan-district-council/leeds,Leeds City Council as Accountable Body,31/10/2017,Social Services Pooled Budgets,Jcs For People With Learning Disabilitie,Third Party Payments,Home Care,568,11/10/2017,1710-00414,0.00,612.00,R,Affinity Trust,No,,
Http://opendatacommunities.org/id/metropolitan-district-council/leeds,Leeds City Council as Accountable Body,31/10/2017,Social Services Pooled Budgets,Jcs For People With Learning Disabilitie,Third Party Payments,Day Centre,564,11/10/2017,1710-00415,0.00,941.92,R,Affinity Trust,No,,
Http://opendatacommunities.org/id/metropolitan-district-council/leeds,Leeds City Council as Accountable Body,31/10/2017,Social Services Pooled Budgets,Jcs For People With Learning Disabilitie,Third Party Payments,Home Care,568,11/10/2017,1710-00416,0.00,255.68,R,Affinity Trust,No,,
Http://opendatacommunities.org/id/metropolitan-district-council/leeds,Leeds City Council as Accountable Body,31/10/2017,Social Services Pooled Budgets,Jcs For People With Learning Disabilitie,Third Party Payments,Home Care,568,13/10/2017,1710-00417,0.00,655.18,R,Affinity Trust,No,,
Http://opendatacommunities.org/id/metropolitan-district-council/leeds,Leeds City Council as Accountable Body,31/10/2017,Social Services Pooled Budgets,Jcs For People With Learning Disabilitie,Third Party Payments,Home Care,568,13/10/2017,1710-00418,0.00,922.85,R,Affinity Trust,No,,
Http://opendatacommunities.org/id/metropolitan-district-council/leeds,Leeds City Council as Accountable Body,31/10/2017,Social Services Pooled Budgets,Jcs For People With Learning Disabilitie,Third Party Payments,Home Care,568,13/10/2017,1710-00419,0.00,1286.39,R,Affinity Trust,No,,
Http://opendatacommunities.org/id/metropolitan-district-council/leeds,Leeds City Council as Accountable Body,31/10/2017,Social Services Pooled Budgets,Jcs For People With Learning Disabilitie,Third Party Payments,Home Care,568,13/10/2017,1710-00420,0.00,383.52,R,Affinity Trust,No,,
Http://opendatacommunities.org/id/metropolitan-district-council/leeds,Leeds City Council,31/10/2017,Adults and Health,Services For Older People Under 65 P/Dis,Third Party Payments,Home Care,568,13/10/2017,1710-00421,0.00,95.88,R,Affinity Trust,No,,
Http://opendatacommunities.org/id/metropolitan-district-council/leeds,Leeds City Council as Accountable Body,31/10/2017,Social Services Pooled Budgets,Jcs For People With Learning Disabilitie,Third Party Payments,Day Centre,564,13/10/2017,1710-00422,0.00,364.56,R,Affinity Trust,No,,
Http://opendatacommunities.org/id/metropolitan-district-council/leeds,Leeds City Council as Accountable Body,31/10/2017,Social Services Pooled Budgets,Jcs For People With Learning Disabilitie,Third Party Payments,Home Care,568,13/10/2017,1710-00423,0.00,671.16,R,Affinity Trust,No,,
Http://opendatacommunities.org/id/metropolitan-district-council/leeds,Leeds City Council as Accountable Body,31/10/2017,Social Services Pooled Budgets,Jcs For People With Learning Disabilitie,Third Party Payments,Home Care,568,13/10/2017,1710-00424,0.00,1542.75,R,Affinity Trust,No,,
Http://opendatacommunities.org/id/metropolitan-district-council/leeds,Leeds City Council as Accountable Body,31/10/2017,Social Services Pooled Budgets,Jcs For People With Learning Disabilitie,Third Party Payments,Home Care,568,13/10/2017,1710-00425,0.00,1211.04,R,Affinity Trust,No,,
Http://opendatacommunities.org/id/metropolitan-district-council/leeds,Leeds City Council as Accountable Body,31/10/2017,Social Services Pooled Budgets,Jcs For People With Learning Disabilitie,Third Party Payments,Home Care,568,13/10/2017,1710-00426,0.00,2668.66,R,Affinity Trust,No,,
Http://opendatacommunities.org/id/metropolitan-district-council/leeds,Leeds City Council as Accountable Body,31/10/2017,Social Services Pooled Budgets,Jcs For People With Learning Disabilitie,Third Party Payments,Home Care,568,13/10/2017,1710-00427,0.00,191.76,R,Affinity Trust,No,,
Http://opendatacommunities.org/id/metropolitan-district-council/leeds,Leeds City Council as Accountable Body,31/10/2017,Social Services Pooled Budgets,Jcs For People With Learning Disabilitie,Third Party Payments,Home Care,568,13/10/2017,1710-00428,0.00,639.20,R,Affinity Trust,No,,
Http://opendatacommunities.org/id/metropolitan-district-council/leeds,Leeds City Council as Accountable Body,31/10/2017,Social Services Pooled Budgets,Jcs For People With Learning Disabilitie,Third Party Payments,Day Centre,564,13/10/2017,1710-00429,0.00,306.00,R,Affinity Trust,No,,
Http://opendatacommunities.org/id/metropolitan-district-council/leeds,Leeds City Council as Accountable Body,31/10/2017,Social Services Pooled Budgets,Jcs For People With Learning Disabilitie,Third Party Payments,Home Care,568,13/10/2017,1710-00430,0.00,990.76,R,Affinity Trust,No,,
Http://opendatacommunities.org/id/metropolitan-district-council/leeds,Leeds City Council as Accountable Body,31/10/2017,Social Services Pooled Budgets,Jcs For People With Learning Disabilitie,Third Party Payments,Home Care,568,13/10/2017,1710-00431,0.00,2588.76,R,Affinity Trust,No,,
Http://opendatacommunities.org/id/metropolitan-district-council/leeds,Leeds City Council as Accountable Body,31/10/2017,Social Services Pooled Budgets,Jcs For People With Learning Disabilitie,Third Party Payments,Home Care,568,13/10/2017,1710-00432,0.00,719.10,R,Affinity Trust,No,,
Http://opendatacommunities.org/id/metropolitan-district-council/leeds,Leeds City Council as Accountable Body,31/10/2017,Social Services Pooled Budgets,Jcs For People With Learning Disabilitie,Third Party Payments,Home Care,568,13/10/2017,1710-00433,0.00,335.58,R,Affinity Trust,No,,
Http://opendatacommunities.org/id/metropolitan-district-council/leeds,Leeds City Council as Accountable Body,31/10/2017,Social Services Pooled Budgets,Jcs For People With Learning Disabilitie,Third Party Payments,Home Care,568,16/10/2017,1710-00434,0.00,63.92,R,Affinity Trust,No,,
Http://opendatacommunities.org/id/metropolitan-district-council/leeds,Leeds City Council as Accountable Body,31/10/2017,Social Services Pooled Budgets,Jcs For People With Learning Disabilitie,Third Party Payments,Home Care,568,16/10/2017,1710-00435,0.00,1050.66,R,Affinity Trust,No,,
Http://opendatacommunities.org/id/metropolitan-district-council/leeds,Leeds City Council as Accountable Body,31/10/2017,Social Services Pooled Budgets,Jcs For People With Learning Disabilitie,Third Party Payments,Home Care,568,16/10/2017,1710-00436,0.00,3015.11,R,Affinity Trust,No,,
Http://opendatacommunities.org/id/metropolitan-district-council/leeds,Leeds City Council as Accountable Body,31/10/2017,Social Services Pooled Budgets,Jcs For People With Learning Disabilitie,Third Party Payments,Day Centre,564,16/10/2017,1710-00437,0.00,3177.09,R,Affinity Trust,No,,
Http://opendatacommunities.org/id/metropolitan-district-council/leeds,Leeds City Council as Accountable Body,31/10/2017,Social Services Pooled Budgets,Jcs For People With Learning Disabilitie,Third Party Payments,Home Care,568,16/10/2017,1710-00438,0.00,977.31,R,Affinity Trust,No,,
Http://opendatacommunities.org/id/metropolitan-district-council/leeds,Leeds City Council as Accountable Body,31/10/2017,Social Services Pooled Budgets,Jcs For People With Learning Disabilitie,Third Party Payments,Home Care,568,16/10/2017,1710-00439,0.00,3446.80,R,Affinity Trust,No,,
Http://opendatacommunities.org/id/metropolitan-district-council/leeds,Leeds City Council as Accountable Body,31/10/2017,Social Services Pooled Budgets,Jcs For People With Learning Disabilitie,Third Party Payments,Day Centre,564,16/10/2017,1710-00440,0.00,3051.63,R,Affinity Trust,No,,
Http://opendatacommunities.org/id/metropolitan-district-council/leeds,Leeds City Council,31/10/2017,Adults and Health,Services For Older People Under 65 P/Dis,Third Party Payments,Home Care,568,17/10/2017,1710-00441,0.00,117.74,R,Affinity Trust,No,,
Http://opendatacommunities.org/id/metropolitan-district-council/leeds,Leeds City Council,31/10/2017,Adults and Health,Services For Older People Under 65 P/Dis,Third Party Payments,Home Care,568,17/10/2017,1710-00442,0.00,403.68,R,Affinity Trust,No,,
Http://opendatacommunities.org/id/metropolitan-district-council/leeds,Leeds City Council,31/10/2017,Adults and Health,Assessment And Care Management,Third Party Payments,Home Care,568,17/10/2017,1710-00443,0.00,439.45,R,Affinity Trust,No,,
Http://opendatacommunities.org/id/metropolitan-district-council/leeds,Leeds City Council as Accountable Body,31/10/2017,Social Services Pooled Budgets,Jcs For People With Learning Disabilitie,Third Party Payments,Home Care,568,19/10/2017,1710-00444,0.00,777.75,R,Affinity Trust,No,,
Http://opendatacommunities.org/id/metropolitan-district-council/leeds,Leeds City Council as Accountable Body,31/10/2017,Social Services Pooled Budgets,Jcs For People With Learning Disabilitie,Third Party Payments,Home Care,568,19/10/2017,1710-00445,0.00,958.80,R,Affinity Trust,No,,
Http://opendatacommunities.org/id/metropolitan-district-council/leeds,Leeds City Council as Accountable Body,31/10/2017,Social Services Pooled Budgets,Jcs For People With Learning Disabilitie,Third Party Payments,Home Care,568,19/10/2017,1710-00446,0.00,639.20,R,Affinity Trust,No,,
Http://opendatacommunities.org/id/metropolitan-district-council/leeds,Leeds City Council as Accountable Body,31/10/2017,Social Services Pooled Budgets,Jcs For People With Learning Disabilitie,Third Party Payments,Home Care,568,19/10/2017,1710-00447,0.00,1062.67,R,Affinity Trust,No,,
Http://opendatacommunities.org/id/metropolitan-district-council/leeds,Leeds City Council as Accountable Body,31/10/2017,Social Services Pooled Budgets,Jcs For People With Learning Disabilitie,Third Party Payments,Home Care,568,19/10/2017,1710-00448,0.00,2516.85,R,Affinity Trust,No,,
Http://opendatacommunities.org/id/metropolitan-district-council/leeds,Leeds City Council as Accountable Body,31/10/2017,Social Services Pooled Budgets,Jcs For People With Learning Disabilitie,Third Party Payments,Home Care,568,19/10/2017,1710-00449,0.00,958.80,R,Affinity Trust,No,,
Http://opendatacommunities.org/id/metropolitan-district-council/leeds,Leeds City Council as Accountable Body,31/10/2017,Social Services Pooled Budgets,Jcs For People With Learning Disabilitie,Third Party Payments,Home Care,568,19/10/2017,1710-00450,0.00,383.52,R,Affinity Trust,No,,
Http://opendatacommunities.org/id/metropolitan-district-council/leeds,Leeds City Council as Accountable Body,31/10/2017,Social Services Pooled Budgets,Jcs For People With Learning Disabilitie,Third Party Payments,Home Care,568,19/10/2017,1710-00451,0.00,351.56,R,Affinity Trust,No,,
Http://opendatacommunities.org/id/metropolitan-district-council/leeds,Leeds City Council as Accountable Body,31/10/2017,Social Services Pooled Budgets,Jcs For People With Learning Disabilitie,Third Party Payments,Home Care,568,19/10/2017,1710-00452,0.00,383.52,R,Affinity Trust,No,,
Http://opendatacommunities.org/id/metropolitan-district-council/leeds,Leeds City Council as Accountable Body,31/10/2017,Social Services Pooled Budgets,Jcs For People With Learning Disabilitie,Third Party Payments,Home Care,568,19/10/2017,1710-00453,0.00,287.64,R,Affinity Trust,No,,
Http://opendatacommunities.org/id/metropolitan-district-council/leeds,Leeds City Council,31/10/2017,Adults and Health,Assessment And Care Management,Third Party Payments,Home Care,568,23/10/2017,1710-00454,0.00,359.55,R,Affinity Trust,No,,
Http://opendatacommunities.org/id/metropolitan-district-council/leeds,Leeds City Council,31/10/2017,Adults and Health,Services For Adults Under 65 Mental/Dis,Third Party Payments,Home Care,568,25/10/2017,1710-00455,0.00,639.20,R,Affinity Trust,No,,
Http://opendatacommunities.org/id/metropolitan-district-council/leeds,Leeds City Council,31/10/2017,Adults and Health,Assessment And Care Management,Third Party Payments,Home Care,568,27/10/2017,1710-00456,0.00,511.36,R,Affinity Trust,No,,
Http://opendatacommunities.org/id/metropolitan-district-council/leeds,Leeds City Council as Accountable Body,31/10/2017,Social Services Pooled Budgets,Jcs For People With Learning Disabilitie,Third Party Payments,Sheltered Accommodation,569,18/10/2017,1710-00457,0.00,125862.72,R,Affinity Trust North Divisional Office,No,,
Http://opendatacommunities.org/id/metropolitan-district-council/leeds,Leeds City Council,31/10/2017,Communities and Environment,Parks And Countryside  ,Transport,Hire Of Movable Plant & Machinery,315,19/09/2017,1710-00458,0.00,5700.00,R,Afi Uplift Ltd,Yes,,
Http://opendatacommunities.org/id/metropolitan-district-council/leeds,Leeds City Council,31/10/2017,Communities and Environment,Parks And Countryside  ,Transport,Hire Of Movable Plant & Machinery,315,28/09/2017,1710-00459,0.00,950.00,R,Afi Uplift Ltd,Yes,,
Http://opendatacommunities.org/id/metropolitan-district-council/leeds,Leeds City Council,31/10/2017,City Development,Libraries  Arts & Heritage,Supplies and Services,Other Hired And Contracted Services,265,19/10/2017,1710-00460,0.00,200.00,R,After Hours,No,,
Http://opendatacommunities.org/id/metropolitan-district-council/leeds,Leeds City Council,31/10/2017,City Development,Employment & Skills,Supplies and Services,College Contracts,276,18/10/2017,1710-00461,0.00,250.00,R,Age Uk Leeds,No,,
Http://opendatacommunities.org/id/metropolitan-district-council/leeds,Leeds City Council,31/10/2017,Communities and Environment,Elections  Licensing and Registration,Premises,Rents,141,13/10/2017,1710-00462,0.00,50.00,R,REDACTED PERSONAL DATA,No,,
Http://opendatacommunities.org/id/metropolitan-district-council/leeds,Leeds City Council,31/10/2017,Children and Families,Learning Skills & Universal,Supplies and Services,Teaching Materials,202,06/10/2017,1710-00463,0.00,38.46,R,Aid Training & Operations Ltd,No,,
Http://opendatacommunities.org/id/metropolitan-district-council/leeds,Leeds City Council,31/10/2017,Children and Families,Learning Skills & Universal,Supplies and Services,Teaching Materials,202,06/10/2017,1710-00464,0.00,30.96,R,Aid Training & Operations Ltd,No,,
Http://opendatacommunities.org/id/metropolitan-district-council/leeds,Leeds City Council,31/10/2017,Children and Families,Learning Skills & Universal,Supplies and Services,Teaching Materials,202,06/10/2017,1710-00465,0.00,35.96,R,Aid Training & Operations Ltd,No,,
Http://opendatacommunities.org/id/metropolitan-district-council/leeds,Leeds City Council,31/10/2017,Children and Families,Learning Skills & Universal,Supplies and Services,Teaching Materials,202,06/10/2017,1710-00466,0.00,25.96,R,Aid Training & Operations Ltd,No,,
Http://opendatacommunities.org/id/metropolitan-district-council/leeds,Leeds City Council,31/10/2017,Children and Families,Learning Skills & Universal,Supplies and Services,Teaching Materials,202,30/10/2017,1710-00467,0.00,40.96,R,Aid Training & Operations Ltd,No,,
Http://opendatacommunities.org/id/metropolitan-district-council/leeds,Leeds City Council as Accountable Body,31/10/2017,Social Services Pooled Budgets,Leeds Community Equip Store Pooled Budgt,Supplies and Services,Other Equipment,203,05/10/2017,1710-00468,0.00,-274.85,R,Aidapt Bathrooms Ltd,No,,
Http://opendatacommunities.org/id/metropolitan-district-council/leeds,Leeds City Council as Accountable Body,31/10/2017,Social Services Pooled Budgets,Leeds Community Equip Store Pooled Budgt,Supplies and Services,Other Equipment,203,05/10/2017,1710-00469,0.00,2793.95,R,Aidapt Bathrooms Ltd,No,,
Http://opendatacommunities.org/id/metropolitan-district-council/leeds,Leeds City Council as Accountable Body,31/10/2017,Social Services Pooled Budgets,Leeds Community Equip Store Pooled Budgt,Supplies and Services,Other Equipment,203,05/10/2017,1710-00470,0.00,1099.40,R,Aidapt Bathrooms Ltd,No,,
Http://opendatacommunities.org/id/metropolitan-district-council/leeds,Leeds City Council as Accountable Body,31/10/2017,Social Services Pooled Budgets,Leeds Community Equip Store Pooled Budgt,Supplies and Services,Other Equipment,203,05/10/2017,1710-00471,0.00,120.80,R,Aidapt Bathrooms Ltd,No,,
Http://opendatacommunities.org/id/metropolitan-district-council/leeds,Leeds City Council as Accountable Body,31/10/2017,Social Services Pooled Budgets,Leeds Community Equip Store Pooled Budgt,Supplies and Services,Other Equipment,203,13/10/2017,1710-00472,0.00,2876.70,R,Aidapt Bathrooms Ltd,No,,
Http://opendatacommunities.org/id/metropolitan-district-council/leeds,Leeds City Council as Accountable Body,31/10/2017,Social Services Pooled Budgets,Leeds Community Equip Store Pooled Budgt,Supplies and Services,Other Equipment,203,13/10/2017,1710-00473,0.00,1404.45,R,Aidapt Bathrooms Ltd,No,,
Http://opendatacommunities.org/id/metropolitan-district-council/leeds,Leeds City Council as Accountable Body,31/10/2017,Social Services Pooled Budgets,Leeds Community Equip Store Pooled Budgt,Supplies and Services,Other Equipment,203,17/10/2017,1710-00474,0.00,214.00,R,Aidapt Bathrooms Ltd,No,,
Http://opendatacommunities.org/id/metropolitan-district-council/leeds,Leeds City Council as Accountable Body,31/10/2017,Social Services Pooled Budgets,Leeds Community Equip Store Pooled Budgt,Supplies and Services,Other Equipment,203,17/10/2017,1710-00475,0.00,274.85,R,Aidapt Bathrooms Ltd,No,,
Http://opendatacommunities.org/id/metropolitan-district-council/leeds,Leeds City Council as Accountable Body,31/10/2017,Social Services Pooled Budgets,Leeds Community Equip Store Pooled Budgt,Supplies and Services,Other Equipment,203,20/10/2017,1710-00476,0.00,2128.60,R,Aidapt Bathrooms Ltd,No,,
Http://opendatacommunities.org/id/metropolitan-district-council/leeds,Leeds City Council as Accountable Body,31/10/2017,Social Services Pooled Budgets,Leeds Community Equip Store Pooled Budgt,Supplies and Services,Other Equipment,203,26/10/2017,1710-00477,0.00,74.40,R,Aidapt Bathrooms Ltd,No,,
Http://opendatacommunities.org/id/metropolitan-district-council/leeds,Leeds City Council as Accountable Body,31/10/2017,Social Services Pooled Budgets,Leeds Community Equip Store Pooled Budgt,Supplies and Services,Other Equipment,203,26/10/2017,1710-00478,0.00,81.84,R,Aidapt Bathrooms Ltd,No,,
Http://opendatacommunities.org/id/metropolitan-district-council/leeds,Leeds City Council as Accountable Body,31/10/2017,Social Services Pooled Budgets,Leeds Community Equip Store Pooled Budgt,Supplies and Services,Other Equipment,203,26/10/2017,1710-00479,0.00,225.06,R,Aidapt Bathrooms Ltd,No,,
Http://opendatacommunities.org/id/metropolitan-district-council/leeds,Leeds City Council as Accountable Body,31/10/2017,Social Services Pooled Budgets,Leeds Community Equip Store Pooled Budgt,Supplies and Services,Other Equipment,203,27/10/2017,1710-00480,0.00,549.70,R,Aidapt Bathrooms Ltd,No,,
Http://opendatacommunities.org/id/metropolitan-district-council/leeds,Leeds City Council as Accountable Body,31/10/2017,Social Services Pooled Budgets,Leeds Community Equip Store Pooled Budgt,Supplies and Services,Other Equipment,203,27/10/2017,1710-00481,0.00,1611.65,R,Aidapt Bathrooms Ltd,No,,
Http://opendatacommunities.org/id/metropolitan-district-council/leeds,Leeds City Council,31/10/2017,Children and Families,Safeguarding Targeted & Specialist  ,Supplies and Services,Office Consumables,210,07/09/2017,1710-00482,0.00,29.26,R,Aids4mobility,Yes,,
Http://opendatacommunities.org/id/metropolitan-district-council/leeds,Leeds City Council,31/10/2017,Children and Families,Safeguarding Targeted & Specialist  ,Supplies and Services,Office Consumables,210,22/09/2017,1710-00483,0.00,-29.26,R,Aids4mobility,Yes,,
Http://opendatacommunities.org/id/metropolitan-district-council/leeds,Leeds City Council,31/10/2017,City Development,Libraries  Arts & Heritage,Supplies and Services,Operational Materials,205,24/10/2017,1710-00484,0.00,2725.00,R,Aimee Grundell,No,,
Http://opendatacommunities.org/id/metropolitan-district-council/leeds,Leeds City Council,31/10/2017,Resources and Housing,Leeds Building Services,Supplies and Services,Operational Materials,205,02/10/2017,1710-00485,0.00,10.06,R,Air Conditioning Accessories,No,,
Http://opendatacommunities.org/id/metropolitan-district-council/leeds,Leeds City Council,31/10/2017,Resources and Housing,Leeds Building Services,Supplies and Services,Operational Materials,205,10/10/2017,1710-00486,0.00,47.46,R,Air Conditioning Accessories,No,,
Http://opendatacommunities.org/id/metropolitan-district-council/leeds,Leeds City Council,31/10/2017,Resources and Housing,Leeds Building Services,Supplies and Services,Operational Materials,205,19/10/2017,1710-00487,0.00,164.72,R,Air Conditioning Accessories,No,,
Http://opendatacommunities.org/id/metropolitan-district-council/leeds,Leeds City Council,31/10/2017,Resources and Housing,Leeds Building Services,Supplies and Services,Operational Materials,205,24/10/2017,1710-00488,0.00,35.22,R,Air Conditioning Accessories,No,,
Http://opendatacommunities.org/id/metropolitan-district-council/leeds,Leeds City Council,31/10/2017,Resources and Housing,Leeds Building Services,Supplies and Services,Operational Materials,205,24/10/2017,1710-00489,0.00,33.00,R,Air Conditioning Accessories,No,,
Http://opendatacommunities.org/id/metropolitan-district-council/leeds,Leeds City Council,31/10/2017,Resources and Housing,Leeds Building Services,Supplies and Services,Operational Materials,205,02/10/2017,1710-00490,0.00,81.16,R,Air Force Pneumatics & Hydraulics,No,,
Http://opendatacommunities.org/id/metropolitan-district-council/leeds,Leeds City Council,31/10/2017,Resources and Housing,Leeds Building Services,Supplies and Services,Operational Materials,205,19/10/2017,1710-00491,0.00,79.35,R,Air Force Pneumatics & Hydraulics,No,,
Http://opendatacommunities.org/id/metropolitan-district-council/leeds,Leeds City Council,31/10/2017,Resources and Housing,Leeds Building Services,Supplies and Services,Operational Materials,205,19/10/2017,1710-00492,0.00,74.95,R,Air Force Pneumatics & Hydraulics,No,,
Http://opendatacommunities.org/id/metropolitan-district-council/leeds,Leeds City Council,31/10/2017,Resources and Housing,Leeds Building Services,Supplies and Services,Operational Materials,205,19/10/2017,1710-00493,0.00,9.87,R,Air Force Pneumatics & Hydraulics,No,,
Http://opendatacommunities.org/id/metropolitan-district-council/leeds,Leeds City Council,31/10/2017,Resources and Housing,Leeds Building Services,Supplies and Services,Operational Materials,205,24/10/2017,1710-00494,0.00,46.00,R,Air Force Pneumatics & Hydraulics,No,,
Http://opendatacommunities.org/id/metropolitan-district-council/leeds,Leeds City Council,31/10/2017,Resources and Housing,Leeds Building Services,Supplies and Services,Operational Materials,205,31/10/2017,1710-00495,0.00,91.25,R,Air Force Pneumatics & Hydraulics,No,,
Http://opendatacommunities.org/id/metropolitan-district-council/leeds,Leeds City Council,31/10/2017,Resources and Housing,Leeds Building Services,Supplies and Services,Operational Materials,205,02/10/2017,1710-00496,0.00,181.10,R,Air Liquide Uk,No,,
Http://opendatacommunities.org/id/metropolitan-district-council/leeds,Leeds City Council,31/10/2017,Resources and Housing,Leeds Building Services,Supplies and Services,Operational Materials,205,03/10/2017,1710-00497,0.00,78.48,R,Air Liquide Uk,No,,
Http://opendatacommunities.org/id/metropolitan-district-council/leeds,Leeds City Council,31/10/2017,Resources and Housing,Leeds Building Services,Supplies and Services,Operational Materials,205,03/10/2017,1710-00498,0.00,12.00,R,Air Liquide Uk,No,,
Http://opendatacommunities.org/id/metropolitan-district-council/leeds,Leeds City Council,31/10/2017,Resources and Housing,Leeds Building Services,Supplies and Services,Operational Materials,205,10/10/2017,1710-00499,0.00,148.67,R,Air Liquide Uk,No,,
Http://opendatacommunities.org/id/metropolitan-district-council/leeds,Leeds City Council,31/10/2017,Communities and Environment,Environmental Health,Supplies and Services,Other Hired And Contracted Services,265,17/10/2017,1710-00500,0.00,9.39,R,Air Liquide Uk,No,,
Http://opendatacommunities.org/id/metropolitan-district-council/leeds,Leeds City Council,31/10/2017,Communities and Environment,Environmental Health,Supplies and Services,Other Hired And Contracted Services,265,19/10/2017,1710-00501,0.00,75.12,R,Air Liquide Uk,No,,
Http://opendatacommunities.org/id/metropolitan-district-council/leeds,Leeds City Council,31/10/2017,Communities and Environment,Environmental Health,Supplies and Services,Other Hired And Contracted Services,265,20/10/2017,1710-00502,0.00,14.31,R,Air Liquide Uk,No,,
Http://opendatacommunities.org/id/metropolitan-district-council/leeds,Leeds City Council,31/10/2017,Resources and Housing,Leeds Building Services,Supplies and Services,Operational Materials,205,25/10/2017,1710-00503,0.00,181.10,R,Air Liquide Uk,No,,
Http://opendatacommunities.org/id/metropolitan-district-council/leeds,Leeds City Council,31/10/2017,Adults and Health,Services For Adults Under 65 Mental/Dis,Third Party Payments,Residential,580,18/10/2017,1710-00504,0.00,6028.00,R,Aire House,No,,
Http://opendatacommunities.org/id/metropolitan-district-council/leeds,Leeds City Council,31/10/2017,Communities and Environment,Waste Management,Supplies and Services,Other Hired And Contracted Services,265,04/10/2017,1710-00505,0.00,900.00,R,Aire Valley Gas Ltd,No,,
Http://opendatacommunities.org/id/metropolitan-district-council/leeds,Leeds City Council,31/10/2017,City Development,Libraries  Arts & Heritage,Supplies and Services,Operational Furniture And Equipment,203,17/10/2017,1710-00506,0.00,144.76,R,Aire Valley Gas Ltd,No,,
Http://opendatacommunities.org/id/metropolitan-district-council/leeds,Leeds City Council,31/10/2017,City Development,Libraries  Arts & Heritage,Supplies and Services,Operational Furniture And Equipment,203,17/10/2017,1710-00507,0.00,144.76,R,Aire Valley Gas Ltd,No,,
Http://opendatacommunities.org/id/metropolitan-district-council/leeds,Leeds City Council,31/10/2017,City Development,Libraries  Arts & Heritage,Supplies and Services,Operational Furniture And Equipment,203,30/10/2017,1710-00508,0.00,144.76,R,Aire Valley Gas Ltd,No,,
Http://opendatacommunities.org/id/metropolitan-district-council/leeds,Leeds City Council,31/10/2017,City Development,Libraries  Arts & Heritage,Supplies and Services,Operational Furniture And Equipment,203,30/10/2017,1710-00509,0.00,144.76,R,Aire Valley Gas Ltd,No,,
Http://opendatacommunities.org/id/metropolitan-district-council/leeds,Leeds City Council,31/10/2017,Communities and Environment,Parks and Countryside,Supplies and Services,Other Hired And Contracted Services,265,04/10/2017,1710-00510,0.00,1175.00,R,Aire Valley Tree Services Ltd,No,,
Http://opendatacommunities.org/id/metropolitan-district-council/leeds,Leeds City Council,31/10/2017,Adults and Health,Services For Older People - 65 And Over,Third Party Payments,Residential Care Dementia,571,18/10/2017,1710-00511,0.00,68731.98,R,Aire View Residential Home,No,,
Http://opendatacommunities.org/id/metropolitan-district-council/leeds,Leeds City Council,31/10/2017,Adults and Health,Services For Older People - 65 And Over,Third Party Payments,Residential,580,18/10/2017,1710-00512,0.00,19759.12,R,Aire View Residential Home,No,,
Http://opendatacommunities.org/id/metropolitan-district-council/leeds,Leeds City Council,31/10/2017,Communities and Environment,Communities,Supplies and Services,'Well Being' Large Grants Projects,230,31/10/2017,1710-00513,0.00,7796.00,R,Aireborough Supported Activities Scheme,No,,
Http://opendatacommunities.org/id/metropolitan-district-council/leeds,Leeds City Council,31/10/2017,Adults and Health,Services For Older People - 65 And Over,Third Party Payments,Residential Care Dementia,571,18/10/2017,1710-00514,0.00,7650.43,R,Airedale (Goldsborough),No,,
Http://opendatacommunities.org/id/metropolitan-district-council/leeds,Leeds City Council,31/10/2017,Adults and Health,Services For Older People - 65 And Over,Third Party Payments,Residential,580,18/10/2017,1710-00515,0.00,42551.41,R,Airedale (Goldsborough),No,,
Http://opendatacommunities.org/id/metropolitan-district-council/leeds,Leeds City Council,31/10/2017,Adults and Health,Services For Older People Under 65 P/Dis,Third Party Payments,Residential,580,18/10/2017,1710-00516,0.00,45.00,R,Airedale (Goldsborough),No,,
Http://opendatacommunities.org/id/metropolitan-district-council/leeds,Leeds City Council,31/10/2017,Adults and Health,Assessment And Care Management,Employees,Training Costs,71,16/10/2017,1710-00517,0.00,150.00,R,Airedale Community Trading (Act) Ltd,No,,
Http://opendatacommunities.org/id/metropolitan-district-council/leeds,Leeds City Council,31/10/2017,Communities and Environment,Environmental Health,Supplies and Services,Other Hired And Contracted Services,265,09/10/2017,1710-00518,0.00,222.85,R,Aireworth Vets,No,,
Http://opendatacommunities.org/id/metropolitan-district-council/leeds,Leeds City Council,31/10/2017,Resources and Housing,Commercial Services,Supplies and Services,Other Hired And Contracted Services,265,31/10/2017,1710-00519,0.00,175.00,R,Air-Weigh Europe Limited,No,,
Http://opendatacommunities.org/id/metropolitan-district-council/leeds,Leeds City Council,31/10/2017,Adults and Health,Services For Adults Under 65 Mental/Dis,Third Party Payments,Fees - Level 4,520,25/10/2017,1710-00520,0.00,239.50,R,Ait Mitra,No,,
Http://opendatacommunities.org/id/metropolitan-district-council/leeds,Leeds City Council as Accountable Body,31/10/2017,Social Services Pooled Budgets,Jcs For People With Learning Disabilitie,Third Party Payments,Residential,580,18/10/2017,1710-00521,0.00,6173.24,R,Aitch Care Homes,No,,
Http://opendatacommunities.org/id/metropolitan-district-council/leeds,Leeds City Council,31/10/2017,Communities and Environment,Parks and Countryside,Supplies and Services,Operational Materials,205,10/10/2017,1710-00522,0.00,1491.00,R,Aitkens Sportsturf Ltd,No,,
Http://opendatacommunities.org/id/metropolitan-district-council/leeds,Leeds City Council,31/10/2017,Communities and Environment,Parks and Countryside,Supplies and Services,Operational Materials,205,20/10/2017,1710-00523,0.00,24.19,R,Aitkens Sportsturf Ltd,No,,
Http://opendatacommunities.org/id/metropolitan-district-council/leeds,Leeds City Council,31/10/2017,Adults and Health,Services For Older People - 65 And Over,Third Party Payments,Home Care,568,13/10/2017,1710-00524,0.00,28.82,R,Aj Community Care Ltd,No,,
Http://opendatacommunities.org/id/metropolitan-district-council/leeds,Leeds City Council,31/10/2017,Adults and Health,Services For Older People - 65 And Over,Third Party Payments,Home Care,568,20/10/2017,1710-00525,0.00,5502.39,R,Aj Community Care Ltd,No,,
Http://opendatacommunities.org/id/metropolitan-district-council/leeds,Leeds City Council,31/10/2017,Adults and Health,Services For Older People Under 65 P/Dis,Third Party Payments,Home Care,568,20/10/2017,1710-00526,0.00,19057.95,R,Aj Community Care Ltd,No,,
Http://opendatacommunities.org/id/metropolitan-district-council/leeds,Leeds City Council,31/10/2017,Resources and Housing,Leeds Building Services,Supplies and Services,Stores - Central And Other Depots,005,04/10/2017,1710-00527,0.00,134.28,R,Ajm Fixings & Power Tools Ltd,No,,
Http://opendatacommunities.org/id/metropolitan-district-council/leeds,Leeds City Council,31/10/2017,Resources and Housing,Leeds Building Services,Supplies and Services,Operational Furniture And Equipment,203,06/10/2017,1710-00528,0.00,295.80,R,Ajm Fixings & Power Tools Ltd,No,,
Http://opendatacommunities.org/id/metropolitan-district-council/leeds,Leeds City Council,31/10/2017,Resources and Housing,Leeds Building Services,Supplies and Services,Operational Materials,205,10/10/2017,1710-00529,0.00,15.00,R,Ajm Fixings & Power Tools Ltd,No,,
Http://opendatacommunities.org/id/metropolitan-district-council/leeds,Leeds City Council,31/10/2017,Resources and Housing,Leeds Building Services,Supplies and Services,Stores - Central And Other Depots,005,10/10/2017,1710-00530,0.00,121.00,R,Ajm Fixings & Power Tools Ltd,No,,
Http://opendatacommunities.org/id/metropolitan-district-council/leeds,Leeds City Council,31/10/2017,Resources and Housing,Leeds Building Services,Supplies and Services,Operational Furniture And Equipment,203,10/10/2017,1710-00531,0.00,72.00,R,Ajm Fixings & Power Tools Ltd,No,,
Http://opendatacommunities.org/id/metropolitan-district-council/leeds,Leeds City Council,31/10/2017,Resources and Housing,Leeds Building Services,Supplies and Services,Operational Furniture And Equipment,203,11/10/2017,1710-00532,0.00,1133.00,R,Ajm Fixings & Power Tools Ltd,No,,
Http://opendatacommunities.org/id/metropolitan-district-council/leeds,Leeds City Council,31/10/2017,Resources and Housing,Leeds Building Services,Supplies and Services,Operational Furniture And Equipment,203,11/10/2017,1710-00533,0.00,551.00,R,Ajm Fixings & Power Tools Ltd,No,,
Http://opendatacommunities.org/id/metropolitan-district-council/leeds,Leeds City Council,31/10/2017,Resources and Housing,Leeds Building Services,Supplies and Services,Operational Furniture And Equipment,203,12/10/2017,1710-00534,0.00,76.80,R,Ajm Fixings & Power Tools Ltd,No,,
Http://opendatacommunities.org/id/metropolitan-district-council/leeds,Leeds City Council,31/10/2017,Resources and Housing,Leeds Building Services,Supplies and Services,Stores - Central And Other Depots,005,13/10/2017,1710-00535,0.00,79.80,R,Ajm Fixings & Power Tools Ltd,No,,
Http://opendatacommunities.org/id/metropolitan-district-council/leeds,Leeds City Council,31/10/2017,Resources and Housing,Leeds Building Services,Supplies and Services,Operational Furniture And Equipment,203,17/10/2017,1710-00536,0.00,-29.00,R,Ajm Fixings & Power Tools Ltd,No,,
Http://opendatacommunities.org/id/metropolitan-district-council/leeds,Leeds City Council,31/10/2017,Resources and Housing,Leeds Building Services,Supplies and Services,Operational Furniture And Equipment,203,17/10/2017,1710-00537,0.00,1383.00,R,Ajm Fixings & Power Tools Ltd,No,,
Http://opendatacommunities.org/id/metropolitan-district-council/leeds,Leeds City Council,31/10/2017,Resources and Housing,Leeds Building Services,Supplies and Services,Operational Materials,205,24/10/2017,1710-00538,0.00,15.00,R,Ajm Fixings & Power Tools Ltd,No,,
Http://opendatacommunities.org/id/metropolitan-district-council/leeds,Leeds City Council,31/10/2017,Resources and Housing,Leeds Building Services,Supplies and Services,Stores - Central And Other Depots,005,24/10/2017,1710-00539,0.00,31.15,R,Ajm Fixings & Power Tools Ltd,No,,
Http://opendatacommunities.org/id/metropolitan-district-council/leeds,Leeds City Council,31/10/2017,Resources and Housing,Leeds Building Services,Supplies and Services,Stores - Central And Other Depots,005,24/10/2017,1710-00540,0.00,705.05,R,Ajm Fixings & Power Tools Ltd,No,,
Http://opendatacommunities.org/id/metropolitan-district-council/leeds,Leeds City Council,31/10/2017,Resources and Housing,Leeds Building Services,Supplies and Services,Operational Materials,205,24/10/2017,1710-00541,0.00,195.00,R,Ajm Fixings & Power Tools Ltd,No,,
Http://opendatacommunities.org/id/metropolitan-district-council/leeds,Leeds City Council,31/10/2017,Resources and Housing,Leeds Building Services,Supplies and Services,Operational Furniture And Equipment,203,25/10/2017,1710-00542,0.00,114.00,R,Ajm Fixings & Power Tools Ltd,No,,
Http://opendatacommunities.org/id/metropolitan-district-council/leeds,Leeds City Council,31/10/2017,Resources and Housing,Leeds Building Services,Supplies and Services,Operational Furniture And Equipment,203,25/10/2017,1710-00543,0.00,182.40,R,Ajm Fixings & Power Tools Ltd,No,,
Http://opendatacommunities.org/id/metropolitan-district-council/leeds,Leeds City Council,31/10/2017,Resources and Housing,Leeds Building Services,Supplies and Services,Stores - Central And Other Depots,005,25/10/2017,1710-00544,0.00,54.50,R,Ajm Fixings & Power Tools Ltd,No,,
Http://opendatacommunities.org/id/metropolitan-district-council/leeds,Leeds City Council,31/10/2017,Resources and Housing,Leeds Building Services,Supplies and Services,Operational Materials,205,25/10/2017,1710-00545,0.00,292.50,R,Ajm Fixings & Power Tools Ltd,No,,
Http://opendatacommunities.org/id/metropolitan-district-council/leeds,Leeds City Council,31/10/2017,Resources and Housing,Leeds Building Services,Supplies and Services,Operational Furniture And Equipment,203,27/10/2017,1710-00546,0.00,358.00,R,Ajm Fixings & Power Tools Ltd,No,,
Http://opendatacommunities.org/id/metropolitan-district-council/leeds,Leeds City Council,31/10/2017,Resources and Housing,Leeds Building Services,Supplies and Services,Operational Furniture And Equipment,203,27/10/2017,1710-00547,0.00,216.33,R,Ajm Fixings & Power Tools Ltd,No,,
Http://opendatacommunities.org/id/metropolitan-district-council/leeds,Leeds City Council,31/10/2017,Resources and Housing,Leeds Building Services,Supplies and Services,Operational Furniture And Equipment,203,27/10/2017,1710-00548,0.00,39.00,R,Ajm Fixings & Power Tools Ltd,No,,
Http://opendatacommunities.org/id/metropolitan-district-council/leeds,Leeds City Council,31/10/2017,Adults and Health,Services For Older People - 65 And Over,Third Party Payments,Nursing Home,570,18/10/2017,1710-00549,0.00,1247.60,R,Akari Care Ltd,No,,
Http://opendatacommunities.org/id/metropolitan-district-council/leeds,Leeds City Council,31/10/2017,Children and Families,Safeguarding Targeted & Specialist,Supplies and Services,General Amenity For Clients/Residents,285,26/10/2017,1710-00550,0.00,17.80,R,REDACTED PERSONAL DATA,No,,
Http://opendatacommunities.org/id/metropolitan-district-council/leeds,Leeds City Council,31/10/2017,Children and Families,Safeguarding Targeted & Specialist,Transport,Public Transport Expenses,310,26/10/2017,1710-00551,0.00,25.60,R,REDACTED PERSONAL DATA,No,,
Http://opendatacommunities.org/id/metropolitan-district-council/leeds,Leeds City Council,31/10/2017,Adults and Health,Assessment And Care Management,Employees,Training & Development,70,23/10/2017,1710-00552,0.00,7500.00,R,Akd Solutions Ltd,No,,
Http://opendatacommunities.org/id/metropolitan-district-council/leeds,Leeds City Council,31/10/2017,Resources and Housing,Leeds Building Services,Supplies and Services,Operational Materials,205,02/10/2017,1710-00553,0.00,54.67,R,Akw Medicare Ltd,No,,
Http://opendatacommunities.org/id/metropolitan-district-council/leeds,Leeds City Council,31/10/2017,Resources and Housing,Leeds Building Services,Supplies and Services,Operational Materials,205,04/10/2017,1710-00554,0.00,54.67,R,Akw Medicare Ltd,No,,
Http://opendatacommunities.org/id/metropolitan-district-council/leeds,Leeds City Council,31/10/2017,Resources and Housing,Leeds Building Services,Supplies and Services,Operational Materials,205,11/10/2017,1710-00555,0.00,50.22,R,Akw Medicare Ltd,No,,
Http://opendatacommunities.org/id/metropolitan-district-council/leeds,Leeds City Council,31/10/2017,Resources and Housing,Leeds Building Services,Supplies and Services,Operational Materials,205,13/10/2017,1710-00556,0.00,109.34,R,Akw Medicare Ltd,No,,
Http://opendatacommunities.org/id/metropolitan-district-council/leeds,Leeds City Council,31/10/2017,Resources and Housing,Leeds Building Services,Supplies and Services,Operational Materials,205,13/10/2017,1710-00557,0.00,109.34,R,Akw Medicare Ltd,No,,
Http://opendatacommunities.org/id/metropolitan-district-council/leeds,Leeds City Council,31/10/2017,Resources and Housing,Leeds Building Services,Supplies and Services,Operational Materials,205,19/10/2017,1710-00558,0.00,54.67,R,Akw Medicare Ltd,No,,
Http://opendatacommunities.org/id/metropolitan-district-council/leeds,Leeds City Council,31/10/2017,Resources and Housing,Leeds Building Services,Supplies and Services,Operational Materials,205,24/10/2017,1710-00559,0.00,54.67,R,Akw Medicare Ltd,No,,
Http://opendatacommunities.org/id/metropolitan-district-council/leeds,Leeds City Council,31/10/2017,Resources and Housing,Leeds Building Services,Supplies and Services,Operational Materials,205,26/10/2017,1710-00560,0.00,54.67,R,Akw Medicare Ltd,No,,
Http://opendatacommunities.org/id/metropolitan-district-council/leeds,Leeds City Council,31/10/2017,Resources and Housing,Leeds Building Services,Supplies and Services,Operational Materials,205,26/10/2017,1710-00561,0.00,54.67,R,Akw Medicare Ltd,No,,
Http://opendatacommunities.org/id/metropolitan-district-council/leeds,Leeds City Council,31/10/2017,Children and Families,Safeguarding Targeted & Specialist,Third Party Payments,Section 17,551,04/10/2017,1710-00562,0.00,75.00,R,REDACTED PERSONAL DATA,No,,
Http://opendatacommunities.org/id/metropolitan-district-council/leeds,Leeds City Council,31/10/2017,Children and Families,Learning Skills & Universal,Supplies and Services,Bought In Professional Services,277,20/10/2017,1710-00563,0.00,500.00,R,Alan Pergusey,No,,
Http://opendatacommunities.org/id/metropolitan-district-council/leeds,Leeds City Council as Accountable Body,31/10/2017,Social Services Pooled Budgets,Leeds Community Equip Store Pooled Budgt,Supplies and Services,Other Equipment,203,17/10/2017,1710-00564,0.00,259.00,R,Albion Electric Stores Ltd,No,,
Http://opendatacommunities.org/id/metropolitan-district-council/leeds,Leeds City Council,31/10/2017,Communities and Environment,Communities,Supplies and Services,Computer Software & Equipment,214,27/10/2017,1710-00565,0.00,1075.00,R,Alcium Software Ltd,No,,
Http://opendatacommunities.org/id/metropolitan-district-council/leeds,Leeds City Council,31/10/2017,Children and Families,Safeguarding Targeted & Specialist  ,Supplies and Services,Food & Drink,231,31/08/2017,1710-00566,0.00,36.81,R,Aldi,Yes,,
Http://opendatacommunities.org/id/metropolitan-district-council/leeds,Leeds City Council,31/10/2017,Children and Families,Safeguarding Targeted & Specialist  ,Transfer Payments,Leaving Care Allowances,634,19/09/2017,1710-00567,0.00,3.25,R,Aldi 49 779,Yes,,
Http://opendatacommunities.org/id/metropolitan-district-council/leeds,Leeds City Council,31/10/2017,Children and Families,Safeguarding Targeted & Specialist,Support Services,Legal Disbursements,411,04/10/2017,1710-00568,0.00,66.00,R,Alere Toxicology Plc,No,,
Http://opendatacommunities.org/id/metropolitan-district-council/leeds,Leeds City Council,31/10/2017,Children and Families,Safeguarding Targeted & Specialist,Support Services,Legal Disbursements,411,04/10/2017,1710-00569,0.00,112.75,R,Alere Toxicology Plc,No,,
Http://opendatacommunities.org/id/metropolitan-district-council/leeds,Leeds City Council,31/10/2017,Children and Families,Safeguarding Targeted & Specialist,Support Services,Legal Disbursements,411,04/10/2017,1710-00570,0.00,24.75,R,Alere Toxicology Plc,No,,
Http://opendatacommunities.org/id/metropolitan-district-council/leeds,Leeds City Council,31/10/2017,Children and Families,Safeguarding Targeted & Specialist,Support Services,Legal Disbursements,411,11/10/2017,1710-00571,0.00,68.75,R,Alere Toxicology Plc,No,,
Http://opendatacommunities.org/id/metropolitan-district-council/leeds,Leeds City Council,31/10/2017,Children and Families,Safeguarding Targeted & Specialist,Support Services,Legal Disbursements,411,13/10/2017,1710-00572,0.00,316.08,R,Alere Toxicology Plc,No,,
Http://opendatacommunities.org/id/metropolitan-district-council/leeds,Leeds City Council,31/10/2017,Children and Families,Safeguarding Targeted & Specialist,Support Services,Legal Disbursements,411,20/10/2017,1710-00573,0.00,216.00,R,Alere Toxicology Plc,No,,
Http://opendatacommunities.org/id/metropolitan-district-council/leeds,Leeds City Council,31/10/2017,Children and Families,Safeguarding Targeted & Specialist,Support Services,Legal Disbursements,411,27/10/2017,1710-00574,0.00,131.75,R,Alere Toxicology Plc,No,,
Http://opendatacommunities.org/id/metropolitan-district-council/leeds,Leeds City Council,31/10/2017,Children and Families,Safeguarding Targeted & Specialist,Support Services,Legal Disbursements,411,27/10/2017,1710-00575,0.00,131.75,R,Alere Toxicology Plc,No,,
Http://opendatacommunities.org/id/metropolitan-district-council/leeds,Leeds City Council,31/10/2017,Children and Families,Safeguarding Targeted & Specialist,Supplies and Services,General Amenity For Clients/Residents,285,19/10/2017,1710-00576,0.00,52.50,R,REDACTED PERSONAL DATA,No,,
Http://opendatacommunities.org/id/metropolitan-district-council/leeds,Leeds City Council,31/10/2017,Children and Families,Safeguarding Targeted & Specialist,Transport,Public Transport Expenses,310,19/10/2017,1710-00577,0.00,33.00,R,REDACTED PERSONAL DATA,No,,
Http://opendatacommunities.org/id/metropolitan-district-council/leeds,Leeds City Council,31/10/2017,Children and Families,Safeguarding Targeted & Specialist,Support Services,Legal Disbursements,411,04/10/2017,1710-00578,0.00,884.00,R,Alex Taylor,No,,
Http://opendatacommunities.org/id/metropolitan-district-council/leeds,Leeds City Council,31/10/2017,Children and Families,Safeguarding Targeted & Specialist,Support Services,Legal Disbursements,411,19/10/2017,1710-00579,0.00,361.00,R,Alex Taylor,No,,
Http://opendatacommunities.org/id/metropolitan-district-council/leeds,Leeds City Council,31/10/2017,Children and Families,Safeguarding Targeted & Specialist,Support Services,Legal Disbursements,411,19/10/2017,1710-00580,0.00,848.00,R,Alex Taylor,No,,
Http://opendatacommunities.org/id/metropolitan-district-council/leeds,Leeds City Council,31/10/2017,Resources and Housing,Commercial Services,Supplies and Services,Other Hired And Contracted Services,265,12/10/2017,1710-00581,0.00,295.00,R,Alex Wagg,No,,
Http://opendatacommunities.org/id/metropolitan-district-council/leeds,Leeds City Council,31/10/2017,Resources and Housing,Commercial Services,Transport,Vehicle Spares,345,12/10/2017,1710-00582,0.00,220.00,R,Alex Wagg,No,,
Http://opendatacommunities.org/id/metropolitan-district-council/leeds,Leeds City Council,31/10/2017,Resources and Housing,Commercial Services,Supplies and Services,Other Hired And Contracted Services,265,19/10/2017,1710-00583,0.00,295.00,R,Alex Wagg,No,,
Http://opendatacommunities.org/id/metropolitan-district-council/leeds,Leeds City Council,31/10/2017,Resources and Housing,Commercial Services,Supplies and Services,Other Hired And Contracted Services,265,19/10/2017,1710-00584,0.00,330.00,R,Alex Wagg,No,,
Http://opendatacommunities.org/id/metropolitan-district-council/leeds,Leeds City Council,31/10/2017,Communities and Environment,Car Parking Services,Income,Penalties  Fines & Car Parking Charges,934,20/10/2017,1710-00585,0.00,3.80,R,REDACTED PERSONAL DATA,No,,
Http://opendatacommunities.org/id/metropolitan-district-council/leeds,Leeds City Council,31/10/2017,Adults and Health,Services For Older People - 65 And Over,Third Party Payments,Residential Care Dementia,571,18/10/2017,1710-00586,0.00,20206.93,R,Alexander Residential Home,No,,
Http://opendatacommunities.org/id/metropolitan-district-council/leeds,Leeds City Council,31/10/2017,Adults and Health,Services For Older People - 65 And Over,Third Party Payments,Residential,580,18/10/2017,1710-00587,0.00,21664.79,R,Alexander Residential Home,No,,
Http://opendatacommunities.org/id/metropolitan-district-council/leeds,Leeds City Council,31/10/2017,Communities and Environment,Customer Access,Supplies and Services,Other Hired And Contracted Services,265,04/10/2017,1710-00588,0.00,666.75,R,Alexandra Costenco,No,,
Http://opendatacommunities.org/id/metropolitan-district-council/leeds,Leeds City Council,31/10/2017,Adults and Health,Services For Older People - 65 And Over,Third Party Payments,Residential Care Dementia,571,18/10/2017,1710-00589,0.00,1577.96,R,Alexandra Court,No,,
Http://opendatacommunities.org/id/metropolitan-district-council/leeds,Leeds City Council,31/10/2017,Adults and Health,Services For Older People - 65 And Over,Third Party Payments,Residential,580,18/10/2017,1710-00590,0.00,11156.44,R,Alexandra Court,No,,
Http://opendatacommunities.org/id/metropolitan-district-council/leeds,Leeds City Council,31/10/2017,Children and Families,Safeguarding Targeted & Specialist,Third Party Payments,Services Rendered By Other Organisations,511,27/10/2017,1710-00591,0.00,63.64,R,Alexandra Leigh,No,,
Http://opendatacommunities.org/id/metropolitan-district-council/leeds,Leeds City Council,31/10/2017,Resources and Housing,Leeds Building Services,Supplies and Services,Other Hired And Contracted Services,265,04/10/2017,1710-00592,0.00,2306.00,R,Alfred Bagnall & Sons (Leeds) Ltd,No,,
Http://opendatacommunities.org/id/metropolitan-district-council/leeds,Leeds City Council,31/10/2017,City Development,Libraries  Arts & Heritage,Supplies and Services,Bought In Professional Services,277,09/10/2017,1710-00593,0.00,4775.00,R,Alfred Bagnall & Sons (Leeds) Ltd,No,,
Http://opendatacommunities.org/id/metropolitan-district-council/leeds,Leeds City Council,31/10/2017,City Development,Libraries  Arts & Heritage,Supplies and Services,Bought In Professional Services,277,09/10/2017,1710-00594,0.00,7764.00,R,Alfred Bagnall & Sons (Leeds) Ltd,No,,
Http://opendatacommunities.org/id/metropolitan-district-council/leeds,Leeds City Council,31/10/2017,Resources and Housing,Leeds Building Services,Supplies and Services,Other Hired And Contracted Services,265,13/10/2017,1710-00595,0.00,480.00,R,Alfred Bagnall & Sons (Leeds) Ltd,No,,
Http://opendatacommunities.org/id/metropolitan-district-council/leeds,Leeds City Council,31/10/2017,Communities and Environment,Customer Access,Supplies and Services,Other Hired And Contracted Services,265,19/10/2017,1710-00596,0.00,1774.00,R,Alfred Bagnall & Sons (Leeds) Ltd,No,,
Http://opendatacommunities.org/id/metropolitan-district-council/leeds,Leeds City Council,31/10/2017,Resources and Housing,Leeds Building Services,Supplies and Services,Other Hired And Contracted Services,265,24/10/2017,1710-00597,0.00,22239.86,R,Alfred Bagnall & Sons (Leeds) Ltd,No,,
Http://opendatacommunities.org/id/metropolitan-district-council/leeds,Leeds City Council,31/10/2017,City Development,Libraries  Arts & Heritage,Supplies and Services,Bought In Professional Services,277,25/10/2017,1710-00598,0.00,5893.79,R,Alfred Bagnall & Sons (Leeds) Ltd,No,,
Http://opendatacommunities.org/id/metropolitan-district-council/leeds,Leeds City Council,31/10/2017,City Development,Libraries  Arts & Heritage,Supplies and Services,Bought In Professional Services,277,25/10/2017,1710-00599,0.00,35849.00,R,Alfred Bagnall & Sons (Leeds) Ltd,No,,
Http://opendatacommunities.org/id/metropolitan-district-council/leeds,Leeds City Council,31/10/2017,City Development,Libraries  Arts & Heritage,Supplies and Services,Bought In Professional Services,277,25/10/2017,1710-00600,0.00,1500.00,R,Alfred Bagnall & Sons (Leeds) Ltd,No,,
Http://opendatacommunities.org/id/metropolitan-district-council/leeds,Leeds City Council,31/10/2017,City Development,Libraries  Arts & Heritage,Supplies and Services,Bought In Professional Services,277,26/10/2017,1710-00601,0.00,2000.00,R,Alfred Bagnall & Sons (Leeds) Ltd,No,,
Http://opendatacommunities.org/id/metropolitan-district-council/leeds,Leeds City Council,31/10/2017,City Development,Libraries  Arts & Heritage,Supplies and Services,Bought In Professional Services,277,26/10/2017,1710-00602,0.00,2150.00,R,Alfred Bagnall & Sons (Leeds) Ltd,No,,
Http://opendatacommunities.org/id/metropolitan-district-council/leeds,Leeds City Council,31/10/2017,City Development,Libraries  Arts & Heritage,Supplies and Services,Bought In Professional Services,277,26/10/2017,1710-00603,0.00,1800.00,R,Alfred Bagnall & Sons (Leeds) Ltd,No,,
Http://opendatacommunities.org/id/metropolitan-district-council/leeds,Leeds City Council,31/10/2017,City Development,Libraries  Arts & Heritage,Supplies and Services,Bought In Professional Services,277,26/10/2017,1710-00604,0.00,2500.00,R,Alfred Bagnall & Sons (Leeds) Ltd,No,,
Http://opendatacommunities.org/id/metropolitan-district-council/leeds,Leeds City Council,31/10/2017,City Development,Libraries  Arts & Heritage,Supplies and Services,Bought In Professional Services,277,26/10/2017,1710-00605,0.00,3967.00,R,Alfred Bagnall & Sons (Leeds) Ltd,No,,
Http://opendatacommunities.org/id/metropolitan-district-council/leeds,Leeds City Council,31/10/2017,Adults and Health,Services For Older People - 65 And Over,Supplies and Services,Operational Furniture And Equipment,203,26/10/2017,1710-00606,0.00,1200.00,R,Alfred Bagnall & Sons (Leeds) Ltd,No,,
Http://opendatacommunities.org/id/metropolitan-district-council/leeds,Leeds City Council,31/10/2017,City Development,Libraries  Arts & Heritage,Supplies and Services,Other Hired And Contracted Services,265,26/10/2017,1710-00607,0.00,596.37,R,Alfred Bagnall & Sons (Leeds) Ltd,No,,
Http://opendatacommunities.org/id/metropolitan-district-council/leeds,Leeds City Council,31/10/2017,Adults and Health,Services For Older People - 65 And Over,Supplies and Services,Operational Furniture And Equipment,203,26/10/2017,1710-00608,0.00,8302.00,R,Alfred Bagnall & Sons (Leeds) Ltd,No,,
Http://opendatacommunities.org/id/metropolitan-district-council/leeds,Leeds City Council,31/10/2017,Communities and Environment,Customer Access,Supplies and Services,Other Hired And Contracted Services,265,04/10/2017,1710-00609,0.00,56.75,R,Ali Pourakaberian,No,,
Http://opendatacommunities.org/id/metropolitan-district-council/leeds,Leeds City Council,31/10/2017,Children and Families,Safeguarding Targeted & Specialist,Transfer Payments,Leaving Care Allowances,634,27/10/2017,1710-00610,0.00,30.00,R,All Abode,No,,
Http://opendatacommunities.org/id/metropolitan-district-council/leeds,Leeds City Council,31/10/2017,Resources and Housing,Leeds Building Services,Supplies and Services,Other Hired And Contracted Services,265,05/10/2017,1710-00611,0.00,195.00,R,All Clear Solutions Ltd,No,,
Http://opendatacommunities.org/id/metropolitan-district-council/leeds,Leeds City Council,31/10/2017,Resources and Housing,Leeds Building Services,Supplies and Services,Other Hired And Contracted Services,265,05/10/2017,1710-00612,0.00,195.00,R,All Clear Solutions Ltd,No,,
Http://opendatacommunities.org/id/metropolitan-district-council/leeds,Leeds City Council,31/10/2017,Resources and Housing,Leeds Building Services,Supplies and Services,Other Hired And Contracted Services,265,10/10/2017,1710-00613,0.00,195.00,R,All Clear Solutions Ltd,No,,
Http://opendatacommunities.org/id/metropolitan-district-council/leeds,Leeds City Council,31/10/2017,Resources and Housing,Leeds Building Services,Supplies and Services,Other Hired And Contracted Services,265,10/10/2017,1710-00614,0.00,350.00,R,All Clear Solutions Ltd,No,,
Http://opendatacommunities.org/id/metropolitan-district-council/leeds,Leeds City Council,31/10/2017,Resources and Housing,Leeds Building Services,Supplies and Services,Other Hired And Contracted Services,265,10/10/2017,1710-00615,0.00,195.00,R,All Clear Solutions Ltd,No,,
Http://opendatacommunities.org/id/metropolitan-district-council/leeds,Leeds City Council,31/10/2017,Resources and Housing,Leeds Building Services,Supplies and Services,Other Hired And Contracted Services,265,20/10/2017,1710-00616,0.00,195.00,R,All Clear Solutions Ltd,No,,
Http://opendatacommunities.org/id/metropolitan-district-council/leeds,Leeds City Council,31/10/2017,Resources and Housing,Leeds Building Services,Supplies and Services,Other Hired And Contracted Services,265,25/10/2017,1710-00617,0.00,390.00,R,All Clear Solutions Ltd,No,,
Http://opendatacommunities.org/id/metropolitan-district-council/leeds,Leeds City Council,31/10/2017,Resources and Housing,Leeds Building Services,Supplies and Services,Other Hired And Contracted Services,265,27/10/2017,1710-00618,0.00,195.00,R,All Clear Solutions Ltd,No,,
Http://opendatacommunities.org/id/metropolitan-district-council/leeds,Leeds City Council,31/10/2017,Resources and Housing,Leeds Building Services,Supplies and Services,Other Hired And Contracted Services,265,27/10/2017,1710-00619,0.00,195.00,R,All Clear Solutions Ltd,No,,
Http://opendatacommunities.org/id/metropolitan-district-council/leeds,Leeds City Council,31/10/2017,City Development,Recreation,Employees,Training & Development,70,04/10/2017,1710-00620,0.00,80.00,R,All England Netball Association Ltd,No,,
Http://opendatacommunities.org/id/metropolitan-district-council/leeds,Leeds City Council,31/10/2017,Children and Families,Safeguarding Targeted & Specialist,Third Party Payments,Services Rendered By Voluntary Sector,505,10/10/2017,1710-00621,0.00,3528.00,R,All Stars Childcare,No,,
Http://opendatacommunities.org/id/metropolitan-district-council/leeds,Leeds City Council,31/10/2017,Children and Families,Safeguarding Targeted & Specialist,Third Party Payments,Services Rendered By Other Organisations,511,27/10/2017,1710-00622,0.00,587.35,R,All Stars Childcare,No,,
Http://opendatacommunities.org/id/metropolitan-district-council/leeds,Leeds City Council,31/10/2017,Resources and Housing,Facilities Management,Supplies and Services,Operational Furniture And Equipment,203,25/10/2017,1710-00623,0.00,45.00,R,Allansound Communications,No,,
Http://opendatacommunities.org/id/metropolitan-district-council/leeds,Leeds City Council,31/10/2017,Communities and Environment,Parks and Countryside,Supplies and Services,Other Hired And Contracted Services,265,27/10/2017,1710-00624,0.00,585.00,R,Allansound Communications,No,,
Http://opendatacommunities.org/id/metropolitan-district-council/leeds,Leeds City Council,31/10/2017,City Development,Libraries  Arts & Heritage  ,Supplies and Services,Operational Furniture And Equipment,203,27/09/2017,1710-00625,0.00,144.98,R,Allersafe.Co.Uk,Yes,,
Http://opendatacommunities.org/id/metropolitan-district-council/leeds,Leeds City Council as Accountable Body,31/10/2017,Social Services Pooled Budgets,Jcs For People With Learning Disabilitie,Third Party Payments,Sheltered Accommodation,569,18/10/2017,1710-00626,0.00,12248.52,R,Allerton Avenue,No,,
Http://opendatacommunities.org/id/metropolitan-district-council/leeds,Leeds City Council,31/10/2017,Resources and Housing,Finance,Supplies and Services,Bank Charges,263,02/10/2017,1710-00627,0.00,-58.89,R,Alliance & Leicester Commercial Bank,No,,
Http://opendatacommunities.org/id/metropolitan-district-council/leeds,Leeds City Council,31/10/2017,Resources and Housing,Finance,Supplies and Services,Bank Charges,263,05/10/2017,1710-00628,0.00,721.46,R,Alliance & Leicester Commercial Bank,No,,
Http://opendatacommunities.org/id/metropolitan-district-council/leeds,Leeds City Council,31/10/2017,Resources and Housing,Finance,Supplies and Services,Bank Charges,263,05/10/2017,1710-00629,0.00,100.00,R,Alliance & Leicester Commercial Bank,No,,
Http://opendatacommunities.org/id/metropolitan-district-council/leeds,Leeds City Council,31/10/2017,Strategic Landlord,Housing Management,Supplies and Services,Other Hired And Contracted Services,265,05/10/2017,1710-00630,0.00,10.13,R,Alliance & Leicester Commercial Bank,No,,
Http://opendatacommunities.org/id/metropolitan-district-council/leeds,Leeds City Council,31/10/2017,Resources and Housing,Finance,Supplies and Services,Bank Charges,263,05/10/2017,1710-00631,0.00,1.01,R,Alliance & Leicester Commercial Bank,No,,
Http://opendatacommunities.org/id/metropolitan-district-council/leeds,Leeds City Council,31/10/2017,Resources and Housing,Finance,Supplies and Services,Bank Charges,263,05/10/2017,1710-00632,0.00,15.70,R,Alliance & Leicester Commercial Bank,No,,
Http://opendatacommunities.org/id/metropolitan-district-council/leeds,Leeds City Council,31/10/2017,Resources and Housing,Commercial Services,Transport,Vehicle Spares,345,04/10/2017,1710-00633,0.00,395.00,R,Alliance Electronics Ltd,No,,
Http://opendatacommunities.org/id/metropolitan-district-council/leeds,Leeds City Council,31/10/2017,City Development,Recreation,Supplies and Services,Publication And Promotion,267,12/10/2017,1710-00634,0.00,566.00,R,Alliance Leisure Service Ltd,No,,
Http://opendatacommunities.org/id/metropolitan-district-council/leeds,Leeds City Council,31/10/2017,City Development,Recreation,Supplies and Services,Advertising,211,12/10/2017,1710-00635,0.00,95.00,R,Alliance Leisure Service Ltd,No,,
Http://opendatacommunities.org/id/metropolitan-district-council/leeds,Leeds City Council,31/10/2017,City Development,Recreation,Supplies and Services,Printing,215,12/10/2017,1710-00636,0.00,257.00,R,Alliance Leisure Service Ltd,No,,
Http://opendatacommunities.org/id/metropolitan-district-council/leeds,Leeds City Council,31/10/2017,City Development,Highways,Supplies and Services,Other Hired And Contracted Services,265,13/10/2017,1710-00637,0.00,1749.80,R,Allied Exploration & Geotechnics Ltd,No,,
Http://opendatacommunities.org/id/metropolitan-district-council/leeds,Leeds City Council,31/10/2017,City Development,Highways,Capital,Other Costs,7,24/10/2017,1710-00638,0.00,254.60,C,Allied Exploration & Geotechnics Ltd,No,,
Http://opendatacommunities.org/id/metropolitan-district-council/leeds,Leeds City Council,31/10/2017,Adults and Health,Services For Older People - 65 And Over,Third Party Payments,Home Care,568,10/10/2017,1710-00639,0.00,993.96,R,Allied Healthcare,No,,
Http://opendatacommunities.org/id/metropolitan-district-council/leeds,Leeds City Council,31/10/2017,Adults and Health,Services For Older People - 65 And Over,Third Party Payments,Home Care,568,10/10/2017,1710-00640,0.00,2552.00,R,Allied Healthcare,No,,
Http://opendatacommunities.org/id/metropolitan-district-council/leeds,Leeds City Council,31/10/2017,Adults and Health,Services For Older People Under 65 P/Dis,Third Party Payments,Home Care,568,10/10/2017,1710-00641,0.00,85.37,R,Allied Healthcare,No,,
Http://opendatacommunities.org/id/metropolitan-district-council/leeds,Leeds City Council,31/10/2017,Adults and Health,Services For Older People - 65 And Over,Third Party Payments,Home Care,568,10/10/2017,1710-00642,0.00,6476.72,R,Allied Healthcare,No,,
Http://opendatacommunities.org/id/metropolitan-district-council/leeds,Leeds City Council,31/10/2017,Adults and Health,Services For Older People Under 65 P/Dis,Third Party Payments,Home Care,568,10/10/2017,1710-00643,0.00,1998.81,R,Allied Healthcare,No,,
Http://opendatacommunities.org/id/metropolitan-district-council/leeds,Leeds City Council,31/10/2017,Adults and Health,Services For Older People - 65 And Over,Third Party Payments,Home Care,568,10/10/2017,1710-00644,0.00,11182.16,R,Allied Healthcare,No,,
Http://opendatacommunities.org/id/metropolitan-district-council/leeds,Leeds City Council,31/10/2017,Adults and Health,Services For Older People Under 65 P/Dis,Third Party Payments,Home Care,568,10/10/2017,1710-00645,0.00,1700.52,R,Allied Healthcare,No,,
Http://opendatacommunities.org/id/metropolitan-district-council/leeds,Leeds City Council,31/10/2017,Adults and Health,Other Generic Services,Third Party Payments,Home Care,568,12/10/2017,1710-00646,0.00,20766.86,R,Allied Healthcare,No,,
Http://opendatacommunities.org/id/metropolitan-district-council/leeds,Leeds City Council,31/10/2017,Adults and Health,Other Generic Services,Third Party Payments,Home Care,568,12/10/2017,1710-00647,0.00,7824.41,R,Allied Healthcare,No,,
Http://opendatacommunities.org/id/metropolitan-district-council/leeds,Leeds City Council as Accountable Body,31/10/2017,Social Services Pooled Budgets,Jcs For People With Learning Disabilitie,Third Party Payments,Home Care,568,17/10/2017,1710-00648,0.00,111.20,R,Allied Healthcare,No,,
Http://opendatacommunities.org/id/metropolitan-district-council/leeds,Leeds City Council as Accountable Body,31/10/2017,Social Services Pooled Budgets,Jcs For People With Learning Disabilitie,Third Party Payments,Home Care,568,17/10/2017,1710-00649,0.00,16720.69,R,Allied Healthcare,No,,
Http://opendatacommunities.org/id/metropolitan-district-council/leeds,Leeds City Council as Accountable Body,31/10/2017,Social Services Pooled Budgets,Jcs For People With Learning Disabilitie,Third Party Payments,Home Care,568,31/10/2017,1710-00650,0.00,787.92,R,Allied Healthcare,No,,
Http://opendatacommunities.org/id/metropolitan-district-council/leeds,Leeds City Council as Accountable Body,31/10/2017,Social Services Pooled Budgets,Jcs For People With Learning Disabilitie,Third Party Payments,Home Care,568,31/10/2017,1710-00651,0.00,687.00,R,Allied Healthcare,No,,
Http://opendatacommunities.org/id/metropolitan-district-council/leeds,Leeds City Council as Accountable Body,31/10/2017,Social Services Pooled Budgets,Jcs For People With Learning Disabilitie,Third Party Payments,Home Care,568,31/10/2017,1710-00652,0.00,211.28,R,Allied Healthcare,No,,
Http://opendatacommunities.org/id/metropolitan-district-council/leeds,Leeds City Council,31/10/2017,Adults and Health,Public Health,Third Party Payments,Public Health Commissioned Services,526,10/10/2017,1710-00653,0.00,10.37,R,Allied Pharmacy Ltd,No,,
Http://opendatacommunities.org/id/metropolitan-district-council/leeds,Leeds City Council,31/10/2017,Adults and Health,Public Health,Third Party Payments,Public Health Commissioned Services,526,17/10/2017,1710-00654,0.00,23.40,R,Allied Pharmacy Ltd,No,,
Http://opendatacommunities.org/id/metropolitan-district-council/leeds,Leeds City Council,31/10/2017,Strategic Landlord,Housing Management,Supplies and Services,Other Hired And Contracted Services,265,06/10/2017,1710-00655,0.00,0.50,R,Allpay Limted,No,,
Http://opendatacommunities.org/id/metropolitan-district-council/leeds,Leeds City Council,31/10/2017,Strategic Landlord,Housing Management,Supplies and Services,Other Hired And Contracted Services,265,06/10/2017,1710-00656,0.00,12.44,R,Allpay Limted,No,,
Http://opendatacommunities.org/id/metropolitan-district-council/leeds,Leeds City Council,31/10/2017,Strategic Landlord,Housing Management,Supplies and Services,Other Hired And Contracted Services,265,06/10/2017,1710-00657,0.00,304.16,R,Allpay Limted,No,,
Http://opendatacommunities.org/id/metropolitan-district-council/leeds,Leeds City Council,31/10/2017,Resources and Housing,Finance,Supplies and Services,Bank Charges,263,09/10/2017,1710-00658,0.00,10956.85,R,Allpay Limted,No,,
Http://opendatacommunities.org/id/metropolitan-district-council/leeds,Leeds City Council,31/10/2017,Resources and Housing,Finance,Supplies and Services,Bank Charges,263,09/10/2017,1710-00659,0.00,421.44,R,Allpay Limted,No,,
Http://opendatacommunities.org/id/metropolitan-district-council/leeds,Leeds City Council,31/10/2017,Resources and Housing,Finance,Supplies and Services,Bank Charges,263,09/10/2017,1710-00660,0.00,1.39,R,Allpay Limted,No,,
Http://opendatacommunities.org/id/metropolitan-district-council/leeds,Leeds City Council,31/10/2017,Resources and Housing,Finance,Supplies and Services,Bank Charges,263,09/10/2017,1710-00661,0.00,23.43,R,Allpay Limted,No,,
Http://opendatacommunities.org/id/metropolitan-district-council/leeds,Leeds City Council,31/10/2017,Resources and Housing,Finance,Supplies and Services,Bank Charges,263,09/10/2017,1710-00662,0.00,618.25,R,Allpay Limted,No,,
Http://opendatacommunities.org/id/metropolitan-district-council/leeds,Leeds City Council,31/10/2017,Resources and Housing,Finance,Supplies and Services,Bank Charges,263,10/10/2017,1710-00663,0.00,8427.41,R,Allpay Limted,No,,
Http://opendatacommunities.org/id/metropolitan-district-council/leeds,Leeds City Council,31/10/2017,Resources and Housing,Democratic Services,Transport,Fuel (Non LCC Supplies),321,09/10/2017,1710-00664,0.00,501.45,R,Allstar Business Solutions Ltd,No,,
Http://opendatacommunities.org/id/metropolitan-district-council/leeds,Leeds City Council,31/10/2017,Children and Families,Learning Skills & Universal,Transport,Fuel (Non LCC Supplies),321,09/10/2017,1710-00665,0.00,1126.21,R,Allstar Business Solutions Ltd,No,,
Http://opendatacommunities.org/id/metropolitan-district-council/leeds,Leeds City Council,31/10/2017,Communities and Environment,Parks and Countryside,Transport,Fuel (Non LCC Supplies),321,09/10/2017,1710-00666,0.00,34.76,R,Allstar Business Solutions Ltd,No,,
Http://opendatacommunities.org/id/metropolitan-district-council/leeds,Leeds City Council,31/10/2017,Communities and Environment,Waste Management,Transport,Fuel (Non LCC Supplies),321,09/10/2017,1710-00667,0.00,2.70,R,Allstar Business Solutions Ltd,No,,
Http://opendatacommunities.org/id/metropolitan-district-council/leeds,Leeds City Council,31/10/2017,City Development,Highways,Transport,Fuel (Non LCC Supplies),321,09/10/2017,1710-00668,0.00,9.38,R,Allstar Business Solutions Ltd,No,,
Http://opendatacommunities.org/id/metropolitan-district-council/leeds,Leeds City Council,31/10/2017,Resources and Housing,Leeds Building Services,Transport,Fuel (Non LCC Supplies),321,30/10/2017,1710-00669,0.00,64.66,R,Allstar Business Solutions Ltd,No,,
Http://opendatacommunities.org/id/metropolitan-district-council/leeds,Leeds City Council,31/10/2017,Resources and Housing,SP Contracts & SECC,Third Party Payments,Supporting Ppl - Block Gross Chargeable,514,26/10/2017,1710-00670,0.00,30.10,R,Alpha (Rsl) Limited,No,,
Http://opendatacommunities.org/id/metropolitan-district-council/leeds,Leeds City Council,31/10/2017,Children and Families,Safeguarding Targeted & Specialist,Support Services,Legal Disbursements,411,04/10/2017,1710-00671,0.00,134.38,R,Alphabiolabs,No,,
Http://opendatacommunities.org/id/metropolitan-district-council/leeds,Leeds City Council,31/10/2017,Children and Families,Safeguarding Targeted & Specialist,Support Services,Legal Disbursements,411,04/10/2017,1710-00672,0.00,315.00,R,Alphabiolabs,No,,
Http://opendatacommunities.org/id/metropolitan-district-council/leeds,Leeds City Council,31/10/2017,Children and Families,Safeguarding Targeted & Specialist,Support Services,Legal Disbursements,411,04/10/2017,1710-00673,0.00,153.75,R,Alphabiolabs,No,,
Http://opendatacommunities.org/id/metropolitan-district-council/leeds,Leeds City Council,31/10/2017,Children and Families,Safeguarding Targeted & Specialist,Support Services,Legal Disbursements,411,06/10/2017,1710-00674,0.00,177.50,R,Alphabiolabs,No,,
Http://opendatacommunities.org/id/metropolitan-district-council/leeds,Leeds City Council,31/10/2017,Children and Families,Safeguarding Targeted & Specialist,Support Services,Legal Disbursements,411,11/10/2017,1710-00675,0.00,151.25,R,Alphabiolabs,No,,
Http://opendatacommunities.org/id/metropolitan-district-council/leeds,Leeds City Council,31/10/2017,Children and Families,Safeguarding Targeted & Specialist,Support Services,Legal Disbursements,411,11/10/2017,1710-00676,0.00,38.75,R,Alphabiolabs,No,,
Http://opendatacommunities.org/id/metropolitan-district-council/leeds,Leeds City Council,31/10/2017,Children and Families,Safeguarding Targeted & Specialist,Third Party Payments, Direct Work,549,16/10/2017,1710-00677,0.00,305.00,R,Alphabiolabs,No,,
Http://opendatacommunities.org/id/metropolitan-district-council/leeds,Leeds City Council,31/10/2017,Children and Families,Safeguarding Targeted & Specialist,Support Services,Legal Disbursements,411,19/10/2017,1710-00678,0.00,151.25,R,Alphabiolabs,No,,
Http://opendatacommunities.org/id/metropolitan-district-council/leeds,Leeds City Council,31/10/2017,Children and Families,Safeguarding Targeted & Specialist,Support Services,Legal Disbursements,411,20/10/2017,1710-00679,0.00,117.50,R,Alphabiolabs,No,,
Http://opendatacommunities.org/id/metropolitan-district-council/leeds,Leeds City Council,31/10/2017,Children and Families,Safeguarding Targeted & Specialist,Support Services,Legal Disbursements,411,23/10/2017,1710-00680,0.00,151.34,R,Alphabiolabs,No,,
Http://opendatacommunities.org/id/metropolitan-district-council/leeds,Leeds City Council,31/10/2017,Children and Families,Safeguarding Targeted & Specialist,Support Services,Legal Disbursements,411,26/10/2017,1710-00681,0.00,26.25,R,Alphabiolabs,No,,
Http://opendatacommunities.org/id/metropolitan-district-council/leeds,Leeds City Council,31/10/2017,Children and Families,Safeguarding Targeted & Specialist,Support Services,Legal Disbursements,411,26/10/2017,1710-00682,0.00,26.25,R,Alphabiolabs,No,,
Http://opendatacommunities.org/id/metropolitan-district-council/leeds,Leeds City Council,31/10/2017,Children and Families,Safeguarding Targeted & Specialist,Support Services,Legal Disbursements,411,31/10/2017,1710-00683,0.00,111.25,R,Alphabiolabs,No,,
Http://opendatacommunities.org/id/metropolitan-district-council/leeds,Leeds City Council,31/10/2017,Communities and Environment,Waste Management,Supplies and Services,Other Hired And Contracted Services,265,12/10/2017,1710-00684,0.00,116.00,R,Als Life Sciences Limited,No,,
Http://opendatacommunities.org/id/metropolitan-district-council/leeds,Leeds City Council,31/10/2017,Communities and Environment,Waste Management,Supplies and Services,Other Hired And Contracted Services,265,20/10/2017,1710-00685,0.00,302.00,R,Als Life Sciences Limited,No,,
Http://opendatacommunities.org/id/metropolitan-district-council/leeds,Leeds City Council,31/10/2017,Strategic Accounts,Miscellaneous,Supplies and Services,Non-Recurring Grants,227,30/10/2017,1710-00686,0.00,200.00,R,Alwoodley In Bloom,No,,
Http://opendatacommunities.org/id/metropolitan-district-council/leeds,Leeds City Council,31/10/2017,Strategic Accounts,Miscellaneous,Supplies and Services,Non-Recurring Grants,227,30/10/2017,1710-00687,0.00,500.00,R,Alwoodley Park Methodist Church,No,,
Http://opendatacommunities.org/id/metropolitan-district-council/leeds,Leeds City Council,31/10/2017,Children and Families,Safeguarding Targeted & Specialist,Supplies and Services,Operational Furniture And Equipment,203,13/10/2017,1710-00688,0.00,533.10,R,REDACTED PERSONAL DATA,No,,
Http://opendatacommunities.org/id/metropolitan-district-council/leeds,Leeds City Council,31/10/2017,City Development,Recreation,Income,Sporting & Other Recreational Fees,928,11/10/2017,1710-00689,0.00,19.93,R,REDACTED PERSONAL DATA,No,,
Http://opendatacommunities.org/id/metropolitan-district-council/leeds,Leeds City Council,31/10/2017,Strategic Accounts,Miscellaneous,Supplies and Services,Non-Recurring Grants,227,23/10/2017,1710-00690,0.00,150.00,R,Amaranth Football Club,No,,
Http://opendatacommunities.org/id/metropolitan-district-council/leeds,Leeds City Council,31/10/2017,Resources and Housing,Leeds Building Services,Supplies and Services,Operational Materials,205,19/10/2017,1710-00691,0.00,51.09,R,Amari Plastics Plc,No,,
Http://opendatacommunities.org/id/metropolitan-district-council/leeds,Leeds City Council,31/10/2017,Resources and Housing,Leeds Building Services,Supplies and Services,Operational Materials,205,19/10/2017,1710-00692,0.00,115.18,R,Amari Plastics Plc,No,,
Http://opendatacommunities.org/id/metropolitan-district-council/leeds,Leeds City Council,31/10/2017,Resources and Housing,Leeds Building Services,Supplies and Services,Operational Materials,205,24/10/2017,1710-00693,0.00,57.59,R,Amari Plastics Plc,No,,
Http://opendatacommunities.org/id/metropolitan-district-council/leeds,Leeds City Council,31/10/2017,Resources and Housing,Leeds Building Services,Supplies and Services,Operational Materials,205,24/10/2017,1710-00694,0.00,126.10,R,Amari Plastics Plc,No,,
Http://opendatacommunities.org/id/metropolitan-district-council/leeds,Leeds City Council,31/10/2017,Resources and Housing,Shared Services,Supplies and Services,Operational Materials,205,24/10/2017,1710-00695,0.00,149.80,R,Amari Plastics Plc,No,,
Http://opendatacommunities.org/id/metropolitan-district-council/leeds,Leeds City Council,31/10/2017,Resources and Housing,Leeds Building Services,Supplies and Services,Operational Materials,205,24/10/2017,1710-00696,0.00,93.23,R,Amari Plastics Plc,No,,
Http://opendatacommunities.org/id/metropolitan-district-council/leeds,Leeds City Council,31/10/2017,Resources and Housing,Shared Services,Supplies and Services,Operational Materials,205,26/10/2017,1710-00697,0.00,95.00,R,Amari Plastics Plc,No,,
Http://opendatacommunities.org/id/metropolitan-district-council/leeds,Leeds City Council,31/10/2017,Children and Families,Safeguarding Targeted & Specialist,Third Party Payments,Services Rendered By Other Organisations,511,27/10/2017,1710-00698,0.00,1891.99,R,Amazing Grace Early Years Childcare,No,,
Http://opendatacommunities.org/id/metropolitan-district-council/leeds,Leeds City Council,31/10/2017,City Development,Recreation,Supplies and Services,Operational Furniture And Equipment,203,12/10/2017,1710-00699,0.00,161.10,R,Amazon Leisure Uk Ltd,No,,
Http://opendatacommunities.org/id/metropolitan-district-council/leeds,Leeds City Council,31/10/2017,City Development,Economic Development  ,Supplies and Services,Computer Software & Equipment,214,26/09/2017,1710-00700,0.00,7.99,R,Amazon Prime,Yes,,
Http://opendatacommunities.org/id/metropolitan-district-council/leeds,Leeds City Council,31/10/2017,Strategic Landlord,Housing Management  ,Supplies and Services,Operational Furniture And Equipment,203,26/09/2017,1710-00701,0.00,7.99,R,Amazon Prime,Yes,,
Http://opendatacommunities.org/id/metropolitan-district-council/leeds,Leeds City Council,31/10/2017,City Development,Libraries  Arts & Heritage  ,Supplies and Services,Office Consumables,210,27/09/2017,1710-00702,0.00,7.99,R,Amazon Prime,Yes,,
Http://opendatacommunities.org/id/metropolitan-district-council/leeds,Leeds City Council,31/10/2017,Children and Families,Safeguarding Targeted & Specialist  ,Supplies and Services,Teaching Materials,202,31/08/2017,1710-00703,0.00,15.92,R,Amazon UK Marketplace,Yes,,
Http://opendatacommunities.org/id/metropolitan-district-council/leeds,Leeds City Council,31/10/2017,City Development,Recreation  ,Supplies and Services,Operational Furniture And Equipment,203,31/08/2017,1710-00704,0.00,6.65,R,Amazon UK Marketplace,Yes,,
Http://opendatacommunities.org/id/metropolitan-district-council/leeds,Leeds City Council,31/10/2017,Children and Families,Safeguarding Targeted & Specialist  ,Supplies and Services,Computer Software & Equipment,214,31/08/2017,1710-00705,0.00,5.99,R,Amazon UK Marketplace,Yes,,
Http://opendatacommunities.org/id/metropolitan-district-council/leeds,Leeds City Council,31/10/2017,Communities and Environment,Customer Access  ,Supplies and Services,Operational Materials,205,31/08/2017,1710-00706,0.00,4.58,R,Amazon UK Marketplace,Yes,,
Http://opendatacommunities.org/id/metropolitan-district-council/leeds,Leeds City Council,31/10/2017,Children and Families,Safeguarding Targeted & Specialist  ,Supplies and Services,Books & Audio-Visual Materials,206,31/08/2017,1710-00707,0.00,12.99,R,Amazon UK Marketplace,Yes,,
Http://opendatacommunities.org/id/metropolitan-district-council/leeds,Leeds City Council,31/10/2017,Children and Families,Safeguarding Targeted & Specialist  ,Supplies and Services,Operational Materials,205,01/09/2017,1710-00708,0.00,24.16,R,Amazon UK Marketplace,Yes,,
Http://opendatacommunities.org/id/metropolitan-district-council/leeds,Leeds City Council,31/10/2017,Communities and Environment,Cleaner Neighbourhood Teams  ,Supplies and Services,Operational Materials,205,01/09/2017,1710-00709,0.00,51.27,R,Amazon UK Marketplace,Yes,,
Http://opendatacommunities.org/id/metropolitan-district-council/leeds,Leeds City Council,31/10/2017,Children and Families,Safeguarding Targeted & Specialist  ,Supplies and Services,Books & Audio-Visual Materials,206,01/09/2017,1710-00710,0.00,12.99,R,Amazon UK Marketplace,Yes,,
Http://opendatacommunities.org/id/metropolitan-district-council/leeds,Leeds City Council,31/10/2017,Children and Families,Safeguarding Targeted & Specialist  ,Supplies and Services,Teaching Furniture & Equipment,207,01/09/2017,1710-00711,0.00,20.79,R,Amazon UK Marketplace,Yes,,
Http://opendatacommunities.org/id/metropolitan-district-council/leeds,Leeds City Council,31/10/2017,Communities and Environment,Customer Access  ,Supplies and Services,Operational Materials,205,01/09/2017,1710-00712,0.00,21.00,R,Amazon UK Marketplace,Yes,,
Http://opendatacommunities.org/id/metropolitan-district-council/leeds,Leeds City Council,31/10/2017,Communities and Environment,Benefits  Wlefare And Poverty  ,Supplies and Services,Office Furniture & Equipment,201,01/09/2017,1710-00713,0.00,13.28,R,Amazon UK Marketplace,Yes,,
Http://opendatacommunities.org/id/metropolitan-district-council/leeds,Leeds City Council,31/10/2017,Children and Families,Safeguarding Targeted & Specialist  ,Supplies and Services,Operational Furniture And Equipment,203,02/09/2017,1710-00714,0.00,5.30,R,Amazon UK Marketplace,Yes,,
Http://opendatacommunities.org/id/metropolitan-district-council/leeds,Leeds City Council,31/10/2017,Children and Families,Safeguarding Targeted & Specialist  ,Supplies and Services,Teaching Materials,202,04/09/2017,1710-00715,0.00,8.99,R,Amazon UK Marketplace,Yes,,
Http://opendatacommunities.org/id/metropolitan-district-council/leeds,Leeds City Council,31/10/2017,Children and Families,Safeguarding Targeted & Specialist  ,Supplies and Services,Operational Furniture And Equipment,203,04/09/2017,1710-00716,0.00,12.42,R,Amazon UK Marketplace,Yes,,
Http://opendatacommunities.org/id/metropolitan-district-council/leeds,Leeds City Council,31/10/2017,City Development,Economic Development  ,Supplies and Services,Operational Materials,205,04/09/2017,1710-00717,0.00,12.00,R,Amazon UK Marketplace,Yes,,
Http://opendatacommunities.org/id/metropolitan-district-council/leeds,Leeds City Council,31/10/2017,Children and Families,Safeguarding Targeted & Specialist  ,Supplies and Services,Teaching Materials,202,04/09/2017,1710-00718,0.00,22.99,R,Amazon UK Marketplace,Yes,,
Http://opendatacommunities.org/id/metropolitan-district-council/leeds,Leeds City Council,31/10/2017,Children and Families,Safeguarding Targeted & Specialist  ,Supplies and Services,Teaching Materials,202,04/09/2017,1710-00719,0.00,7.68,R,Amazon UK Marketplace,Yes,,
Http://opendatacommunities.org/id/metropolitan-district-council/leeds,Leeds City Council,31/10/2017,Children and Families,Safeguarding Targeted & Specialist  ,Supplies and Services,Operational Furniture And Equipment,203,04/09/2017,1710-00720,0.00,29.79,R,Amazon UK Marketplace,Yes,,
Http://opendatacommunities.org/id/metropolitan-district-council/leeds,Leeds City Council,31/10/2017,Children and Families,Safeguarding Targeted & Specialist  ,Supplies and Services,Teaching Materials,202,04/09/2017,1710-00721,0.00,21.44,R,Amazon UK Marketplace,Yes,,
Http://opendatacommunities.org/id/metropolitan-district-council/leeds,Leeds City Council,31/10/2017,Children and Families,Safeguarding Targeted & Specialist  ,Supplies and Services,Teaching Materials,202,04/09/2017,1710-00722,0.00,8.95,R,Amazon UK Marketplace,Yes,,
Http://opendatacommunities.org/id/metropolitan-district-council/leeds,Leeds City Council,31/10/2017,Children and Families,Safeguarding Targeted & Specialist  ,Supplies and Services,Operational Furniture And Equipment,203,04/09/2017,1710-00723,0.00,4.68,R,Amazon UK Marketplace,Yes,,
Http://opendatacommunities.org/id/metropolitan-district-council/leeds,Leeds City Council,31/10/2017,Children and Families,Safeguarding Targeted & Specialist  ,Supplies and Services,Teaching Materials,202,05/09/2017,1710-00724,0.00,6.12,R,Amazon UK Marketplace,Yes,,
Http://opendatacommunities.org/id/metropolitan-district-council/leeds,Leeds City Council,31/10/2017,Children and Families,Safeguarding Targeted & Specialist  ,Supplies and Services,Teaching Materials,202,05/09/2017,1710-00725,0.00,12.95,R,Amazon UK Marketplace,Yes,,
Http://opendatacommunities.org/id/metropolitan-district-council/leeds,Leeds City Council,31/10/2017,Children and Families,Safeguarding Targeted & Specialist  ,Supplies and Services,Teaching Materials,202,05/09/2017,1710-00726,0.00,32.55,R,Amazon UK Marketplace,Yes,,
Http://opendatacommunities.org/id/metropolitan-district-council/leeds,Leeds City Council,31/10/2017,Children and Families,Safeguarding Targeted & Specialist  ,Supplies and Services,Operational Materials,205,05/09/2017,1710-00727,0.00,38.90,R,Amazon UK Marketplace,Yes,,
Http://opendatacommunities.org/id/metropolitan-district-council/leeds,Leeds City Council,31/10/2017,Children and Families,Safeguarding Targeted & Specialist  ,Supplies and Services,Teaching Materials,202,05/09/2017,1710-00728,0.00,50.20,R,Amazon UK Marketplace,Yes,,
Http://opendatacommunities.org/id/metropolitan-district-council/leeds,Leeds City Council,31/10/2017,Children and Families,Safeguarding Targeted & Specialist  ,Supplies and Services,Teaching Materials,202,05/09/2017,1710-00729,0.00,32.55,R,Amazon UK Marketplace,Yes,,
Http://opendatacommunities.org/id/metropolitan-district-council/leeds,Leeds City Council,31/10/2017,City Development,Recreation  ,Supplies and Services,Operational Furniture And Equipment,203,05/09/2017,1710-00730,0.00,227.99,R,Amazon UK Marketplace,Yes,,
Http://opendatacommunities.org/id/metropolitan-district-council/leeds,Leeds City Council,31/10/2017,Children and Families,Safeguarding Targeted & Specialist  ,Supplies and Services,Teaching Materials,202,05/09/2017,1710-00731,0.00,11.78,R,Amazon UK Marketplace,Yes,,
Http://opendatacommunities.org/id/metropolitan-district-council/leeds,Leeds City Council,31/10/2017,Children and Families,Safeguarding Targeted & Specialist  ,Supplies and Services,Books & Audio-Visual Materials,206,05/09/2017,1710-00732,0.00,13.35,R,Amazon UK Marketplace,Yes,,
Http://opendatacommunities.org/id/metropolitan-district-council/leeds,Leeds City Council,31/10/2017,Adults and Health,Services For Adults Under 65 Learn/Dis  ,Supplies and Services,Books & Audio-Visual Materials,206,05/09/2017,1710-00733,0.00,7.91,R,Amazon UK Marketplace,Yes,,
Http://opendatacommunities.org/id/metropolitan-district-council/leeds,Leeds City Council,31/10/2017,City Development,Economic Development  ,Supplies and Services,Operational Materials,205,05/09/2017,1710-00734,0.00,15.62,R,Amazon UK Marketplace,Yes,,
Http://opendatacommunities.org/id/metropolitan-district-council/leeds,Leeds City Council,31/10/2017,Children and Families,Safeguarding Targeted & Specialist  ,Supplies and Services,Teaching Materials,202,05/09/2017,1710-00735,0.00,0.41,R,Amazon UK Marketplace,Yes,,
Http://opendatacommunities.org/id/metropolitan-district-council/leeds,Leeds City Council,31/10/2017,Children and Families,Safeguarding Targeted & Specialist  ,Supplies and Services,Teaching Materials,202,06/09/2017,1710-00736,0.00,11.67,R,Amazon UK Marketplace,Yes,,
Http://opendatacommunities.org/id/metropolitan-district-council/leeds,Leeds City Council,31/10/2017,Children and Families,Safeguarding Targeted & Specialist  ,Supplies and Services,Teaching Materials,202,06/09/2017,1710-00737,0.00,3.67,R,Amazon UK Marketplace,Yes,,
Http://opendatacommunities.org/id/metropolitan-district-council/leeds,Leeds City Council,31/10/2017,Children and Families,Safeguarding Targeted & Specialist  ,Supplies and Services,Teaching Materials,202,06/09/2017,1710-00738,0.00,3.89,R,Amazon UK Marketplace,Yes,,
Http://opendatacommunities.org/id/metropolitan-district-council/leeds,Leeds City Council,31/10/2017,Children and Families,Safeguarding Targeted & Specialist  ,Supplies and Services,Teaching Materials,202,06/09/2017,1710-00739,0.00,27.69,R,Amazon UK Marketplace,Yes,,
Http://opendatacommunities.org/id/metropolitan-district-council/leeds,Leeds City Council,31/10/2017,Children and Families,Safeguarding Targeted & Specialist  ,Supplies and Services,Teaching Materials,202,06/09/2017,1710-00740,0.00,17.76,R,Amazon UK Marketplace,Yes,,
Http://opendatacommunities.org/id/metropolitan-district-council/leeds,Leeds City Council,31/10/2017,Children and Families,Safeguarding Targeted & Specialist  ,Supplies and Services,Teaching Materials,202,06/09/2017,1710-00741,0.00,2.40,R,Amazon UK Marketplace,Yes,,
Http://opendatacommunities.org/id/metropolitan-district-council/leeds,Leeds City Council,31/10/2017,Children and Families,Safeguarding Targeted & Specialist  ,Supplies and Services,Teaching Materials,202,06/09/2017,1710-00742,0.00,2.15,R,Amazon UK Marketplace,Yes,,
Http://opendatacommunities.org/id/metropolitan-district-council/leeds,Leeds City Council,31/10/2017,Communities and Environment,Waste Management  ,Supplies and Services,Operational Furniture And Equipment,203,07/09/2017,1710-00743,0.00,29.99,R,Amazon UK Marketplace,Yes,,
Http://opendatacommunities.org/id/metropolitan-district-council/leeds,Leeds City Council,31/10/2017,Children and Families,Safeguarding Targeted & Specialist  ,Supplies and Services,Teaching Materials,202,07/09/2017,1710-00744,0.00,7.45,R,Amazon UK Marketplace,Yes,,
Http://opendatacommunities.org/id/metropolitan-district-council/leeds,Leeds City Council,31/10/2017,Communities and Environment,Benefits  Wlefare And Poverty  ,Supplies and Services,Office Furniture & Equipment,201,07/09/2017,1710-00745,0.00,9.99,R,Amazon UK Marketplace,Yes,,
Http://opendatacommunities.org/id/metropolitan-district-council/leeds,Leeds City Council,31/10/2017,Communities and Environment,Benefits  Wlefare And Poverty  ,Supplies and Services,Office Furniture & Equipment,201,07/09/2017,1710-00746,0.00,19.15,R,Amazon UK Marketplace,Yes,,
Http://opendatacommunities.org/id/metropolitan-district-council/leeds,Leeds City Council,31/10/2017,City Development,Recreation  ,Supplies and Services,Books & Audio-Visual Materials,206,07/09/2017,1710-00747,0.00,9.98,R,Amazon UK Marketplace,Yes,,
Http://opendatacommunities.org/id/metropolitan-district-council/leeds,Leeds City Council,31/10/2017,Children and Families,Safeguarding Targeted & Specialist  ,Supplies and Services,Teaching Materials,202,07/09/2017,1710-00748,0.00,17.96,R,Amazon UK Marketplace,Yes,,
Http://opendatacommunities.org/id/metropolitan-district-council/leeds,Leeds City Council,31/10/2017,City Development,Recreation  ,Supplies and Services,Operational Furniture And Equipment,203,08/09/2017,1710-00749,0.00,36.97,R,Amazon UK Marketplace,Yes,,
Http://opendatacommunities.org/id/metropolitan-district-council/leeds,Leeds City Council,31/10/2017,City Development,Libraries  Arts & Heritage  ,Supplies and Services,Teaching Materials,202,08/09/2017,1710-00750,0.00,16.12,R,Amazon UK Marketplace,Yes,,
